Workbook

Sheet Notes
A1: date: | B1: 2017-06-05
A2: author: | B2: Social Security and Housing Access Statistics, CAD
A3: data source: | B3: PREVENT1 data for 1 April 2014 to 31 March 2017
A4: SAS code at:
A5: notes: | B5: Where potentially disclosive, figures to be rounded to the nearest five.
B6: For use in publication on 27 June 2017.

Sheet Contents
A1: Housing Options (PREVENT1) Statistics in Scotland: 2016/17
A2: Published on 28 June 2017.
A3: Found online at: http://www.gov.scot/Topics/Statistics/Browse/Housing-Regeneration/RefTables
A4: Note: Where potentially disclosive, figures are rounded to the nearest five.
B5: Contents of Tables and Charts
A6: Click here
A7: ► | B7: ='Fig 1 - Households'!A1 -> Figure 1: Number of unique households making a local authority approach for housing or homelessness assistance, 2002/03 to 2016/17
A9: ► | B9: ='Fig 2 - Infographic'!A1 -> Figure 2: Flow diagram of all approaches to Housing Options services in Scotland
A11: ► | B11: ='Table 1 - Approaches'!A1 -> Table 1: Total Housing Options approaches by LA and quarter
A13: ► | B13: ='Chart 1 - Approaches by Month'!A1 -> Chart 1: Number of Housing Options Approaches by Month
A15: ► | B15: ='Table 2 - Unique Households'!A1 -> Table 2: Unique household approaches as a percentage of households in each Local Authority
A17: ► | B17: ='Chart 2 - Rates of Approaches'!A1 -> Chart 2: Rates of Approaches per 10,000 households
A19: ► | B19: ='Table 3 - Open Approaches'!A1 -> Table 3: Open Approaches at the end of each quarter by LA
A21: ► | B21: ='Chart 3a & 3b - Open Approaches'!A1 -> Chart 3a: Open Approaches at the end of each quarter - Scotland
A23: ► | B23: ='Chart 3c'!A1 -> Chart 3c: Distribution of the number of days approaches have been open for
A25: ► | B25: ='Table 4 - Reasons'!A1 -> Table 4a: Reasons for Approach (Number)
A27: ► | B27: ='Chart 4 - Approach Reasons'!A1 -> Chart 4: Number of Approaches by Reason for Approach
A29: ► | B29: ='Table 5 - Maximum Activty Type'!A1 -> Table 5a: Maximum Activity Type (Number)
A31: ► | B31: ='Chart 5 - Activities Type by Q'!A1 -> Chart 5: Number of Approaches with each level of activity type by quarter
A33: ► | B33: ='Table 6 - Activities'!A1 -> Table 6a: Housing Options activities by quarter (number)
A35: ► | B35: ='Chart 6 - Activities'!A1 -> Chart 6: Housing Options Actvities by quarter
A37: ► | B37: ='Table 7 - Activities by LA'!A1 -> Table 7a: Housing Options activities by Local Authority, during 1 April 2016 to 31 March 2017 (number)
A39: ► | B39: ='Chart 7 - Activities by LA'!A1 -> Chart 7:Activities by Local Authority
A41: ► | B41: ='Table 8 - Outcomes by Quarter'!A1 -> Table 8a: Outcomes by Quarter (number)
A43: ► | B43: ='Chart 8 - Outcomes by quarter'!A1 -> Chart 8: Outcome of Housing Options Approaches by quarter
A44: ► | B44: ='Chart 9 - Outcome Durations'!A1 -> Chart 9: Distribution of approach duration by outcome
A46: ► | B46: ='Table 9 - Outcomes by LA'!A1 -> Table 9: Outcomes by LA: 1 April 2016 to 31 March 2017
A48: ► | B48: ='Chart 10 - Outcomes by LA'!A1 -> Chart 10: Variation in outcomes for each Local Authority
A50: ► | B50: ='Chart 11- Lost Contact NK Boxpl'!A1 -> Chart 11: Distribution of the number of days to outcome approach as Lost Contact or Not Known by LA
A52: ► | B52: ='Chart 12 - Homelessness Boxplot'!A1 -> Chart 12: Distribution of the number of days to outcome an approach as a homelessness application
A54: ► | B54: ='Table 10 - Repeat Approaches'!A1 -> Table 10: Households making Repeat Approaches
A56: ► | B56: ='Chart 13- Repeat Approaches'!A1 -> Chart 13: Proportion of Unique Households in each LA area making Repeat Approaches

Sheet Fig 1 - Households
A1: Figure 1: Number of unique households making a local authority approach for housing or homelessness assistance, 2002/03 to 2016/17 | P1: Back to Contents
K42: =33256+31633 -> 64889
K43: =SUM(31633,33335) -> 64968
B61: All Households | C61: All Homeless Households | D61: Housing Options (No Homeless Application)
A62: 2002/2003 | B62: 46711 | C62: 36555 | F62: =C62/B62 -> 0.7825779795
A63: 2003/2004 | B63: 52129 | C63: 40011 | F63: 0.7675382225
A64: 2004/2005 | B64: 54209 | C64: 39912 | F64: 0.7362615064 | K64: =29828+33307 -> 63135
A65: 2005/2006 | B65: 57533 | C65: 42079 | F65: 0.731388942
A66: 2006/2007 | B66: 56723 | C66: 41401 | F66: 0.7298802955
A67: 2007/2008 | B67: 54363 | C67: 40324 | F67: 0.7417545021
A68: 2008/2009 | B68: 56208 | C68: 41216 | F68: 0.7332764019
A69: 2009/2010 | B69: 55631 | C69: 42763 | F69: 0.7686901188
A70: 2010/2011 | B70: 54346 | C70: 41323 | F70: 0.7603687484
A71: 2011/2012 | B71: 44902 | C71: 35234 | F71: 0.7846866509
A72: 2012/2013 | B72: 39208 | C72: 31718 | F72: 0.8089675576
A73: 2013/2014 | B73: 35667 | C73: 29228 | F73: 0.8194689769 | K73: \\s0429a\datashare\dd\EAS7\Homelessness\Transition project\VB and SAS Program Files\Analyse HL1 and HL2 Master Datasets.egp
A74: 2014/2015 | B74: 34997 | C74: 29281 | F74: 0.8366717147
A75: 2015/2016 | B75: 33645 | C75: 28078 | F75: 0.8345370783
A76: 2016/2017 | B76: 33307 | C76: 27811 | F76: 0.8349896418
B78: Application assessed as not homeless | C78: Homeless or Threatened with Homelessness | D78: Housing Options (No application for homelessness made)
A79: 2002/2003 | B79: =B62-C62 -> 10156 | C79: =C62 -> 36555
A80: 2003/2004 | B80: 12118 | C80: 40011
A81: 2004/2005 | B81: 14297 | C81: 39912
A82: 2005/2006 | B82: 15454 | C82: 42079
A83: 2006/2007 | B83: 15322 | C83: 41401
A84: 2007/2008 | B84: 14039 | C84: 40324
A85: 2008/2009 | B85: 14992 | C85: 41216
A86: 2009/2010 | B86: 12868 | C86: 42763
A87: 2010/2011 | B87: 13023 | C87: 41323
A88: 2011/2012 | B88: 9668 | C88: 35234
A89: 2012/2013 | B89: 7490 | C89: 31718
A90: 2013/2014 | B90: 6439 | C90: 29228
A91: 2014/2015 | B91: 5716 | C91: 29281 | D91: 33122
A92: 2015/2016 | B92: 5567 | C92: 28078 | D92: 31633 | H92: =C93/B76 -> 0.8349896418 | M92: =SUM(B76,D93) -> 63135
A93: 2016/2017 | B93: 5496 | C93: 27811 | D93: 29828
A95: *****************these tables need run once the HL1 data has been frozen****************************************************data below taken from 03/06/16 data=set
A96: Unqiue Households and their Children by Financial Year of Assessment | H96: Unqiue Households and their Children by Financial Year of Assessment
A97: Assess in 1:6 | H97: All Assessnent decisions
A99: Obs | B99: fyearass | C99: hhcounter | D99: kidscounter | H99: Obs | I99: fyearass | J99: hhcounter | K99: kidscounter
A100: 1 | B100: 2002/2003 | C100: 36555 | D100: 18906 | H100: 1 | I100: 2002/2003 | J100: 46711 | K100: 24995
A101: 2 | B101: 2003/2004 | C101: 40010 | D101: 20350 | H101: 2 | I101: 2003/2004 | J101: 52128 | K101: 27095
A102: 3 | B102: 2004/2005 | C102: 39926 | D102: 20949 | H102: 3 | I102: 2004/2005 | J102: 54228 | K102: 29075
A103: 4 | B103: 2005/2006 | C103: 42088 | D103: 21834 | H103: 4 | I103: 2005/2006 | J103: 57542 | K103: 30289
A104: 5 | B104: 2006/2007 | C104: 41400 | D104: 21628 | H104: 5 | I104: 2006/2007 | J104: 56723 | K104: 29931
A105: 6 | B105: 2007/2008 | C105: 40327 | D105: 21966 | H105: 6 | I105: 2007/2008 | J105: 54366 | K105: 29141
A106: 7 | B106: 2008/2009 | C106: 41216 | D106: 21866 | H106: 7 | I106: 2008/2009 | J106: 56208 | K106: 29776
A107: 8 | B107: 2009/2010 | C107: 42763 | D107: 22369 | H107: 8 | I107: 2009/2010 | J107: 55631 | K107: 28838
A108: 9 | B108: 2010/2011 | C108: 41327 | D108: 21188 | H108: 9 | I108: 2010/2011 | J108: 54353 | K108: 27352
A109: 10 | B109: 2011/2012 | C109: 35236 | D109: 18003 | H109: 10 | I109: 2011/2012 | J109: 44902 | K109: 22598
A110: 11 | B110: 2012/2013 | C110: 31721 | D110: 16036 | H110: 11 | I110: 2012/2013 | J110: 39215 | K110: 19378
A111: 12 | B111: 2013/2014 | C111: 29222 | D111: 14200 | H111: 12 | I111: 2013/2014 | J111: 35648 | K111: 16874
A112: 13 | B112: 2014/2015 | C112: 29251 | D112: 14211 | H112: 13 | I112: 2014/2015 | J112: 34951 | K112: 16588
A113: 14 | B113: 2015/2016 | C113: 27774 | D113: 13497 | H113: 14 | I113: 2015/2016 | J113: 33335 | K113: 15790
A118: Unqiue Households and their Children by Financial Year of Assessment | G118: Unqiue Households and their Children by Financial Year of Assessment
A119: Obs | B119: fyearass | C119: hhcounter | D119: kidscounter | G119: Obs | H119: fyearass | I119: hhcounter | J119: kidscounter
A120: 1 | B120: 2002/2003 | C120: 36555 | D120: 18907 | G120: 1 | H120: 2002/2003 | I120: 46711 | J120: 24996
A121: 2 | B121: 2003/2004 | C121: 40011 | D121: 20354 | G121: 2 | H121: 2003/2004 | I121: 52129 | J121: 27099
A122: 3 | B122: 2004/2005 | C122: 39912 | D122: 20947 | G122: 3 | H122: 2004/2005 | I122: 54209 | J122: 29067
A123: 4 | B123: 2005/2006 | C123: 42079 | D123: 21825 | G123: 4 | H123: 2005/2006 | I123: 57533 | J123: 30279
A124: 5 | B124: 2006/2007 | C124: 41401 | D124: 21628 | G124: 5 | H124: 2006/2007 | I124: 56723 | J124: 29931
A125: 6 | B125: 2007/2008 | C125: 40324 | D125: 21964 | G125: 6 | H125: 2007/2008 | I125: 54363 | J125: 29139
A126: 7 | B126: 2008/2009 | C126: 41216 | D126: 21866 | G126: 7 | H126: 2008/2009 | I126: 56208 | J126: 29776
A127: 8 | B127: 2009/2010 | C127: 42763 | D127: 22368 | G127: 8 | H127: 2009/2010 | I127: 55631 | J127: 28839
A128: 9 | B128: 2010/2011 | C128: 41323 | D128: 21185 | G128: 9 | H128: 2010/2011 | I128: 54346 | J128: 27346
A129: 10 | B129: 2011/2012 | C129: 35234 | D129: 18004 | G129: 10 | H129: 2011/2012 | I129: 44902 | J129: 22598
A130: 11 | B130: 2012/2013 | C130: 31718 | D130: 16028 | G130: 11 | H130: 2012/2013 | I130: 39208 | J130: 19369
A131: 12 | B131: 2013/2014 | C131: 29228 | D131: 14205 | G131: 12 | H131: 2013/2014 | I131: 35667 | J131: 16888
A132: 13 | B132: 2014/2015 | C132: 29281 | D132: 14271 | G132: 13 | H132: 2014/2015 | I132: 34997 | J132: 16647
A133: 14 | B133: 2015/2016 | C133: 28078 | D133: 13822 | G133: 14 | H133: 2015/2016 | I133: 33645 | J133: 16120
A134: 15 | B134: 2016/2017 | C134: 27811 | D134: 14103 | G134: 15 | H134: 2016/2017 | I134: 33307 | J134: 16435
A135: Assessed as homeless or threatened with homelessness | G135: All assessments
F148: =H92 -> 0.8349896418

Sheet Fig 2 - Infographic
A1: Figure 2: Flow diagram of all approaches to Housing Options services in Scotland | N1: Back to Contents
A2: All approaches between 1 April 2014 to 31 March 2017
Y34: Made homelessness application to local authority | Z34: 0.4810812595
Y35: Remained in current accommodation | Z35: 0.2116047264
Y36: Lost Contact/ Not known | Z36: 0.1604726385
Y37: Moved into Alternative Accommodation | Z37: 0.1468413757
Y38: Total (ALL) | Z38: 1
J82: Aberdeen City | K82: 0.2243626062
J83: Edinburgh | K83: 0.183286119
J84: North Lanarkshire | K84: 0.1379603399
J85: All others | K85: 0.45

Sheet Table 1 - Approaches
A1: Table 1: Total Housing Options approaches by LA and quarter | K1: Back to Contents
A3: Local Authority | P3: Annual change
B4: 2014 Q2 | C4: 2014 Q3 | D4: 2014 Q4 | E4: 2015 Q1 | F4: 2015 Q2 | G4: 2015 Q3 | H4: 2015 Q4 | I4: 2016 Q1 | J4: 2016 Q2 | K4: 2016 Q3 | L4: 2016 Q4 | M4: 2017 Q1 | N4: Total | P4: 2015/16 | Q4: 2016/17 | R4: Change | S4: % change
A5: Scotland | B5: 16015 | C5: 16175 | D5: 13850 | E5: 16870 | F5: 14635 | G5: 14515 | H5: 12290 | I5: 14665 | J5: 13340 | K5: 13085 | L5: 11055 | M5: 12640 | N5: 169140 | P5: =SUM(F5:I5) -> 56105 | Q5: =SUM(J5:M5) -> 50120 | R5: =Q5-P5 -> -5985 | S5: =R5/P5 -> -0.1066749844
A6: Aberdeen City | B6: 1165 | C6: 1595 | D6: 1615 | E6: 1910 | F6: 1705 | G6: 1580 | H6: 1330 | I6: 1515 | J6: 1395 | K6: 1345 | L6: 960 | M6: 1050 | N6: 17170 | P6: =SUM(F6:I6) -> 6130 | Q6: =SUM(J6:M6) -> 4750 | R6: -1381 | S6: =R6/P6 -> -0.2252854812
A7: Aberdeenshire | B7: 575 | C7: 480 | D7: 420 | E7: 615 | F7: 560 | G7: 530 | H7: 435 | I7: 575 | J7: 480 | K7: 460 | L7: 390 | M7: 450 | N7: 5970 | P7: 2100 | Q7: 1780 | R7: -318 | S7: -0.1514285714
A8: Angus | B8: 275 | C8: 275 | D8: 240 | E8: 295 | F8: 260 | G8: 250 | H8: 180 | I8: 210 | J8: 280 | K8: 285 | L8: 155 | M8: 180 | N8: 2880 | P8: 900 | Q8: 900 | R8: 5 | S8: 0.005555555556
A9: Argyll & Bute | B9: 130 | C9: 100 | D9: 260 | E9: 640 | F9: 580 | G9: 455 | H9: 400 | I9: 465 | J9: 435 | K9: 490 | L9: 370 | M9: 465 | N9: 4785 | P9: 1900 | Q9: 1760 | R9: -140 | S9: -0.07368421053
A10: Clackmannanshire | B10: 30 | C10: 45 | D10: 30 | E10: 25 | F10: 15 | G10: 50 | H10: 30 | I10: 25 | J10: 120 | K10: 100 | L10: 90 | M10: 175 | N10: 735 | P10: 120 | Q10: 485 | R10: 373 | S10: 3.108333333
A11: Dumfries & Galloway | B11: 235 | C11: 250 | D11: 195 | E11: 210 | F11: 230 | G11: 200 | H11: 190 | I11: 235 | J11: 220 | K11: 255 | L11: 205 | M11: 300 | N11: 2725 | P11: 855 | Q11: 980 | R11: 116 | S11: 0.1356725146
A12: Dundee City | B12: 765 | C12: 785 | D12: 440 | E12: 480 | F12: 545 | G12: 550 | H12: 490 | I12: 615 | J12: 530 | K12: 500 | L12: 465 | M12: 635 | N12: 6805 | P12: 2200 | Q12: 2130 | R12: -78 | S12: -0.03545454545
A13: East Ayrshire | B13: 65 | C13: 45 | D13: 20 | E13: 25 | F13: 5 | G13: 5 | H13: 0 | I13: 30 | J13: 15 | K13: 30 | L13: 20 | M13: 20 | N13: 290 | P13: 40 | Q13: 85 | R13: 47 | S13: 1.175
A14: East Dunbartonshire | B14: 35 | C14: 30 | D14: 35 | E14: 35 | F14: 35 | G14: 40 | H14: 25 | I14: 70 | J14: 55 | K14: 125 | L14: 90 | M14: 145 | N14: 715 | P14: 170 | Q14: 415 | R14: 248 | S14: 1.458823529
A15: East Lothian | B15: 125 | C15: 110 | D15: 65 | E15: 135 | F15: 90 | G15: 110 | H15: 90 | I15: 70 | J15: 55 | K15: 40 | L15: 50 | M15: 55 | N15: 995 | P15: 360 | Q15: 200 | R15: -162 | S15: -0.45
A16: East Renfrewshire | B16: 40 | C16: 50 | D16: 45 | E16: 25 | F16: 45 | G16: 50 | H16: 45 | I16: 50 | J16: 55 | K16: 45 | L16: 20 | M16: 20 | N16: 485 | P16: 190 | Q16: 140 | R16: -48 | S16: -0.2526315789
A17: Edinburgh | B17: 1940 | C17: 2105 | D17: 1960 | E17: 2170 | F17: 2045 | G17: 1930 | H17: 1785 | I17: 1845 | J17: 1755 | K17: 1600 | L17: 1465 | M17: 1490 | N17: 22080 | P17: 7605 | Q17: 6310 | R17: -1289 | S17: -0.1694937541
A18: Eilean Siar | B18: 5 | C18: 5 | D18: 0 | E18: 5 | F18: 0 | G18: 0 | H18: 5 | I18: 5 | J18: 0 | K18: 0 | L18: 0 | M18: 0 | N18: 35 | P18: 10 | Q18: 0 | R18: -4 | S18: -0.4
A19: Falkirk | B19: 565 | C19: 580 | D19: 435 | E19: 475 | F19: 440 | G19: 470 | H19: 395 | I19: 520 | J19: 485 | K19: 515 | L19: 450 | M19: 540 | N19: 5870 | P19: 1825 | Q19: 1990 | R19: 155 | S19: 0.08493150685
A20: Fife | B20: 805 | C20: 830 | D20: 650 | E20: 905 | F20: 840 | G20: 715 | H20: 560 | I20: 695 | J20: 695 | K20: 690 | L20: 570 | M20: 680 | N20: 8635 | P20: 2810 | Q20: 2635 | R20: -178 | S20: -0.06334519573
A21: Glasgow City | B21: 3685 | C21: 3210 | D21: 2845 | E21: 3325 | F21: 2115 | G21: 2720 | H21: 2385 | I21: 2890 | J21: 2525 | K21: 2520 | L21: 2085 | M21: 2545 | N21: 32850 | P21: 10110 | Q21: 9675 | R21: -433 | S21: -0.04282888229
A22: Highland | B22: 490 | C22: 490 | D22: 345 | E22: 400 | F22: 465 | G22: 430 | H22: 320 | I22: 310 | J22: 150 | K22: 115 | L22: 60 | M22: 55 | N22: 3630 | P22: 1525 | Q22: 380 | R22: -1142 | S22: -0.748852459
A23: Inverclyde | B23: 225 | C23: 305 | D23: 215 | E23: 250 | F23: 240 | G23: 215 | H23: 205 | I23: 265 | J23: 235 | K23: 210 | L23: 225 | M23: 275 | N23: 2865 | P23: 925 | Q23: 945 | R23: 23 | S23: 0.02486486486
A24: Midlothian | B24: 160 | C24: 130 | D24: 90 | E24: 125 | F24: 125 | G24: 90 | H24: 85 | I24: 115 | J24: 100 | K24: 110 | L24: 90 | M24: 80 | N24: 1300 | P24: 415 | Q24: 380 | R24: -31 | S24: -0.07469879518
A25: Moray | B25: 325 | C25: 305 | D25: 270 | E25: 340 | F25: 315 | G25: 230 | H25: 225 | I25: 325 | J25: 255 | K25: 265 | L25: 240 | M25: 310 | N25: 3415 | P25: 1095 | Q25: 1070 | R25: -21 | S25: -0.01917808219
A26: North Ayrshire | B26: 470 | C26: 480 | D26: 410 | E26: 565 | F26: 470 | G26: 480 | H26: 380 | I26: 465 | J26: 430 | K26: 375 | L26: 320 | M26: 415 | N26: 5260 | P26: 1795 | Q26: 1540 | R26: -251 | S26: -0.1398328691
A27: North Lanarkshire | B27: 920 | C27: 875 | D27: 740 | E27: 995 | F27: 900 | G27: 925 | H27: 725 | I27: 875 | J27: 835 | K27: 825 | L27: 905 | M27: 630 | N27: 10145 | P27: 3425 | Q27: 3195 | R27: -221 | S27: -0.06452554745
A28: Orkney | B28: 10 | C28: 15 | D28: 15 | E28: 15 | F28: 10 | G28: 20 | H28: 10 | I28: 20 | J28: 10 | K28: 10 | L28: 5 | M28: 0 | N28: 140 | P28: 60 | Q28: 25 | R28: -31 | S28: -0.5166666667
A29: Perth & Kinross | B29: 560 | C29: 510 | D29: 415 | E29: 480 | F29: 425 | G29: 475 | H29: 355 | I29: 405 | J29: 410 | K29: 460 | L29: 375 | M29: 550 | N29: 5415 | P29: 1660 | Q29: 1795 | R29: 139 | S29: 0.08373493976
A30: Renfrewshire | B30: 460 | C30: 520 | D30: 460 | E30: 550 | F30: 535 | G30: 520 | H30: 470 | I30: 585 | J30: 530 | K30: 540 | L30: 485 | M30: 535 | N30: 6185 | P30: 2110 | Q30: 2090 | R30: -16 | S30: -0.007582938389
A31: Scottish Borders | B31: 275 | C31: 255 | D31: 200 | E31: 270 | F31: 260 | G31: 240 | H31: 160 | I31: 205 | J31: 210 | K31: 220 | L31: 165 | M31: 255 | N31: 2715 | P31: 865 | Q31: 850 | R31: -21 | S31: -0.02427745665
A32: Shetland | B32: 100 | C32: 65 | D32: 75 | E32: 65 | F32: 40 | G32: 40 | H32: 45 | I32: 40 | J32: 50 | K32: 45 | L32: 55 | M32: 50 | N32: 670 | P32: 165 | Q32: 200 | R32: 35 | S32: 0.2121212121
A33: South Ayrshire | B33: 240 | C33: 230 | D33: 245 | E33: 350 | F33: 365 | G33: 395 | H33: 355 | I33: 450 | J33: 310 | K33: 260 | L33: 225 | M33: 205 | N33: 3640 | P33: 1565 | Q33: 1000 | R33: -566 | S33: -0.3616613419
A34: South Lanarkshire | B34: 345 | C34: 365 | D34: 255 | E34: 335 | F34: 260 | G34: 315 | H34: 235 | I34: 265 | J34: 225 | K34: 195 | L34: 170 | M34: 230 | N34: 3195 | P34: 1075 | Q34: 820 | R34: -257 | S34: -0.2390697674
A35: Stirling | B35: 200 | C35: 235 | D35: 155 | E35: 50 | F35: 100 | G35: 105 | H35: 80 | I35: 130 | J35: 105 | K35: 90 | L35: 50 | M35: 65 | N35: 1365 | P35: 415 | Q35: 310 | R35: -102 | S35: -0.2457831325
A36: West Dunbartonshire | B36: 420 | C36: 465 | D36: 385 | E36: 385 | F36: 285 | G36: 45 | H36: 20 | I36: 35 | J36: 40 | K36: 60 | L36: 40 | M36: 55 | N36: 2240 | P36: 385 | Q36: 195 | R36: -188 | S36: -0.4883116883
A37: West Lothian | B37: 370 | C37: 430 | D37: 315 | E37: 430 | F37: 330 | G37: 340 | H37: 275 | I37: 370 | J37: 335 | K37: 300 | L37: 255 | M37: 180 | N37: 3925 | P37: 1315 | Q37: 1070 | R37: -246 | S37: -0.1870722433
A39: Disclosure Control has been applied to this table. All cells have been rounded to the nearest five.
A40: Column totals may not sum to total of individual cells due to rounding.

Sheet Chart 1 - Approaches by Month
A1: Chart 1: Number of Housing Options Approaches by Month | M1: Back to Contents
A48: 2014 | J48: 2015 | V48: 2016 | AH48: 2017
A49: Apr | B49: May | C49: Jun | D49: Jul | E49: Aug | F49: Sep | G49: Oct | H49: Nov | I49: Dec | J49: Jan | K49: Feb | L49: Mar | M49: Apr | N49: May | O49: Jun | P49: Jul | Q49: Aug | R49: Sep | S49: Oct | T49: Nov | U49: Dec | V49: Jan | W49: Feb | X49: Mar | Y49: Apr | Z49: May | AA49: Jun | AB49: Jul | AC49: Aug | AD49: Sep | AE49: Oct | AF49: Nov | AG49: Dec | AH49: Jan | AI49: Feb | AJ49: Mar
A50: 5411 | B50: 5128 | C50: 5477 | D50: 5467 | E50: 5283 | F50: 5423 | G50: 5527 | H50: 4671 | I50: 3652 | J50: 5548 | K50: 5494 | L50: 5826 | M50: 4885 | N50: 4786 | O50: 4965 | P50: 4706 | Q50: 4975 | R50: 4835 | S50: 4687 | T50: 4405 | U50: 3198 | V50: 4733 | W50: 4908 | X50: 5025 | Y50: 4472 | Z50: 4337 | AA50: 4533 | AB50: 4008 | AC50: 4622 | AD50: 4457 | AE50: 4179 | AF50: 4034 | AG50: 2842 | AH50: 4336 | AI50: 4063 | AJ50: 4242
R53: =R50-L50 -> -991 | S53: =S50-M50 -> -198 | T53: -381 | U53: -1767 | V53: 27 | W53: -67 | X53: 190
R54: =R53/L50 -> -0.1700995537 | S54: =S53/M50 -> -0.04053224156 | T54: -0.07960718763 | U54: -0.3558912387 | V54: 0.005737356566 | W54: -0.01346733668 | X54: 0.03929679421

Sheet Table 2 - Unique Households
A1: Table 2: Unique household approaches as a percentage of households in each Local Authority
E2: Back to Contents
A3: Local Authority | B3: Number of households | C3: Unique household approaches for 2016/17 | D3: Unique household approaches as % of households within LA
C4: 1 April 2014 to 31 March 2015
A5: Scotland | B5: 2433956 | C5: 45061 | D5: =C5/B5 -> 0.01851348176
A6: Aberdeen City | B6: 105311 | C6: 4465 | D6: =C6/B6 -> 0.04239823
A7: Aberdeenshire | B7: 109631 | C7: 1623 | D7: 0.01480420684
A8: Angus | B8: 53142 | C8: 861 | D8: 0.01620187422
A9: Argyll & Bute | B9: 40938 | C9: 1361 | D9: 0.03324539548
A10: Clackmannanshire | B10: 23333 | C10: 457 | D10: 0.01958599409
A11: Dumfries & Galloway | B11: 68999 | C11: 888 | D11: 0.01286975174
A12: Dundee City | B12: 69534 | C12: 1908 | D12: 0.02743981362
A13: East Ayrshire | B13: 54570 | C13: 89 | D13: 0.001630932747
A14: East Dunbartonshire | B14: 45008 | C14: 383 | D14: 0.008509598294
A15: East Lothian | B15: 44384 | C15: 191 | D15: 0.004303352559
A16: East Renfrewshire | B16: 38270 | C16: 130 | D16: 0.003396916645
A17: Edinburgh, City of | B17: 230831 | C17: 5753 | D17: 0.02492299561
A18: Eilean Siar | B18: 12968 | C18: 7 | D18: 0.0005397902529
A19: Falkirk | B19: 70431 | C19: 1665 | D19: 0.02364015845
A20: Fife | B20: 164705 | C20: 2391 | D20: 0.01451686348
A21: Glasgow City | B21: 290694 | C21: 8188 | D21: 0.02816707603
A22: Highland | B22: 106834 | C22: 375 | D22: 0.003510118502
A23: Inverclyde | B23: 37426 | C23: 723 | D23: 0.01931812109
A24: Midlothian | B24: 37069 | C24: 358 | D24: 0.009657665435
A25: Moray | B25: 41641 | C25: 1001 | D25: 0.02403880791
A26: North Ayrshire | B26: 63189 | C26: 1450 | D26: 0.02294703192
A27: North Lanarkshire | B27: 149282 | C27: 3104 | D27: 0.02079286183
A28: Orkney Islands | B28: 10146 | C28: 28 | D28: 0.002759708259
A29: Perth & Kinross | B29: 66545 | C29: 1617 | D29: 0.02429934631
A30: Renfrewshire | B30: 83245 | C30: 1829 | D30: 0.02197128957
A31: Scottish Borders | B31: 53351 | C31: 791 | D31: 0.01482633878
A32: Shetland Islands | B32: 10235 | C32: 191 | D32: 0.01866145579
A33: South Ayrshire | B33: 51912 | C33: 925 | D33: 0.01781861612
A34: South Lanarkshire | B34: 143313 | C34: 799 | D34: 0.005575209506
A35: Stirling | B35: 38665 | C35: 290 | D35: 0.00750032329
A36: West Dunbartonshire | B36: 42571 | C36: 190 | D36: 0.004463132179
A37: West Lothian | B37: 75782 | C37: 1030 | D37: 0.01359161806
A39: Sources:
A40: 1) National Records of Scotland: Estimates of Households and Dwellings in Scotland, 2015
A41: http://www.gro-scotland.gov.uk/statistics-and-data/statistics/statistics-by-theme/housholds/household-estimates
A48: Data for chart
A49: Eilean Siar | B49: 5.397902529 | F49: Scotland | G49: =C5/B5*10000 -> 185.1348176
A50: East Ayrshire | B50: 16.30932747 | F50: Aberdeen City | G50: 423.9823
A51: Orkney Islands | B51: 27.59708259 | F51: Aberdeenshire | G51: 148.0420684
A52: East Renfrewshire | B52: 33.96916645 | F52: Angus | G52: 162.0187422
A53: Highland | B53: 35.10118502 | F53: Argyll & Bute | G53: 332.4539548
A54: East Lothian | B54: 43.03352559 | F54: Clackmannanshire | G54: 195.8599409
A55: West Dunbartonshire | B55: 44.63132179 | F55: Dumfries & Galloway | G55: 128.6975174
A56: South Lanarkshire | B56: 55.75209506 | F56: Dundee City | G56: 274.3981362
A57: Stirling | B57: 75.0032329 | F57: East Ayrshire | G57: 16.30932747
A58: East Dunbartonshire | B58: 85.09598294 | F58: East Dunbartonshire | G58: 85.09598294
A59: Midlothian | B59: 96.57665435 | F59: East Lothian | G59: 43.03352559
A60: Dumfries & Galloway | B60: 128.6975174 | F60: East Renfrewshire | G60: 33.96916645
A61: West Lothian | B61: 135.9161806 | F61: Edinburgh, City of | G61: 249.2299561
A62: Fife | B62: 145.1686348 | F62: Eilean Siar | G62: 5.397902529
A63: Aberdeenshire | B63: 148.0420684 | F63: Falkirk | G63: 236.4015845
A64: Scottish Borders | B64: 148.2633878 | F64: Fife | G64: 145.1686348
A65: Angus | B65: 162.0187422 | F65: Glasgow City | G65: 281.6707603
A66: South Ayrshire | B66: 178.1861612 | F66: Highland | G66: 35.10118502
A67: Scotland | B67: 185.1348176 | F67: Inverclyde | G67: 193.1812109
A68: Shetland Islands | B68: 186.6145579 | F68: Midlothian | G68: 96.57665435
A69: Inverclyde | B69: 193.1812109 | F69: Moray | G69: 240.3880791
A70: Clackmannanshire | B70: 195.8599409 | F70: North Ayrshire | G70: 229.4703192
A71: North Lanarkshire | B71: 207.9286183 | F71: North Lanarkshire | G71: 207.9286183
A72: Renfrewshire | B72: 219.7128957 | F72: Orkney Islands | G72: 27.59708259
A73: North Ayrshire | B73: 229.4703192 | F73: Perth & Kinross | G73: 242.9934631
A74: Falkirk | B74: 236.4015845 | F74: Renfrewshire | G74: 219.7128957
A75: Moray | B75: 240.3880791 | F75: Scottish Borders | G75: 148.2633878
A76: Perth & Kinross | B76: 242.9934631 | F76: Shetland Islands | G76: 186.6145579
A77: Edinburgh, City of | B77: 249.2299561 | F77: South Ayrshire | G77: 178.1861612
A78: Dundee City | B78: 274.3981362 | F78: South Lanarkshire | G78: 55.75209506
A79: Glasgow City | B79: 281.6707603 | F79: Stirling | G79: 75.0032329
A80: Argyll & Bute | B80: 332.4539548 | F80: West Dunbartonshire | G80: 44.63132179
A81: Aberdeen City | B81: 423.9823 | F81: West Lothian | G81: 135.9161806

Sheet Chart 2 - Rates of Approaches
A1: Chart 2: Rates of Approaches per 10,000 households | N1: Back to Contents
A2: Households making approaches between 1 April 2016 and 31 March 2017

Sheet Table 3 - Open Approaches
A1: Table 3: Open Approaches at the end of each quarter by LA | K1: Back to Contents | O1: Back to Contents
A3: Local Authority | B3: Number of Approaches Open at the end of each Quarter | P3: Approaches received 1 April 2014 to 31 March 2017 (from Table1) | Q3: Open Approaches as a % of all Approaches
B4: 2014-06-30 | C4: 2014-09-30 | D4: 2014-12-31 | E4: 2015-03-31 | F4: 2015-06-30 | G4: 2015-09-30 | H4: 2015-12-31 | I4: 2016-03-31 | J4: 2016-06-30 | K4: 2016-09-30 | L4: 2016-12-31 | M4: 2017-03-31 | S4: local authority proportions 2016/17
A5: Scotland | B5: 7440 | C5: 9620 | D5: 10180 | E5: 13695 | F5: 15670 | G5: 16990 | H5: 16430 | I5: 18045 | J5: 18665 | K5: 19540 | L5: 19200 | M5: 17650 | P5: 169140 | Q5: 0.1043514249 | S5: =M5/$M$5 -> 1
A6: Aberdeen City | B6: 710 | C6: 1165 | D6: 1395 | E6: 2450 | F6: 3490 | G6: 4175 | H6: 4695 | I6: 5360 | J6: 5660 | K6: 5700 | L6: 5520 | M6: 3960 | P6: 17168 | Q6: 0.2306616962 | S6: =M6/$M$5 -> 0.2243626062
A7: Aberdeenshire | B7: 125 | C7: 150 | D7: 190 | E7: 235 | F7: 235 | G7: 275 | H7: 235 | I7: 370 | J7: 365 | K7: 240 | L7: 215 | M7: 200 | P7: 5971 | Q7: 0.03349522693 | S7: =M7/$M$5 -> 0.01133144476
A8: Angus | B8: 85 | C8: 105 | D8: 105 | E8: 150 | F8: 195 | G8: 195 | H8: 175 | I8: 175 | J8: 220 | K8: 250 | L8: 175 | M8: 85 | P8: 2879 | Q8: 0.02952414033 | S8: 0.004815864023
A9: Argyll & Bute | B9: 45 | C9: 10 | D9: 110 | E9: 270 | F9: 315 | G9: 275 | H9: 330 | I9: 340 | J9: 410 | K9: 495 | L9: 425 | M9: 435 | P9: 4787 | Q9: 0.09087110925 | S9: 0.02464589235
A10: Clackmannanshire | B10: 10 | C10: 25 | D10: 25 | E10: 25 | F10: 15 | G10: 25 | H10: 35 | I10: 15 | J10: 40 | K10: 15 | L10: 25 | M10: 130 | P10: 736 | Q10: 0.1766304348 | S10: 0.007365439093
A11: Dumfries & Galloway | B11: 160 | C11: 185 | D11: 180 | E11: 225 | F11: 245 | G11: 235 | H11: 255 | I11: 240 | J11: 180 | K11: 205 | L11: 45 | M11: 65 | P11: 2725 | Q11: 0.02385321101 | S11: 0.003682719547
A12: Dundee City | B12: 175 | C12: 215 | D12: 60 | E12: 105 | F12: 275 | G12: 255 | H12: 145 | I12: 220 | J12: 170 | K12: 145 | L12: 120 | M12: 150 | P12: 6805 | Q12: 0.02204261572 | S12: 0.008498583569
A13: East Ayrshire | B13: 50 | C13: 70 | D13: 55 | E13: 45 | F13: 30 | G13: 20 | H13: 5 | I13: 20 | J13: 25 | K13: 35 | L13: 40 | M13: 30 | P13: 292 | Q13: 0.102739726 | S13: 0.001699716714
A14: East Dunbartonshire | B14: 10 | C14: 20 | D14: 25 | E14: 20 | F14: 30 | G14: 20 | H14: 20 | I14: 30 | J14: 30 | K14: 35 | L14: 35 | M14: 55 | P14: 714 | Q14: 0.07703081232 | S14: 0.003116147309
A15: East Lothian | B15: 80 | C15: 95 | D15: 35 | E15: 80 | F15: 55 | G15: 60 | H15: 40 | I15: 45 | J15: 25 | K15: 25 | L15: 25 | M15: 35 | P15: 993 | Q15: 0.03524672709 | S15: 0.001983002833
A16: East Renfrewshire | B16: 45 | C16: 95 | D16: 60 | E16: 60 | F16: 60 | G16: 90 | H16: 95 | I16: 115 | J16: 100 | K16: 100 | L16: 95 | M16: 55 | P16: 484 | Q16: 0.1136363636 | S16: 0.003116147309
A17: Edinburgh | B17: 1050 | C17: 1725 | D17: 2015 | E17: 2555 | F17: 2785 | G17: 2835 | H17: 2805 | I17: 2875 | J17: 2955 | K17: 3075 | L17: 3100 | M17: 3235 | P17: 22081 | Q17: 0.1465060459 | S17: 0.183286119
A18: Eilean Siar | B18: 5 | C18: 5 | D18: 5 | E18: 5 | F18: 5 | G18: 5 | H18: 10 | I18: 5 | J18: 5 | K18: 5 | L18: 5 | M18: 5 | P18: 36 | Q18: 0.1388888889 | S18: 0.000283286119
A19: Falkirk | B19: 430 | C19: 665 | D19: 840 | E19: 290 | F19: 245 | G19: 265 | H19: 190 | I19: 130 | J19: 100 | K19: 90 | L19: 80 | M19: 35 | P19: 5871 | Q19: 0.005961505706 | S19: 0.001983002833
A20: Fife | B20: 230 | C20: 335 | D20: 185 | E20: 435 | F20: 395 | G20: 455 | H20: 495 | I20: 835 | J20: 920 | K20: 1190 | L20: 1325 | M20: 1580 | P20: 8633 | Q20: 0.1830186494 | S20: 0.0895184136
A21: Glasgow City | B21: 1245 | C21: 1150 | D21: 1160 | E21: 1760 | F21: 1825 | G21: 2290 | H21: 1790 | I21: 1405 | J21: 1430 | K21: 1715 | L21: 1310 | M21: 690 | P21: 32852 | Q21: 0.02100328747 | S21: 0.03909348442
A22: Highland | B22: 240 | C22: 265 | D22: 205 | E22: 490 | F22: 390 | G22: 280 | H22: 240 | I22: 305 | J22: 160 | K22: 170 | L22: 145 | M22: 70 | P22: 3631 | Q22: 0.01927843569 | S22: 0.003966005666
A23: Inverclyde | B23: 170 | C23: 325 | D23: 335 | E23: 320 | F23: 335 | G23: 340 | H23: 295 | I23: 305 | J23: 320 | K23: 305 | L23: 340 | M23: 400 | P23: 2866 | Q23: 0.1395673412 | S23: 0.02266288952
A24: Midlothian | B24: 125 | C24: 185 | D24: 155 | E24: 140 | F24: 170 | G24: 190 | H24: 235 | I24: 345 | J24: 405 | K24: 470 | L24: 490 | M24: 530 | P24: 1301 | Q24: 0.4073789393 | S24: 0.03002832861
A25: Moray | B25: 170 | C25: 190 | D25: 170 | E25: 220 | F25: 225 | G25: 150 | H25: 110 | I25: 200 | J25: 155 | K25: 165 | L25: 115 | M25: 185 | P25: 3414 | Q25: 0.05418863503 | S25: 0.0104815864
A26: North Ayrshire | B26: 220 | C26: 500 | D26: 605 | E26: 815 | F26: 880 | G26: 1045 | H26: 1090 | I26: 1025 | J26: 1025 | K26: 705 | L26: 585 | M26: 560 | P26: 5258 | Q26: 0.1065043743 | S26: 0.03172804533
A27: North Lanarkshire | B27: 385 | C27: 445 | D27: 355 | E27: 550 | F27: 760 | G27: 635 | H27: 500 | I27: 685 | J27: 920 | K27: 1335 | L27: 2060 | M27: 2435 | P27: 10147 | Q27: 0.2399724056 | S27: 0.1379603399
A28: Orkney | B28: 10 | C28: 25 | D28: 20 | E28: 20 | F28: 25 | G28: 25 | H28: 20 | I28: 20 | J28: 15 | K28: 25 | L28: 15 | M28: 5 | P28: 142 | Q28: 0.03521126761 | S28: 0.000283286119
A29: Perth & Kinross | B29: 300 | C29: 335 | D29: 355 | E29: 485 | F29: 485 | G29: 575 | H29: 590 | I29: 525 | J29: 595 | K29: 690 | L29: 765 | M29: 600 | P29: 5417 | Q29: 0.1107624146 | S29: 0.03399433428
A30: Renfrewshire | B30: 275 | C30: 240 | D30: 280 | E30: 300 | F30: 335 | G30: 315 | H30: 290 | I30: 365 | J30: 365 | K30: 425 | L30: 410 | M30: 370 | P30: 6186 | Q30: 0.05981247979 | S30: 0.0209631728
A31: Scottish Borders | B31: 120 | C31: 135 | D31: 110 | E31: 165 | F31: 175 | G31: 150 | H31: 125 | I31: 150 | J31: 160 | K31: 145 | L31: 120 | M31: 145 | P31: 2717 | Q31: 0.05336768495 | S31: 0.00821529745
A32: Shetland | B32: 50 | C32: 75 | D32: 110 | E32: 115 | F32: 130 | G32: 135 | H32: 145 | I32: 155 | J32: 150 | K32: 140 | L32: 150 | M32: 150 | P32: 668 | Q32: 0.2245508982 | S32: 0.008498583569
A33: South Ayrshire | B33: 135 | C33: 200 | D33: 220 | E33: 355 | F33: 460 | G33: 535 | H33: 390 | I33: 475 | J33: 465 | K33: 370 | L33: 240 | M33: 225 | P33: 3638 | Q33: 0.06184716877 | S33: 0.01274787535
A34: South Lanarkshire | B34: 465 | C34: 300 | D34: 440 | E34: 480 | F34: 490 | G34: 595 | H34: 560 | I34: 680 | J34: 680 | K34: 595 | L34: 570 | M34: 625 | P34: 3197 | Q34: 0.1954957773 | S34: 0.03541076487
A35: Stirling | B35: 125 | C35: 135 | D35: 115 | E35: 155 | F35: 215 | G35: 210 | H35: 190 | I35: 210 | J35: 165 | K35: 170 | L35: 140 | M35: 170 | P35: 1367 | Q35: 0.1243599122 | S35: 0.009631728045
A36: West Dunbartonshire | B36: 100 | C36: 140 | D36: 135 | E36: 155 | F36: 110 | G36: 45 | H36: 40 | I36: 55 | J36: 60 | K36: 75 | L36: 75 | M36: 75 | P36: 2239 | Q36: 0.03349709692 | S36: 0.004249291785
A37: West Lothian | B37: 90 | C37: 115 | D37: 130 | E37: 220 | F37: 280 | G37: 280 | H37: 290 | I37: 370 | J37: 390 | K37: 440 | L37: 450 | M37: 345 | P37: 3925 | Q37: 0.08789808917 | S37: 0.01954674221
A39: Disclosure Control has been applied to this table. All cells have been rounded to the nearest five.
A40: Row totals may not sum to total of individual cells due to rounding.
A42: Chart Data - Open Cases
B43: =Q3 -> Open Approaches as a % of all Approaches
A44: Falkirk | B44: 0.005961505706
A45: Highland | B45: 0.01927843569
A46: Glasgow City | B46: 0.02100328747
A47: Dundee City | B47: 0.02204261572
A48: Dumfries & Galloway | B48: 0.02385321101
A49: Angus | B49: 0.02952414033
A50: Aberdeenshire | B50: 0.03349522693
A51: West Dunbartonshire | B51: 0.03349709692
A52: Orkney | B52: 0.03521126761
A53: East Lothian | B53: 0.03524672709
A54: Scottish Borders | B54: 0.05336768495
A55: Moray | B55: 0.05418863503
A56: Renfrewshire | B56: 0.05981247979
A57: South Ayrshire | B57: 0.06184716877
A58: East Dunbartonshire | B58: 0.07703081232
A59: West Lothian | B59: 0.08789808917
A60: Argyll & Bute | B60: 0.09087110925
A61: East Ayrshire | B61: 0.102739726
A62: Scotland | B62: 0.1043514249
A63: North Ayrshire | B63: 0.1065043743
A64: Perth & Kinross | B64: 0.1107624146
A65: East Renfrewshire | B65: 0.1136363636
A66: Stirling | B66: 0.1243599122
A67: Eilean Siar | B67: 0.1388888889
A68: Inverclyde | B68: 0.1395673412
A69: Edinburgh | B69: 0.1465060459
A70: Clackmannanshire | B70: 0.1766304348
A71: Fife | B71: 0.1830186494
A72: South Lanarkshire | B72: 0.1954957773
A73: Shetland | B73: 0.2245508982
A74: Aberdeen City | B74: 0.2306616962
A75: North Lanarkshire | B75: 0.2399724056
A76: Midlothian | B76: 0.4073789393
A79: Note: To calculate these figures, see 'Calculating open approaches.xlsx' in the publication folder

Sheet Chart 3a & 3b - Open Approaches
A1: Chart 3a: Open Approaches at the end of each quarter - Scotland | K1: Back to Contents
A25: Chart 3b: Open approaches as a proportion of all approaches received between 1 April 2014 and 31 March 2017

Sheet Chart 3c
A1: Chart 3c: Distribution of the number of days approaches have been open for | G1: Back to Contents
A63: Working for Chart 15: For Approaches open on 31 March 2017, how long have they been open for?
A65: Local Authority | B65: Number of Open Approaches on 31 March 2016 | C65: Number of days between Approach Date and 31 March 2017
C66: P5 | D66: Q1 | E66: Median | F66: Q3 | G66: P95
A67: Scotland | B67: 17650 | C67: 9 | D67: 64 | E67: 207 | F67: 445 | G67: 889
A68: Aberdeen City | B68: 3962 | C68: 29 | D68: 228 | E68: 499 | F68: 679 | G68: 884
A69: Aberdeenshire | B69: 202 | C69: 1 | D69: 15 | E69: 29 | F69: 56 | G69: 162
A70: Angus | B70: 85 | C70: 3 | D70: 23 | E70: 63 | F70: 185 | G70: 921
A71: Argyll & Bute | B71: 436 | C71: 2 | D71: 26 | E71: 86 | F71: 326 | G71: 773
A72: Clackmannanshire | B72: 128 | C72: 3 | D72: 17 | E72: 37 | F72: 60 | G72: 253
A73: Dumfries & Galloway | B73: 64 | C73: 14 | D73: 48 | E73: 76 | F73: 222 | G73: 421
A74: Dundee City | B74: 152 | C74: 0 | D74: 9 | E74: 28 | F74: 46 | G74: 598
A75: East Ayrshire | B75: 30 | C75: 23 | D75: 45 | E75: 75 | F75: 169 | G75: 340
A76: East Dunbartonshire | B76: 57 | C76: 10 | D76: 51 | E76: 120 | F76: 889 | G76: 1066
A77: East Lothian | B77: 37 | C77: 3 | D77: 15 | E77: 25 | F77: 60 | G77: 178
A78: East Renfrewshire | B78: 54 | C78: 29 | D78: 190 | E78: 835 | F78: 871 | G78: 1054
A79: Edinburgh | B79: 3233 | C79: 10 | D79: 67 | E79: 171 | F79: 302 | G79: 522
A80: Eilean Siar | B80: 4 | C80: 19 | D80: 39 | E80: 216 | F80: 558 | G80: 743
A81: Falkirk | B81: 36 | C81: 3 | D81: 18 | E81: 36 | F81: 52 | G81: 112
A82: Fife | B82: 1580 | C82: 11 | D82: 81 | E82: 237 | F82: 422 | G82: 684
A83: Glasgow City | B83: 691 | C83: 1 | D83: 16 | E83: 42 | F83: 141 | G83: 365
A84: Highland | B84: 72 | C84: 11 | D84: 74 | E84: 359 | F84: 835 | G84: 844
A85: Inverclyde | B85: 402 | C85: 8 | D85: 42 | E85: 113 | F85: 385 | G85: 1043
A86: Midlothian | B86: 531 | C86: 35 | D86: 192 | E86: 378 | F86: 583 | G86: 1011
A87: Moray | B87: 185 | C87: 1 | D87: 16 | E87: 38 | F87: 64 | G87: 170
A88: North Ayrshire | B88: 562 | C88: 9 | D88: 45 | E88: 143 | F88: 319 | G88: 773
A89: North Lanarkshire | B89: 2433 | C89: 23 | D89: 122 | E89: 182 | F89: 253 | G89: 520
A90: Orkney | B90: 5 | C90: 8 | D90: 44 | E90: 112 | F90: 219 | G90: 245
A91: Perth & Kinross | B91: 599 | C91: 3 | D91: 37 | E91: 141 | F91: 287 | G91: 732
A92: Renfrewshire | B92: 370 | C92: 2 | D92: 24 | E92: 208 | F92: 1003 | G92: 1044
A93: Scottish Borders | B93: 145 | C93: 3 | D93: 16 | E93: 45 | F93: 108 | G93: 270
A94: Shetland | B94: 152 | C94: 15 | D94: 163 | E94: 538 | F94: 865 | G94: 1038
A95: South Ayrshire | B95: 224 | C95: 15 | D95: 35 | E95: 64 | F95: 185 | G95: 610
A96: South Lanarkshire | B96: 626 | C96: 24 | D96: 73 | E96: 470 | F96: 780 | G96: 1016
A97: Stirling | B97: 170 | C97: 7 | D97: 81 | E97: 832 | F97: 889 | G97: 982
A98: West Dunbartonshire | B98: 76 | C98: 3 | D98: 27 | E98: 85 | F98: 920 | G98: 1081
A99: West Lothian | B99: 347 | C99: 9 | D99: 51 | E99: 233 | F99: 471 | G99: 802
A101: Notes
A102: P5 = 5th Percentile. 5% of approaches have been open for this many days.
A103: Q1 = First Quartile. 25% of approaches have been open for this many days.
A104: Median. 50% of approaches have been open for this many days.
A105: Q3 = First Quartile. 75% of approaches have been open for this many days. Conversely, 25% of cases have been open for more than this number of days.
A106: P95 = 95th Percentile. 5% of approaches have been open for more than this number of days.
A109: Data for Box Plot
B111: Number of days between Approach Date and 31 March 2016
A112: Local Authority | B112: P5 | C112: Q1 | D112: Median | E112: Q3 | F112: P95
A113: East Lothian | B113: 3 | C113: 15 | D113: 25 | E113: 60 | F113: 178
A114: Dundee City | B114: 0 | C114: 9 | D114: 28 | E114: 46 | F114: 598
A115: Aberdeenshire | B115: 1 | C115: 15 | D115: 29 | E115: 56 | F115: 162
A116: Falkirk | B116: 3 | C116: 18 | D116: 36 | E116: 52 | F116: 112
A117: Clackmannanshire | B117: 3 | C117: 17 | D117: 37 | E117: 60 | F117: 253
A118: Moray | B118: 1 | C118: 16 | D118: 38 | E118: 64 | F118: 170
A119: Glasgow City | B119: 1 | C119: 16 | D119: 42 | E119: 141 | F119: 365
A120: Scottish Borders | B120: 3 | C120: 16 | D120: 45 | E120: 108 | F120: 270
A121: Angus | B121: 3 | C121: 23 | D121: 63 | E121: 185 | F121: 921
A122: South Ayrshire | B122: 15 | C122: 35 | D122: 64 | E122: 185 | F122: 610
A123: East Ayrshire | B123: 23 | C123: 45 | D123: 75 | E123: 169 | F123: 340
A124: Dumfries & Galloway | B124: 14 | C124: 48 | D124: 76 | E124: 222 | F124: 421
A125: West Dunbartonshire | B125: 3 | C125: 27 | D125: 85 | E125: 920 | F125: 1081
A126: Argyll & Bute | B126: 2 | C126: 26 | D126: 86 | E126: 326 | F126: 773
A127: Orkney | B127: 8 | C127: 44 | D127: 112 | E127: 219 | F127: 245
A128: Inverclyde | B128: 8 | C128: 42 | D128: 113 | E128: 385 | F128: 1043
A129: East Dunbartonshire | B129: 10 | C129: 51 | D129: 120 | E129: 889 | F129: 1066
A130: Perth & Kinross | B130: 3 | C130: 37 | D130: 141 | E130: 287 | F130: 732
A131: North Ayrshire | B131: 9 | C131: 45 | D131: 143 | E131: 319 | F131: 773
A132: Edinburgh | B132: 10 | C132: 67 | D132: 171 | E132: 302 | F132: 522
A133: North Lanarkshire | B133: 23 | C133: 122 | D133: 182 | E133: 253 | F133: 520
A134: Scotland | B134: 9 | C134: 64 | D134: 207 | E134: 445 | F134: 889
A135: Renfrewshire | B135: 2 | C135: 24 | D135: 208 | E135: 1003 | F135: 1044
A136: Eilean Siar | B136: 19 | C136: 39 | D136: 216 | E136: 558 | F136: 743
A137: West Lothian | B137: 9 | C137: 51 | D137: 233 | E137: 471 | F137: 802
A138: Fife | B138: 11 | C138: 81 | D138: 237 | E138: 422 | F138: 684
A139: Highland | B139: 11 | C139: 74 | D139: 359 | E139: 835 | F139: 844
A140: Midlothian | B140: 35 | C140: 192 | D140: 378 | E140: 583 | F140: 1011
A141: South Lanarkshire | B141: 24 | C141: 73 | D141: 470 | E141: 780 | F141: 1016
A142: Aberdeen City | B142: 29 | C142: 228 | D142: 499 | E142: 679 | F142: 884
A143: Shetland | B143: 15 | C143: 163 | D143: 538 | E143: 865 | F143: 1038
A144: Stirling | B144: 7 | C144: 81 | D144: 832 | E144: 889 | F144: 982
A145: East Renfrewshire | B145: 29 | C145: 190 | D145: 835 | E145: 871 | F145: 1054
A147: =A112 -> Local Authority | B147: Q1 | C147: Median-Q1 | D147: Q3-Median | E147: Q1-P5 | F147: P95-Q3 | G147: Median
A148: East Lothian | B148: =C113 -> 15 | C148: =D113-C113 -> 10 | D148: =E113-D113 -> 35 | E148: =C113-B113 -> 12 | F148: =F113-E113 -> 118 | G148: =D113 -> 25
A149: Dundee City | B149: =C114 -> 9 | C149: =D114-C114 -> 19 | D149: 18 | E149: =C114-B114 -> 9 | F149: =F114-E114 -> 552 | G149: =D114 -> 28
A150: Aberdeenshire | B150: 15 | C150: =D115-C115 -> 14 | D150: 27 | E150: 14 | F150: 106 | G150: 29
A151: Falkirk | B151: 18 | C151: =D116-C116 -> 18 | D151: 16 | E151: 15 | F151: 60 | G151: 36
A152: Clackmannanshire | B152: 17 | C152: =D117-C117 -> 20 | D152: 23 | E152: 14 | F152: 193 | G152: 37
A153: Moray | B153: 16 | C153: =D118-C118 -> 22 | D153: 26 | E153: 15 | F153: 106 | G153: 38
A154: Glasgow City | B154: 16 | C154: =D119-C119 -> 26 | D154: 99 | E154: 15 | F154: 224 | G154: 42
A155: Scottish Borders | B155: 16 | C155: =D120-C120 -> 29 | D155: 63 | E155: 13 | F155: 162 | G155: 45
A156: Angus | B156: 23 | C156: =D121-C121 -> 40 | D156: 122 | E156: 20 | F156: 736 | G156: 63
A157: South Ayrshire | B157: 35 | C157: =D122-C122 -> 29 | D157: 121 | E157: 20 | F157: 425 | G157: 64
A158: East Ayrshire | B158: 45 | C158: =D123-C123 -> 30 | D158: 94 | E158: 22 | F158: 171 | G158: 75
A159: Dumfries & Galloway | B159: 48 | C159: =D124-C124 -> 28 | D159: 146 | E159: 34 | F159: 199 | G159: 76
A160: West Dunbartonshire | B160: 27 | C160: =D125-C125 -> 58 | D160: 835 | E160: 24 | F160: 161 | G160: 85
A161: Argyll & Bute | B161: 26 | C161: =D126-C126 -> 60 | D161: 240 | E161: 24 | F161: 447 | G161: 86
A162: Orkney | B162: 44 | C162: =D127-C127 -> 68 | D162: 107 | E162: 36 | F162: 26 | G162: 112
A163: Inverclyde | B163: 42 | C163: =D128-C128 -> 71 | D163: 272 | E163: 34 | F163: 658 | G163: 113
A164: East Dunbartonshire | B164: 51 | C164: =D129-C129 -> 69 | D164: 769 | E164: 41 | F164: 177 | G164: 120
A165: Perth & Kinross | B165: 37 | C165: =D130-C130 -> 104 | D165: 146 | E165: 34 | F165: 445 | G165: 141
A166: North Ayrshire | B166: 45 | C166: =D131-C131 -> 98 | D166: 176 | E166: 36 | F166: 454 | G166: 143
A167: Edinburgh | B167: 67 | C167: =D132-C132 -> 104 | D167: 131 | E167: 57 | F167: 220 | G167: 171
A168: North Lanarkshire | B168: 122 | C168: =D133-C133 -> 60 | D168: 71 | E168: 99 | F168: 267 | G168: 182
A169: Scotland | B169: 64 | C169: =D134-C134 -> 143 | D169: 238 | E169: 55 | F169: 444 | G169: 207
A170: Renfrewshire | B170: 24 | C170: =D135-C135 -> 184 | D170: 795 | E170: 22 | F170: 41 | G170: 208
A171: Eilean Siar | B171: 39 | C171: =D136-C136 -> 177 | D171: 342 | E171: 20 | F171: 185 | G171: 216
A172: West Lothian | B172: 51 | C172: =D137-C137 -> 182 | D172: 238 | E172: 42 | F172: 331 | G172: 233
A173: Fife | B173: 81 | C173: =D138-C138 -> 156 | D173: 185 | E173: 70 | F173: 262 | G173: 237
A174: Highland | B174: 74 | C174: =D139-C139 -> 285 | D174: 476 | E174: 63 | F174: 9 | G174: 359
A175: Midlothian | B175: 192 | C175: =D140-C140 -> 186 | D175: 205 | E175: 157 | F175: 428 | G175: 378
A176: South Lanarkshire | B176: 73 | C176: =D141-C141 -> 397 | D176: 310 | E176: 49 | F176: 236 | G176: 470
A177: Aberdeen City | B177: 228 | C177: =D142-C142 -> 271 | D177: 180 | E177: 199 | F177: 205 | G177: 499
A178: Shetland | B178: 163 | C178: =D143-C143 -> 375 | D178: 327 | E178: 148 | F178: 173 | G178: 538
A179: Stirling | B179: 81 | C179: =D144-C144 -> 751 | D179: 57 | E179: 74 | F179: 93 | G179: 832
A180: East Renfrewshire | B180: =C145 -> 190 | C180: =D145-C145 -> 645 | D180: =E145-D145 -> 36 | E180: =C145-B145 -> 161 | F180: =F145-E145 -> 183 | G180: =D145 -> 835

Sheet Table 4 - Reasons
A1: Table 4a: Reasons for Approach (Number) | B1: Back to Contents
B3: Quarter of Approach
B4: 2014 Q2 | C4: 2014 Q3 | D4: 2014 Q4 | E4: 2015 Q1 | F4: 2015 Q2 | G4: 2015 Q3 | H4: 2015 Q4 | I4: 2016 Q1 | J4: 2016 Q2 | K4: 2016 Q3 | L4: 2016 Q4 | M4: 2017 Q1
A5: General housing options advice | B5: 1687 | C5: 1743 | D5: 1573 | E5: 2091 | F5: 1971 | G5: 2063 | H5: 1769 | I5: 2297 | J5: 1965 | K5: 1969 | L5: 1649 | M5: 1968
A6: Dispute within household / relationship breakdown: non-violent | B6: 2267 | C6: 2279 | D6: 1845 | E6: 2130 | F6: 1844 | G6: 1893 | H6: 1576 | I6: 1868 | J6: 1658 | K6: 1759 | L6: 1510 | M6: 1878
A7: Asked to leave | B7: 2358 | C7: 2463 | D7: 2053 | E7: 2462 | F7: 2125 | G7: 2100 | H7: 1780 | I7: 2111 | J7: 1967 | K7: 1765 | L7: 1448 | M7: 1787
A8: Other action by landlord resulting in the termination of the tenancy | B8: 1162 | C8: 1014 | D8: 823 | E8: 1202 | F8: 1039 | G8: 1040 | H8: 817 | I8: 1116 | J8: 1116 | K8: 967 | L8: 743 | M8: 1000
A9: Risk of losing accommodation | B9: 1265 | C9: 1240 | D9: 1205 | E9: 1458 | F9: 1272 | G9: 1119 | H9: 997 | I9: 1215 | J9: 1034 | K9: 1065 | L9: 895 | M9: 977
A10: Dispute within household: violent or abusive | B10: 934 | C10: 1041 | D10: 819 | E10: 937 | F10: 835 | G10: 878 | H10: 779 | I10: 834 | J10: 810 | K10: 783 | L10: 688 | M10: 780
A11: Termination of tenancy / mortgage due to rent arrears / default on payments | B11: 893 | C11: 871 | D11: 719 | E11: 904 | F11: 652 | G11: 576 | H11: 562 | I11: 628 | J11: 551 | K11: 454 | L11: 420 | M11: 537
A12: Discharge from prison / hospital / care / other institution | B12: 1150 | C12: 952 | D12: 719 | E12: 882 | F12: 672 | G12: 670 | H12: 522 | I12: 585 | J12: 598 | K12: 525 | L12: 539 | M12: 534
A13: Accommodation unsuitable | B13: 412 | C13: 558 | D13: 503 | E13: 585 | F13: 613 | G13: 617 | H13: 430 | I13: 530 | J13: 479 | K13: 611 | L13: 493 | M13: 484
A14: Other reason for leaving accommodation / household | B14: 631 | C14: 673 | D14: 509 | E14: 558 | F14: 473 | G14: 542 | H14: 508 | I14: 500 | J14: 473 | K14: 556 | L14: 412 | M14: 482
A15: Personal issues – affordability / financial difficulties | B15: 364 | C15: 376 | D15: 333 | E15: 468 | F15: 388 | G15: 383 | H15: 296 | I15: 364 | J15: 353 | K15: 428 | L15: 463 | M15: 416
A16: Other reason for loss of accommodation | B16: 446 | C16: 395 | D16: 367 | E16: 464 | F16: 310 | G16: 345 | H16: 326 | I16: 398 | J16: 430 | K16: 377 | L16: 355 | M16: 393
A17: Other | B17: 548 | C17: 655 | D17: 653 | E17: 726 | F17: 734 | G17: 696 | H17: 580 | I17: 660 | J17: 515 | K17: 437 | L17: 272 | M17: 202
A18: Overcrowding | B18: 315 | C18: 312 | D18: 270 | E18: 343 | F18: 254 | G18: 237 | H18: 220 | I18: 249 | J18: 189 | K18: 196 | L18: 153 | M18: 194
A19: Harassment | B19: 256 | C19: 283 | D19: 204 | E19: 214 | F19: 227 | G19: 207 | H19: 153 | I19: 162 | J19: 179 | K19: 187 | L19: 142 | M19: 177
A20: Fleeing non-domestic violence | B20: 273 | C20: 260 | D20: 214 | E20: 206 | F20: 211 | G20: 214 | H20: 175 | I20: 173 | J20: 199 | K20: 130 | L20: 134 | M20: 153
A21: Applicant terminated secure accommodation | B21: 169 | C21: 176 | D21: 159 | E21: 177 | F21: 148 | G21: 155 | H21: 130 | I21: 144 | J21: 112 | K21: 147 | L21: 113 | M21: 138
A22: Benefit issues & Welfare Reform | B22: 342 | C22: 216 | D22: 279 | E22: 331 | F22: 247 | G22: 157 | H22: 147 | I22: 183 | J22: 117 | K22: 211 | L22: 188 | M22: 129
A23: Property condition | B23: 139 | C23: 143 | D23: 146 | E23: 218 | F23: 136 | G23: 127 | H23: 138 | I23: 165 | J23: 102 | K23: 97 | L23: 94 | M23: 112
A24: Household experiencing anti-social behaviour / neighbour problems | B24: 103 | C24: 108 | D24: 85 | E24: 74 | F24: 104 | G24: 103 | H24: 67 | I24: 93 | J24: 115 | K24: 105 | L24: 92 | M24: 90
A25: Household member needing care | B25: 71 | C25: 147 | D25: 166 | E25: 209 | F25: 164 | G25: 181 | H25: 140 | I25: 182 | J25: 174 | K25: 165 | L25: 109 | M25: 54
A26: Loss of service / tied accommodation | B26: 83 | C26: 82 | D26: 64 | E26: 71 | F26: 60 | G26: 64 | H26: 63 | I26: 58 | J26: 66 | K26: 47 | L26: 34 | M26: 49
A27: Forced division and sale of matrimonial home | B27: 71 | C27: 81 | D27: 62 | E27: 63 | F27: 68 | G27: 71 | H27: 45 | I27: 63 | J27: 56 | K27: 50 | L27: 36 | M27: 46
A28: Emergency (fire, flood, storm, closing order from Environmental Health etc.) | B28: 29 | C28: 50 | D28: 38 | E28: 45 | F28: 41 | G28: 33 | H28: 36 | I28: 45 | J28: 51 | K28: 27 | L28: 42 | M28: 31
A29: Landlord issue | B29: 48 | C29: 55 | D29: 42 | E29: 50 | F29: 48 | G29: 45 | H29: 34 | I29: 43 | J29: 33 | K29: 29 | L29: 31 | M29: 30
A30: Scotland | B30: 16016 | C30: 16173 | D30: 13850 | E30: 16868 | F30: 14636 | G30: 14516 | H30: 12290 | I30: 14666 | J30: 13342 | K30: 13087 | L30: 11055 | M30: 12641
A32: Table 4b: Reasons for Approach (Percent)
B34: Quarter of Approach
B35: 2014 Q2 | C35: 2014 Q3 | D35: 2014 Q4 | E35: 2015 Q1 | F35: 2015 Q2 | G35: 2015 Q3 | H35: 2015 Q4 | I35: 2016 Q1 | J35: 2016 Q2 | K35: 2016 Q3 | L35: 2016 Q4 | M35: 2017 Q1
A36: General housing options advice | B36: =B5/B$30 -> 0.1053321678 | C36: =C5/C$30 -> 0.1077722129 | D36: 0.1135740072 | E36: 0.1239625326 | F36: 0.1346679421 | G36: 0.1421190411 | H36: 0.1439381611 | I36: 0.1566207555 | J36: =J5/J$30 -> 0.1472792685 | K36: =K5/K$30 -> 0.1504546497 | L36: 0.1491632745 | M36: 0.1556838858
A37: Dispute within household / relationship breakdown: non-violent | B37: =B6/B$30 -> 0.141545954 | C37: =C6/C$30 -> 0.1409138688 | D37: 0.1332129964 | E37: 0.1262746028 | F37: 0.1259907078 | G37: 0.1304078258 | H37: 0.1282343369 | I37: 0.1273694259 | J37: 0.124269225 | K37: =K6/K$30 -> 0.1344081913 | L37: 0.1365897784 | M37: 0.1485641959
A38: Asked to leave | B38: 0.1472277722 | C38: =C7/C$30 -> 0.1522908551 | D38: 0.1482310469 | E38: 0.1459568414 | F38: 0.1451899426 | G38: 0.1446679526 | H38: 0.1448331977 | I38: 0.1439383608 | J38: 0.147429171 | K38: =K7/K$30 -> 0.1348666616 | L38: 0.1309814564 | M38: 0.1413653983
A39: Other action by landlord resulting in the termination of the tenancy | B39: 0.07255244755 | C39: =C8/C$30 -> 0.06269708774 | D39: 0.05942238267 | E39: 0.071259189 | F39: 0.07098934135 | G39: 0.07164508129 | H39: 0.06647681041 | I39: 0.07609436793 | J39: 0.08364563034 | K39: =K8/K$30 -> 0.07389011997 | L39: 0.06720940751 | M39: 0.07910766553
A40: Risk of losing accommodation | B40: 0.07898351648 | C40: =C9/C$30 -> 0.07667099487 | D40: 0.08700361011 | E40: 0.08643585487 | F40: 0.08690899153 | G40: 0.07708735189 | H40: 0.08112286412 | I40: 0.08284467476 | J40: 0.07749962524 | K40: =K9/K$30 -> 0.08137846718 | L40: 0.08095884215 | M40: 0.07728818923
A41: Dispute within household: violent or abusive | B41: 0.05831668332 | C41: =C10/C$30 -> 0.06436653682 | D41: 0.05913357401 | E41: 0.05554896846 | F41: 0.05705110686 | G41: 0.06048498209 | H41: 0.06338486574 | I41: 0.05686622119 | J41: 0.06071053815 | K41: =K10/K$30 -> 0.05983036601 | L41: 0.06223428313 | M41: 0.06170397912
A42: Termination of tenancy / mortgage due to rent arrears / default on payments | B42: 0.05575674326 | C42: =C11/C$30 -> 0.05385519075 | D42: 0.0519133574 | E42: 0.05359260138 | F42: 0.04454769063 | G42: 0.03968035271 | H42: 0.04572823434 | I42: 0.04282012819 | J42: 0.0412981562 | K42: =K11/K$30 -> 0.03469091465 | L42: 0.03799185889 | M42: 0.04248081639
A43: Discharge from prison / hospital / care / other institution | B43: 0.0718031968 | C43: =C12/C$30 -> 0.058863538 | D43: 0.0519133574 | E43: 0.05228835665 | F43: 0.0459141842 | G43: 0.04615596583 | H43: 0.04247355574 | I43: 0.03988817674 | J43: 0.04482086644 | K43: =K12/K$30 -> 0.04011614579 | L43: 0.04875621891 | M43: 0.04224349339
A44: Accommodation unsuitable | B44: 0.02572427572 | C44: =C13/C$30 -> 0.03450194769 | D44: 0.03631768953 | E44: 0.03468105288 | F44: 0.04188302815 | G44: 0.04250482227 | H44: 0.03498779496 | I44: 0.03613800627 | J44: 0.03590166392 | K44: =K13/K$30 -> 0.04668755253 | L44: 0.04459520579 | M44: 0.03828811012
A45: Other reason for leaving accommodation / household | B45: 0.0393981019 | C45: =C14/C$30 -> 0.04161256415 | D45: 0.03675090253 | E45: 0.0330803889 | F45: 0.03231757311 | G45: 0.03733810967 | H45: 0.04133441823 | I45: 0.03409245875 | J45: 0.03545195623 | K45: =K14/K$30 -> 0.04248490869 | L45: 0.03726820443 | M45: 0.03812989479
A46: Personal issues – affordability / financial difficulties | B46: 0.02272727273 | C46: =C15/C$30 -> 0.02324862425 | D46: 0.0240433213 | E46: 0.0277448423 | F46: 0.0265099754 | G46: 0.02638467897 | H46: 0.02408462164 | I46: 0.02481930997 | J46: 0.02645780243 | K46: =K15/K$30 -> 0.03270421029 | L46: 0.04188150158 | M46: 0.03290878886
A47: Other reason for loss of accommodation | B47: 0.02784715285 | C47: =C16/C$30 -> 0.02442342175 | D47: 0.02649819495 | E47: 0.0275077069 | F47: 0.02118065045 | G47: 0.02376687793 | H47: 0.02652563059 | I47: 0.02713759716 | J47: 0.03222905112 | K47: =K16/K$30 -> 0.02880721327 | L47: 0.03211216644 | M47: 0.03108931255
A48: Other | B48: 0.03421578422 | C48: =C17/C$30 -> 0.0404995981 | D48: 0.04714801444 | E48: 0.04304007588 | F48: 0.05015031429 | G48: 0.04794709286 | H48: 0.04719283971 | I48: 0.04500204555 | J48: 0.03859991006 | K48: =K17/K$30 -> 0.03339191564 | L48: 0.02460425147 | M48: 0.01597974844
A49: Overcrowding | B49: 0.01966783217 | C49: =C18/C$30 -> 0.01929141161 | D49: 0.01949458484 | E49: 0.02033436092 | F49: 0.01735446843 | G49: 0.01632681179 | H49: 0.0179007323 | I49: 0.01697804446 | J49: 0.01416579224 | K49: =K18/K$30 -> 0.01497669443 | L49: 0.01383989145 | M49: 0.01534688711
A50: Harassment | B50: 0.01598401598 | C50: =C19/C$30 -> 0.01749829964 | D50: 0.01472924188 | E50: 0.01268674413 | F50: 0.0155097021 | G50: 0.01426012676 | H50: 0.01244914565 | I50: 0.01104595663 | J50: 0.01341627942 | K50: =K19/K$30 -> 0.01428898907 | L50: 0.01284486658 | M50: 0.0140020568
A51: Fleeing non-domestic violence | B51: 0.01704545455 | C51: =C20/C$30 -> 0.01607617634 | D51: 0.01545126354 | E51: 0.01221247332 | F51: 0.01441650724 | G51: 0.01474235327 | H51: 0.01423921888 | I51: 0.01179599073 | J51: 0.01491530505 | K51: =K20/K$30 -> 0.009933521816 | L51: 0.01212121212 | M51: 0.01210347283
A52: Applicant terminated secure accommodation | B52: 0.01055194805 | C52: =C21/C$30 -> 0.01088233476 | D52: 0.0114801444 | E52: 0.01049324164 | F52: 0.01011205247 | G52: 0.01067787269 | H52: 0.01057770545 | I52: 0.009818628119 | J52: 0.008394543547 | K52: =K21/K$30 -> 0.01123252082 | L52: 0.01022161918 | M52: 0.01091685784
A53: Benefit issues & Welfare Reform | B53: 0.02135364635 | C53: =C22/C$30 -> 0.01335559265 | D53: 0.02014440433 | E53: 0.01962295471 | F53: 0.01687619568 | G53: 0.01081565169 | H53: 0.01196094386 | I53: 0.0124778399 | J53: 0.008769299955 | K53: =K22/K$30 -> 0.01612287002 | L53: 0.01700587969 | M53: 0.01020488885
A54: Property condition | B54: 0.008678821179 | C54: =C23/C$30 -> 0.008841896989 | D54: 0.01054151625 | E54: 0.01292387954 | F54: 0.009292156327 | G54: 0.008748966657 | H54: 0.01122864117 | I54: 0.01125051139 | J54: 0.00764503073 | K54: =K23/K$30 -> 0.007411935509 | L54: 0.008502939846 | M54: 0.00886005854
A55: Household experiencing anti-social behaviour / neighbour problems | B55: 0.006431068931 | C55: =C24/C$30 -> 0.006677796327 | D55: 0.006137184116 | E55: 0.00438700498 | F55: 0.007105766603 | G55: 0.007095618628 | H55: 0.005451586656 | I55: 0.006341197327 | J55: 0.008619397392 | K55: =K24/K$30 -> 0.008023229159 | L55: 0.008322026232 | M55: 0.007119689898
A56: Household member needing care | B56: 0.004433066933 | C56: =C25/C$30 -> 0.009089222779 | D56: 0.01198555957 | E56: 0.01239032488 | F56: 0.01120524734 | G56: 0.01246899972 | H56: 0.0113913751 | I56: 0.01240965498 | J56: 0.01304152301 | K56: =K25/K$30 -> 0.01260793154 | L56: 0.009859791949 | M56: 0.004271813939
A57: Loss of service / tied accommodation | B57: 0.005182317682 | C57: =C26/C$30 -> 0.005070178693 | D57: 0.004620938628 | E57: 0.004209153427 | F57: 0.004099480732 | G57: 0.004408928079 | H57: 0.005126118796 | I57: 0.003954725215 | J57: 0.00494678459 | K57: =K26/K$30 -> 0.003591350195 | L57: 0.003075531434 | M57: 0.003876275611
A58: Forced division and sale of matrimonial home | B58: 0.004433066933 | C58: =C27/C$30 -> 0.005008347245 | D58: 0.004476534296 | E58: 0.003734882618 | F58: 0.004646078163 | G58: 0.004891154588 | H58: 0.003661513426 | I58: 0.004295649802 | J58: 0.004197271773 | K58: =K27/K$30 -> 0.003820585314 | L58: 0.003256445047 | M58: 0.003638952615
A59: Emergency (fire, flood, storm, closing order from Environmental Health etc.) | B59: 0.001810689311 | C59: =C28/C$30 -> 0.003091572374 | D59: 0.00274368231 | E59: 0.002667773299 | F59: 0.002801311834 | G59: 0.002273353541 | H59: 0.00292921074 | I59: 0.003068321287 | J59: 0.003822515365 | K59: =K28/K$30 -> 0.002063116069 | L59: 0.003799185889 | M59: 0.002452337632
A60: Landlord issue | B60: 0.002997002997 | C60: =C29/C$30 -> 0.003400729611 | D60: 0.003032490975 | E60: 0.002964192554 | F60: 0.003279584586 | G60: 0.003100027556 | H60: 0.00276647681 | I60: 0.002931951452 | J60: 0.002473392295 | K60: =K29/K$30 -> 0.002215939482 | L60: 0.002804161013 | M60: 0.002373229966
A61: Total | B61: 1 | C61: =C30/C$30 -> 1 | D61: 1 | E61: 1 | F61: 1 | G61: 1 | H61: 1 | I61: 1 | J61: 1 | K61: =K30/K$30 -> 1 | L61: 1 | M61: 1
A63: Table 4c: Reasons for Approach - abbreviated (Number)
B65: Quarter of Approach
B66: 2014 Q2 | C66: 2014 Q3 | D66: 2014 Q4 | E66: 2015 Q1 | F66: 2015 Q2 | G66: 2015 Q3 | H66: 2015 Q4 | I66: 2016 Q1 | J66: 2016 Q2 | K66: 2016 Q3 | L66: 2016 Q4 | M66: 2017 Q1 | N66: ALL
A67: Homelessness Type | B67: 11037 | C67: 10932 | D67: 8865 | E67: 10658 | F67: 8959 | G67: 9025 | H67: 7692 | I67: 8934 | J67: 8455 | K67: 7970 | L67: 6769 | M67: 8179 | N67: =SUM(B67:M67) -> 107475
A68: Prevention Type | B68: 4979 | C68: 5241 | D68: 4985 | E68: 6210 | F68: 5677 | G68: 5491 | H68: 4598 | I68: 5732 | J68: 4887 | K68: 5117 | L68: 4286 | M68: 4462 | N68: =SUM(B68:M68) -> 61665
A69: Total | B69: 16016 | C69: 16173 | D69: 13850 | E69: 16868 | F69: 14636 | G69: 14516 | H69: 12290 | I69: 14666 | J69: 13342 | K69: 13087 | L69: 11055 | M69: 12641 | N69: 169140
A71: Table 3d: Reasons for Approach - abbreviated (Percent)
B73: Quarter of Approach
B74: 2014 Q2 | C74: 2014 Q3 | D74: 2014 Q4 | E74: 2015 Q1 | F74: 2015 Q2 | G74: 2015 Q3 | H74: 2015 Q4 | I74: 2016 Q1 | J74: 2016 Q2 | K74: 2016 Q3 | L74: 2016 Q4 | M74: 2017 Q1 | N74: ALL | P74: ALL
A75: Homelessness Type | B75: =B67/B$69 -> 0.6891233766 | C75: =C67/C$69 -> 0.6759413838 | D75: 0.6400722022 | E75: 0.6318472848 | F75: 0.612120798 | G75: 0.6217277487 | H75: =H67/H$69 -> 0.6258746949 | I75: 0.6091640529 | J75: =J67/J$69 -> 0.6337130865 | K75: 0.609001299 | L75: 0.6123021257 | M75: 0.6470215964 | N75: =N67/N$69 -> 0.6354203618 | P75: =SUM(J75:M75)/4 -> 0.6255095269
A76: Prevention Type | B76: =B68/B$69 -> 0.3108766234 | C76: 0.3240586162 | D76: 0.3599277978 | E76: 0.3681527152 | F76: 0.387879202 | G76: 0.3782722513 | H76: =H68/H$69 -> 0.3741253051 | I76: 0.3908359471 | J76: =J68/J$69 -> 0.3662869135 | K76: 0.390998701 | L76: 0.3876978743 | M76: 0.3529784036 | N76: =N68/N$69 -> 0.3645796382 | P76: =SUM(J76:M76)/4 -> 0.3744904731
A77: Total | B77: 1 | C77: 1 | D77: 1 | E77: 1 | F77: 1 | G77: 1 | H77: =H69/H$69 -> 1 | I77: 1 | J77: =J69/J$69 -> 1 | K77: 1 | L77: 1 | M77: 1 | N77: =N69/N$69 -> 1 | P77: =SUM(J77:M77)/4 -> 1
A79: Notes
A80: Homeless Type Reasons as defined as: | B80: Termination of tenancy / mortgage due to rent arrears / default on payments
B81: Other action by landlord resulting in the termination of the tenancy
B82: Applicant terminated secure accommodation
B83: Loss of service / tied accommodation
B84: Discharge from prison / hospital / care / other institution
B85: Emergency (fire, flood, storm, closing order from Environmental Health etc.)
B86: Forced division and sale of matrimonial home
B87: Other reason for loss of accommodation
B88: Reasons for having to leave accommodation / household
B89: Dispute within household: violent or abusive
B90: Dispute within household / relationship breakdown: non-violent
B91: Fleeing non-domestic violence
B92: Harassment
B93: Overcrowding
B94: Asked to leave
B95: Other reason for leaving accommodation / household
A98: Prevention Type Reasons are defined as: | B98: General housing options advice
B99: Benefit issues (excluding Welfare Reform)
B100: Welfare Reform – Benefit Cap
B101: Welfare Reform – Under-occupancy penalty
B102: Welfare Reform - Other
B103: Property condition - disrepair
B104: Property condition – lacking amenities
B105: Property condition – fire/flood
B106: Accommodation unsuitable - Overcrowded
B107: Accommodation unsuitable – Mobility/ Adaptation Issues
B108: Accommodation unsuitable – Location
B109: Household experiencing anti-social behaviour / neighbour problems
B110: Household experiencing hate crime
B111: Household member needing care
B112: Personal issues – affordability / financial difficulties
B113: Risk of losing accommodation - eviction/ repossession
B114: Risk of losing accommodation - eviction from UK Borders Agency (or successor organisation) accommodation
B115: Risk of losing accommodation - tied/ service tenancy
B116: Risk of losing accommodation - asked to leave - parents
B117: Risk of losing accommodation - asked to leave – other family
B118: Risk of losing accommodation - asked to leave – friends
B119: Landlord issue - Harassment from private sector landlord
B120: Landlord issue - Illegal eviction – private sector landlord
B121: Other

Sheet Chart 4 - Approach Reasons
A1: Chart 4: Number of Approaches by Reason for Approach

Sheet Table 5 - Maximum Activty Type
A1: Table 5a: Maximum Activity Type (Number) | B1: Back to Contents
B3: Quarter of Approach | O3: Annual change
A4: Activity type | B4: 2014 Q2 | C4: 2014 Q3 | D4: 2014 Q4 | E4: 2015 Q1 | F4: 2015 Q2 | G4: 2015 Q3 | H4: 2015 Q4 | I4: 2016 Q1 | J4: 2016 Q2 | K4: 2016 Q3 | L4: 2016 Q4 | M4: 2017 Q1 | O4: 2015/16 | P4: 2016/17 | Q4: Change | R4: % change
A5: Type I – Active Information, Sign-posting and Explanation | B5: 8101 | C5: 8830 | D5: 7827 | E5: 9408 | F5: 8265 | G5: 7868 | H5: 6590 | I5: 8001 | J5: 7280 | K5: 6926 | L5: 5967 | M5: 6937 | O5: =SUM(F5:I5) -> 30724 | P5: =SUM(J5:M5) -> 27110 | Q5: =P5-O5 -> -3614 | R5: =Q5/O5 -> -0.117627913
A6: Type II – Casework | B6: 7833 | C6: 7281 | D6: 5973 | E6: 7420 | F6: 6339 | G6: 6609 | H6: 5673 | I6: 6623 | J6: 5996 | K6: 6093 | L6: 5013 | M6: 5639 | O6: =SUM(F6:I6) -> 25244 | P6: =SUM(J6:M6) -> 22741 | Q6: =P6-O6 -> -2503 | R6: =Q6/O6 -> -0.09915227381
A7: Type III – Advocacy, Representation and Mediation at Tribunal or Court Action Level | B7: 82 | C7: 62 | D7: 50 | E7: 40 | F7: 32 | G7: 39 | H7: 27 | I7: 42 | J7: 66 | K7: 68 | L7: 75 | M7: 65 | O7: 140 | P7: 274 | Q7: 134 | R7: 0.9571428571
A8: Total | B8: 16016 | C8: 16173 | D8: 13850 | E8: 16868 | F8: 14636 | G8: 14516 | H8: 12290 | I8: 14666 | J8: 13342 | K8: 13087 | L8: 11055 | M8: 12641 | O8: =SUM(F8:I8) -> 56108 | P8: =SUM(J8:M8) -> 50125 | Q8: =P8-O8 -> -5983 | R8: =Q8/O8 -> -0.1066336351
A10: Table 5b: Maximum Activity Type (Percent)
B12: Quarter of Approach
A13: Activity type | B13: 2014 Q2 | C13: 2014 Q3 | D13: 2014 Q4 | E13: 2015 Q1 | F13: 2015 Q2 | G13: 2015 Q3 | H13: 2015 Q4 | I13: 2016 Q1 | J13: 2016 Q2 | K13: 2016 Q3 | L13: 2016 Q4 | M13: 2017 Q1 | P13: 2016/17
A14: Type I – Active Information, Sign-posting and Explanation | B14: =B5/B$8 -> 0.5058066933 | C14: =C5/C$8 -> 0.5459716812 | D14: 0.5651263538 | E14: 0.557742471 | F14: 0.5647034709 | G14: 0.5420225958 | H14: =H5/H$8 -> 0.5362082994 | I14: 0.5455475249 | J14: =J5/J$8 -> 0.5456453305 | K14: 0.5292274776 | L14: 0.5397557666 | M14: 0.5487698758 | P14: =SUM(J14:M14)/4 -> 0.5408496127
A15: Type II – Casework | B15: =B6/B$8 -> 0.4890734266 | C15: 0.4501947691 | D15: 0.4312635379 | E15: 0.439886175 | F15: 0.4331101394 | G15: 0.4552907137 | H15: =H6/H$8 -> 0.4615947925 | I15: 0.4515887086 | J15: =J6/J$8 -> 0.4494078849 | K15: 0.4655765263 | L15: 0.4534599729 | M15: 0.4460881259 | P15: =SUM(J15:M15)/4 -> 0.4536331275
A16: Type III – Advocacy, Representation and Mediation at Tribunal or Court Action Level | B16: =B7/B$8 -> 0.00511988012 | C16: 0.003833549743 | D16: 0.003610108303 | E16: 0.002371354043 | F16: 0.002186389724 | G16: 0.002686690548 | H16: =H7/H$8 -> 0.002196908055 | I16: 0.002863766535 | J16: =J7/J$8 -> 0.00494678459 | K16: 0.005195996027 | L16: 0.006784260516 | M16: 0.00514199826
A17: Total | B17: =B8/B$8 -> 1 | C17: 1 | D17: 1 | E17: 1 | F17: 1 | G17: 1 | H17: =H8/H$8 -> 1 | I17: 1 | J17: =J8/J$8 -> 1 | K17: 1 | L17: 1 | M17: 1
M22: =M5/M8*100 -> 54.87698758
M23: =M6/M8*100 -> 44.60881259

Sheet Chart 5 - Activities Type by Q
A1: Chart 5: Number of Approaches with each level of activity type by quarter | N1: Back to Contents

Sheet Table 6 - Activities
A1: Table 6a: Housing Options activities by quarter (number) | D1: Back to Contents
B3: Quarter of Approach | N3: All | P3: Annual change
A4: Activity type | B4: 2014 Q2 | C4: 2014 Q3 | D4: 2014 Q4 | E4: 2015 Q1 | F4: 2015 Q2 | G4: 2015 Q3 | H4: 2015 Q4 | I4: 2016 Q1 | J4: 2016 Q2 | K4: 2016 Q3 | L4: 2016 Q4 | M4: 2017 Q1 | P4: 2015/16 | Q4: 2016/17 | R4: Change | S4: % change
A5: General Housing advice/Tenancy rights advice | B5: 12135 | C5: 12274 | D5: 10494 | E5: 13179 | F5: 12449 | G5: 12663 | H5: 10354 | I5: 12507 | J5: 10944 | K5: 10497 | L5: 8638 | M5: 10041 | N5: 136175 | P5: =SUM(F5:I5) -> 47973 | Q5: =SUM(J5:M5) -> 40120 | R5: =Q5-P5 -> -7853 | S5: =R5/P5 -> -0.1636962458
A6: Client informed of rights under homelessness legislation | B6: 9130 | C6: 8514 | D6: 6680 | E6: 8654 | F6: 7803 | G6: 7827 | H6: 6810 | I6: 8056 | J6: 7391 | K6: 7015 | L6: 5978 | M6: 7134 | N6: 90992 | P6: =SUM(F6:I6) -> 30496 | Q6: =SUM(J6:M6) -> 27518 | R6: =Q6-P6 -> -2978 | S6: =R6/P6 -> -0.0976521511
A7: Financial assistance/advice | B7: 2436 | C7: 2828 | D7: 2379 | E7: 2702 | F7: 2439 | G7: 2469 | H7: 2056 | I7: 2146 | J7: 1992 | K7: 2169 | L7: 1754 | M7: 1612 | N7: 26982 | P7: 9110 | Q7: 7527 | R7: -1583 | S7: -0.1737650933
A8: Rent/repairs/referrals/negotiation with landlords | B8: 2312 | C8: 2256 | D8: 1963 | E8: 2624 | F8: 2246 | G8: 2311 | H8: 1760 | I8: 1842 | J8: 1664 | K8: 1753 | L8: 1430 | M8: 1579 | N8: 23740 | P8: 8159 | Q8: 6426 | R8: -1733 | S8: -0.2124034808
A9: Help to move property | B9: 1869 | C9: 1998 | D9: 1598 | E9: 1968 | F9: 1874 | G9: 2007 | H9: 1600 | I9: 1995 | J9: 2011 | K9: 2119 | L9: 1649 | M9: 1926 | N9: 22614 | P9: 7476 | Q9: 7705 | R9: 229 | S9: 0.03063135367
A10: Other | B10: 1436 | C10: 2228 | D10: 1606 | E10: 1582 | F10: 1589 | G10: 1612 | H10: 1358 | I10: 1614 | J10: 1453 | K10: 1616 | L10: 1398 | M10: 1316 | N10: 18808 | P10: 6173 | Q10: 5783 | R10: -390 | S10: -0.06317835736
A11: Referral to health/Social Work/employment services | B11: 960 | C11: 1025 | D11: 931 | E11: 913 | F11: 795 | G11: 958 | H11: 717 | I11: 836 | J11: 802 | K11: 879 | L11: 726 | M11: 790 | N11: 10332 | P11: 3306 | Q11: 3197 | R11: -109 | S11: -0.03297035693
A12: Help to remain in accommodation | B12: 832 | C12: 902 | D12: 708 | E12: 801 | F12: 693 | G12: 774 | H12: 565 | I12: 732 | J12: 610 | K12: 731 | L12: 544 | M12: 517 | N12: 8409 | P12: 2764 | Q12: 2402 | R12: -362 | S12: -0.1309696093
A13: Mediation/outreach work | B13: 555 | C13: 665 | D13: 520 | E13: 644 | F13: 397 | G13: 393 | H13: 339 | I13: 438 | J13: 410 | K13: 467 | L13: 333 | M13: 397 | N13: 5558 | P13: 1567 | Q13: 1607 | R13: 40 | S13: 0.02552648373
A14: Tenancy/social care support/adaptations to property | B14: 322 | C14: 342 | D14: 291 | E14: 410 | F14: 372 | G14: 339 | H14: 343 | I14: 419 | J14: 375 | K14: 332 | L14: 243 | M14: 301 | N14: 4089 | P14: 1473 | Q14: 1251 | R14: -222 | S14: -0.150712831
A15: Mortgage/home ownership advice | B15: 160 | C15: 204 | D15: 115 | E15: 172 | F15: 164 | G15: 153 | H15: 99 | I15: 131 | J15: 95 | K15: 91 | L15: 62 | M15: 86 | N15: 1532 | P15: 547 | Q15: 334 | R15: -213 | S15: -0.3893967093
A16: Total (ALL) | B16: 32147 | C16: 33236 | D16: 27285 | E16: 33649 | F16: 30821 | G16: 31506 | H16: 26001 | I16: 30716 | J16: 27747 | K16: 27669 | L16: 22755 | M16: 25699 | N16: 349231 | P16: 119044 | Q16: 103870 | R16: -15174 | S16: -0.127465475
A18: Table 6b: Housing Options activities by quarter (percent)
B20: Quarter of Approach | N20: All
A21: Activity Type | B21: 2014 Q2 | C21: 2014 Q3 | D21: 2014 Q4 | E21: 2015 Q1 | F21: 2015 Q2 | G21: 2015 Q3 | H21: 2015 Q4 | I21: 2016 Q1 | J21: 2016 Q2 | K21: 2016 Q3 | L21: 2016 Q4 | M21: 2017 Q1 | P21: 2016/17
A22: General Housing advice/Tenancy rights advice | B22: =B5/B$16 -> 0.3774846798 | C22: =C5/C$16 -> 0.3692983512 | D22: 0.3846069269 | E22: 0.3916609706 | F22: 0.4039129165 | G22: 0.4019234432 | H22: =H5/H$16 -> 0.3982154533 | I22: 0.4071819247 | J22: =J5/J$16 -> 0.3944210185 | K22: 0.3793776428 | L22: 0.3796088772 | M22: 0.390715592 | N22: =N5/N$16 -> 0.3899281564 | P22: =SUM(J22:M22)/4 -> 0.3860307826
A23: Client informed of rights under homelessness legislation | B23: =B6/B$16 -> 0.284007839 | C23: 0.2561680106 | D23: 0.2448231629 | E23: 0.2571844631 | F23: 0.2531715389 | G23: 0.2484288707 | H23: =H6/H$16 -> 0.2619130033 | I23: 0.2622737336 | J23: =J6/J$16 -> 0.2663711392 | K23: 0.2535328346 | L23: 0.262711492 | M23: 0.2775983501 | N23: 0.2605496076 | P23: =SUM(J23:M23)/4 -> 0.265053454
A24: Financial assistance/advice | B24: =B7/B$16 -> 0.07577689987 | C24: 0.0850884583 | D24: 0.08719076416 | E24: 0.08029956314 | F24: 0.07913435645 | G24: 0.07836602552 | H24: =H7/H$16 -> 0.07907388177 | I24: 0.06986586795 | J24: =J7/J$16 -> 0.07179154503 | K24: 0.07839097907 | L24: 0.07708196001 | M24: 0.06272617612 | N24: 0.07726118243 | P24: 0.07249766506
A25: Rent/repairs/referrals/negotiation with landlords | B25: =B8/B$16 -> 0.07191961925 | C25: 0.06787820436 | D25: 0.07194429174 | E25: 0.07798151505 | F25: 0.0728723922 | G25: 0.07335110773 | H25: =H8/H$16 -> 0.06768970424 | I25: 0.05996874593 | J25: =J8/J$16 -> 0.05997044726 | K25: 0.0633561025 | L25: 0.06284333114 | M25: 0.06144207946 | N25: 0.06797792865 | P25: 0.06190299009
A26: Help to move property | B26: =B9/B$16 -> 0.05813917317 | C26: 0.06011553737 | D26: 0.05856697819 | E26: 0.05848613629 | F26: 0.06080269946 | G26: 0.06370215197 | H26: =H9/H$16 -> 0.06153609477 | I26: 0.06494986326 | J26: =J9/J$16 -> 0.07247630374 | K26: 0.07658390256 | L26: 0.07246758954 | M26: 0.07494455037 | N26: 0.0647537017 | P26: 0.07411808655
A27: Other | B27: =B10/B$16 -> 0.04466979811 | C27: 0.06703574437 | D27: 0.05886017959 | E27: 0.04701477013 | F27: 0.05155575744 | G27: 0.05116485749 | H27: =H10/H$16 -> 0.05222876043 | I27: 0.05254590441 | J27: =J10/J$16 -> 0.05236602155 | K27: 0.05840471286 | L27: 0.0614370468 | M27: 0.05120821822 | N27: 0.05385547102 | P27: 0.05585399986
A28: Referral to health/Social Work/employment services | B28: =B11/B$16 -> 0.02986281768 | C28: 0.03084005295 | D28: 0.03412131208 | E28: 0.02713305002 | F28: 0.02579410142 | G28: 0.03040690662 | H28: =H11/H$16 -> 0.02757586247 | I28: 0.02721708556 | J28: =J11/J$16 -> 0.02890402566 | K28: 0.03176840507 | L28: 0.03190507581 | M28: 0.03074049574 | N28: 0.02958500248 | P28: 0.03082950057
A29: Help to remain in accommodation | B29: =B12/B$16 -> 0.02588110866 | C29: 0.0271392466 | D29: 0.02594832325 | E29: 0.02380457072 | F29: 0.02248466954 | G29: 0.02456674919 | H29: =H12/H$16 -> 0.02172993346 | I29: 0.02383122802 | J29: =J12/J$16 -> 0.02198435867 | K29: 0.0264194586 | L29: 0.02390683366 | M29: 0.0201175143 | N29: 0.02407861845 | P29: 0.02310704131
A30: Mediation/outreach work | B30: =B13/B$16 -> 0.01726444147 | C30: 0.0200084246 | D30: 0.01905809053 | E30: 0.01913875598 | F30: 0.01288082801 | G30: 0.01247381451 | H30: =H13/H$16 -> 0.01303796008 | I30: 0.01425966923 | J30: =J13/J$16 -> 0.01477637222 | K30: 0.01687809462 | L30: 0.01463414634 | M30: 0.01544807191 | N30: 0.01591496746 | P30: 0.01543417127
A31: Tenancy/social care support/adaptations to property | B31: =B14/B$16 -> 0.01001648676 | C31: 0.01029004694 | D31: 0.01066520066 | E31: 0.01218461173 | F31: 0.01206969274 | G31: 0.01075985527 | H31: =H14/H$16 -> 0.01319180032 | I31: 0.0136410991 | J31: =J14/J$16 -> 0.01351497459 | K31: 0.01199898804 | L31: 0.01067897165 | M31: 0.011712518 | N31: 0.01170858257 | P31: 0.01197636307
A32: Mortgage/home ownership advice | B32: =B15/B$16 -> 0.00497713628 | C32: 0.006137922734 | D32: 0.00421477002 | E32: 0.005111593212 | F32: 0.005321047338 | G32: 0.004856217863 | H32: =H15/H$16 -> 0.003807545864 | I32: 0.004264878239 | J32: =J15/J$16 -> 0.003423793563 | K32: 0.003288879251 | L32: 0.002724675895 | M32: 0.003346433713 | N32: 0.004386781242 | P32: 0.003195945606
A33: Total (ALL) | B33: =B16/B$16 -> 1 | C33: 1 | D33: 1 | E33: 1 | F33: 1 | G33: 1 | H33: =H16/H$16 -> 1 | I33: 1 | J33: =J16/J$16 -> 1 | K33: 1 | L33: 1 | M33: 1 | N33: 1 | P33: 1
B48: Quarter of Approach
B49: 2014 Q2 | C49: 2014 Q3 | D49: 2014 Q4 | E49: 2015 Q1 | F49: 2015 Q2 | G49: 2015 Q3 | H49: 2015 Q4 | I49: 2016 Q1 | J49: 2016 Q2 | K49: 2016 Q3 | L49: 2016 Q4 | M49: 2017 Q1 | O49: 2016/17
A50: =A22 -> General Housing advice/Tenancy rights advice | B50: =B22 -> 0.3774846798 | C50: =C22 -> 0.3692983512 | D50: 0.3846069269 | E50: 0.3916609706 | F50: 0.4039129165 | G50: 0.4019234432 | H50: =H22 -> 0.3982154533 | I50: 0.4071819247 | J50: =J22 -> 0.3944210185 | K50: 0.3793776428 | L50: 0.3796088772 | M50: 0.390715592 | O50: =SUM(J50:M50)/4 -> 0.3860307826
A51: =A23 -> Client informed of rights under homelessness legislation | B51: =B23 -> 0.284007839 | C51: =C23 -> 0.2561680106 | D51: 0.2448231629 | E51: 0.2571844631 | F51: 0.2531715389 | G51: 0.2484288707 | H51: =H23 -> 0.2619130033 | I51: 0.2622737336 | J51: =J23 -> 0.2663711392 | K51: 0.2535328346 | L51: 0.262711492 | M51: 0.2775983501 | O51: =SUM(J51:M51)/4 -> 0.265053454
A52: Other Activity | B52: =SUM(B24:B32) -> 0.3385074813 | C52: =SUM(C24:C32) -> 0.3745336382 | D52: 0.3705699102 | E52: 0.3511545663 | F52: 0.3429155446 | G52: 0.3496476862 | H52: =SUM(H24:H32) -> 0.3398715434 | I52: 0.3305443417 | J52: =SUM(J24:J32) -> 0.3392078423 | K52: 0.3670895226 | L52: 0.3576796309 | M52: 0.3316860578 | O52: 0.3489157634
A60: General Housing advice/Tenancy rights advice | B60: 12135 | C60: 12274 | D60: 10494 | E60: 13179 | F60: 12449 | G60: 12663 | H60: 10354 | I60: 12507 | J60: 10944 | K60: 10497 | L60: 8638 | M60: 10041 | N60: 136175
A61: Client informed of rights under homelessness legislation | B61: 9130 | C61: 8514 | D61: 6680 | E61: 8654 | F61: 7803 | G61: 7827 | H61: 6810 | I61: 8056 | J61: 7391 | K61: 7015 | L61: 5978 | M61: 7134 | N61: 90992
A62: Financial assistance/advice | B62: 2436 | C62: 2828 | D62: 2379 | E62: 2702 | F62: 2439 | G62: 2469 | H62: 2056 | I62: 2146 | J62: 1992 | K62: 2169 | L62: 1754 | M62: 1612 | N62: 26982
A63: Rent/repairs/referrals/negotiation with landlords | B63: 2312 | C63: 2256 | D63: 1963 | E63: 2624 | F63: 2246 | G63: 2311 | H63: 1760 | I63: 1842 | J63: 1664 | K63: 1753 | L63: 1430 | M63: 1579 | N63: 23740
A64: Help to move property | B64: 1869 | C64: 1998 | D64: 1598 | E64: 1968 | F64: 1874 | G64: 2007 | H64: 1600 | I64: 1995 | J64: 2011 | K64: 2119 | L64: 1649 | M64: 1926 | N64: 22614
A65: Other | B65: 1436 | C65: 2228 | D65: 1606 | E65: 1582 | F65: 1589 | G65: 1612 | H65: 1358 | I65: 1614 | J65: 1453 | K65: 1616 | L65: 1398 | M65: 1316 | N65: 18808
A66: Referral to health/Social Work/employment services | B66: 960 | C66: 1025 | D66: 931 | E66: 913 | F66: 795 | G66: 958 | H66: 717 | I66: 836 | J66: 802 | K66: 879 | L66: 726 | M66: 790 | N66: 10332
A67: Help to remain in accommodation | B67: 832 | C67: 902 | D67: 708 | E67: 801 | F67: 693 | G67: 774 | H67: 565 | I67: 732 | J67: 610 | K67: 731 | L67: 544 | M67: 517 | N67: 8409
A68: Mediation/outreach work | B68: 555 | C68: 665 | D68: 520 | E68: 644 | F68: 397 | G68: 393 | H68: 339 | I68: 438 | J68: 410 | K68: 467 | L68: 333 | M68: 397 | N68: 5558
A69: Tenancy/social care support/adaptations to property | B69: 322 | C69: 342 | D69: 291 | E69: 410 | F69: 372 | G69: 339 | H69: 343 | I69: 419 | J69: 375 | K69: 332 | L69: 243 | M69: 301 | N69: 4089
A70: Mortgage/home ownership advice | B70: 160 | C70: 204 | D70: 115 | E70: 172 | F70: 164 | G70: 153 | H70: 99 | I70: 131 | J70: 95 | K70: 91 | L70: 62 | M70: 86 | N70: 1532
A71: Total (ALL) | B71: 32147 | C71: 33236 | D71: 27285 | E71: 33649 | F71: 30821 | G71: 31506 | H71: 26001 | I71: 30716 | J71: 27747 | K71: 27669 | L71: 22755 | M71: 25699 | N71: 349231

Sheet Chart 6 - Activities
A1: Chart 6: Housing Options Actvities by quarter | N1: Back to Contents

Sheet Table 7 - Activities by LA
A1: Table 7a: Housing Options activities by Local Authority, during 1 April 2016 to 31 March 2017 (number) | J1: Back to Contents
A3: Local Authority | B3: ACTIVITY | M3: All
B4: Mediation/ outreach work | C4: Financial assistance/ advice | D4: Rent/repairs/ referrals/ negotiation with landlords | E4: Help to remain in accommodation | F4: Mortgage/ home ownership advice | G4: Tenancy/ social care support/ adaptations to property | H4: Referral to health/Social Work/ employment services | I4: Client informed of rights under homelessness legislation | J4: General Housing advice/ Tenancy rights advice | K4: Help to move property | L4: Other
A5: Scotland | B5: 1605 | C5: 7525 | D5: 6425 | E5: 2400 | F5: 335 | G5: 1250 | H5: 3195 | I5: 27520 | J5: 40120 | K5: 7705 | L5: 5785 | M5: 103870 | O5: =5*ROUND(B5/5,0) -> 1605 | P5: =5*ROUND(C5/5,0) -> 7525 | Q5: 6425 | R5: 2400 | S5: 335 | T5: 1250 | U5: 3195 | V5: 27520 | W5: 40120 | X5: 7705 | Y5: 5785 | Z5: =5*ROUND(M5/5,0) -> 103870
A6: Aberdeen City | B6: 100 | C6: 150 | D6: 60 | E6: 220 | F6: 15 | G6: 20 | H6: 60 | I6: 935 | J6: 2500 | K6: 1010 | L6: 0 | M6: 5075 | O6: =5*ROUND(B6/5,0) -> 100 | P6: 150 | Q6: 60 | R6: 220 | S6: 15 | T6: 20 | U6: 60 | V6: 935 | W6: 2500 | X6: 1010 | Y6: 0 | Z6: =5*ROUND(M6/5,0) -> 5075
A7: Aberdeenshire | B7: 30 | C7: 410 | D7: 505 | E7: 25 | F7: 50 | G7: 5 | H7: 25 | I7: 1385 | J7: 1925 | K7: 20 | L7: 70 | M7: 4450 | O7: 30 | P7: 410 | Q7: 505 | R7: 25 | S7: 50 | T7: 5 | U7: 25 | V7: 1385 | W7: 1925 | X7: 20 | Y7: 70 | Z7: 4450
A8: Angus | B8: 35 | C8: 545 | D8: 120 | E8: 90 | F8: 5 | G8: 65 | H8: 20 | I8: 625 | J8: 1065 | K8: 650 | L8: 30 | M8: 3260 | O8: 35 | P8: 545 | Q8: 120 | R8: 90 | S8: 5 | T8: 65 | U8: 20 | V8: 625 | W8: 1065 | X8: 650 | Y8: 30 | Z8: 3260
A9: Argyll & Bute | B9: 10 | C9: 60 | D9: 115 | E9: 330 | F9: 0 | G9: 35 | H9: 5 | I9: 240 | J9: 1130 | K9: 125 | L9: 25 | M9: 2065 | O9: 10 | P9: 60 | Q9: 115 | R9: 330 | S9: 0 | T9: 35 | U9: 5 | V9: 240 | W9: 1130 | X9: 125 | Y9: 25 | Z9: 2065
A10: Clackmannanshire | B10: 5 | C10: 15 | D10: 55 | E10: 0 | F10: 0 | G10: 0 | H10: 5 | I10: 790 | J10: 610 | K10: 45 | L10: 0 | M10: 1530 | O10: 5 | P10: 15 | Q10: 55 | R10: 0 | S10: 0 | T10: 0 | U10: 5 | V10: 790 | W10: 610 | X10: 45 | Y10: 0 | Z10: 1530
A11: Dumfries & Galloway | B11: 5 | C11: 95 | D11: 135 | E11: 30 | F11: 5 | G11: 135 | H11: 65 | I11: 895 | J11: 915 | K11: 245 | L11: 35 | M11: 2565 | O11: 5 | P11: 95 | Q11: 135 | R11: 30 | S11: 5 | T11: 135 | U11: 65 | V11: 895 | W11: 915 | X11: 245 | Y11: 35 | Z11: 2565
A12: Dundee City | B12: 135 | C12: 85 | D12: 105 | E12: 60 | F12: 0 | G12: 5 | H12: 20 | I12: 2130 | J12: 2425 | K12: 300 | L12: 215 | M12: 5480 | O12: 135 | P12: 85 | Q12: 105 | R12: 60 | S12: 0 | T12: 5 | U12: 20 | V12: 2130 | W12: 2425 | X12: 300 | Y12: 215 | Z12: 5480
A13: East Ayrshire | B13: 5 | C13: 100 | D13: 75 | E13: 5 | F13: 15 | G13: 30 | H13: 20 | I13: 90 | J13: 100 | K13: 15 | L13: 5 | M13: 455 | O13: 5 | P13: 100 | Q13: 75 | R13: 5 | S13: 15 | T13: 30 | U13: 20 | V13: 90 | W13: 100 | X13: 15 | Y13: 5 | Z13: 455
A14: East Dunbartonshire | B14: 0 | C14: 270 | D14: 215 | E14: 25 | F14: 30 | G14: 0 | H14: 25 | I14: 340 | J14: 355 | K14: 380 | L14: 5 | M14: 1655 | O14: 0 | P14: 270 | Q14: 215 | R14: 25 | S14: 30 | T14: 0 | U14: 25 | V14: 340 | W14: 355 | X14: 380 | Y14: 5 | Z14: 1655
A15: East Lothian | B15: 0 | C15: 70 | D15: 230 | E15: 55 | F15: 10 | G15: 0 | H15: 0 | I15: 200 | J15: 330 | K15: 295 | L15: 20 | M15: 1210 | O15: 0 | P15: 70 | Q15: 230 | R15: 55 | S15: 10 | T15: 0 | U15: 0 | V15: 200 | W15: 330 | X15: 295 | Y15: 20 | Z15: 1210
A16: East Renfrewshire | B16: 0 | C16: 50 | D16: 65 | E16: 15 | F16: 15 | G16: 5 | H16: 10 | I16: 130 | J16: 110 | K16: 5 | L16: 0 | M16: 410 | O16: 0 | P16: 50 | Q16: 65 | R16: 15 | S16: 15 | T16: 5 | U16: 10 | V16: 130 | W16: 110 | X16: 5 | Y16: 0 | Z16: 410
A17: Edinburgh | B17: 20 | C17: 330 | D17: 60 | E17: 15 | F17: 0 | G17: 5 | H17: 75 | I17: 1815 | J17: 3925 | K17: 35 | L17: 50 | M17: 6330 | O17: 20 | P17: 330 | Q17: 60 | R17: 15 | S17: 0 | T17: 5 | U17: 75 | V17: 1815 | W17: 3925 | X17: 35 | Y17: 50 | Z17: 6330
A18: Eilean Siar | B18: 0 | C18: 5 | D18: 0 | E18: 0 | F18: 0 | G18: 0 | H18: 0 | I18: 10 | J18: 5 | K18: 5 | L18: 0 | M18: 25 | O18: 0 | P18: 5 | Q18: 0 | R18: 0 | S18: 0 | T18: 0 | U18: 0 | V18: 10 | W18: 5 | X18: 5 | Y18: 0 | Z18: 25
A19: Falkirk | B19: 895 | C19: 2760 | D19: 215 | E19: 1030 | F19: 25 | G19: 155 | H19: 1025 | I19: 2050 | J19: 2495 | K19: 1420 | L19: 4150 | M19: 16210 | O19: 895 | P19: 2760 | Q19: 215 | R19: 1030 | S19: 25 | T19: 155 | U19: 1025 | V19: 2050 | W19: 2495 | X19: 1420 | Y19: 4150 | Z19: 16210
A20: Fife | B20: 40 | C20: 170 | D20: 715 | E20: 40 | F20: 70 | G20: 35 | H20: 85 | I20: 2350 | J20: 2915 | K20: 565 | L20: 80 | M20: 7065 | O20: 40 | P20: 170 | Q20: 715 | R20: 40 | S20: 70 | T20: 35 | U20: 85 | V20: 2350 | W20: 2915 | X20: 565 | Y20: 80 | Z20: 7065
A21: Glasgow City | B21: 20 | C21: 85 | D21: 275 | E21: 165 | F21: 0 | G21: 5 | H21: 1305 | I21: 3790 | J21: 4160 | K21: 145 | L21: 0 | M21: 9945 | O21: 20 | P21: =5*ROUND(C21/5,0) -> 85 | Q21: =5*ROUND(D21/5,0) -> 275 | R21: =5*ROUND(E21/5,0) -> 165 | S21: =5*ROUND(F21/5,0) -> 0 | T21: =5*ROUND(G21/5,0) -> 5 | U21: =5*ROUND(H21/5,0) -> 1305 | V21: =5*ROUND(I21/5,0) -> 3790 | W21: =5*ROUND(J21/5,0) -> 4160 | X21: =5*ROUND(K21/5,0) -> 145 | Y21: =5*ROUND(L21/5,0) -> 0 | Z21: 9945
A22: Highland | B22: 5 | C22: 25 | D22: 10 | E22: 10 | F22: 10 | G22: 5 | H22: 5 | I22: 315 | J22: 365 | K22: 10 | L22: 0 | M22: 755 | O22: 5 | P22: 25 | Q22: 10 | R22: 10 | S22: 10 | T22: 5 | U22: 5 | V22: 315 | W22: 365 | X22: 10 | Y22: 0 | Z22: 755
A23: Inverclyde | B23: 5 | C23: 30 | D23: 5 | E23: 5 | F23: 0 | G23: 0 | H23: 5 | I23: 610 | J23: 580 | K23: 35 | L23: 20 | M23: 1295 | O23: 5 | P23: 30 | Q23: 5 | R23: 5 | S23: 0 | T23: 0 | U23: 5 | V23: 610 | W23: 580 | X23: 35 | Y23: 20 | Z23: 1295
A24: Midlothian | B24: 65 | C24: 40 | D24: 40 | E24: 5 | F24: 10 | G24: 20 | H24: 15 | I24: 365 | J24: 680 | K24: 130 | L24: 350 | M24: 1715 | O24: 65 | P24: 40 | Q24: 40 | R24: 5 | S24: 10 | T24: 20 | U24: 15 | V24: 365 | W24: 680 | X24: 130 | Y24: 350 | Z24: 1715
A25: Moray | B25: 45 | C25: 260 | D25: 105 | E25: 15 | F25: 5 | G25: 35 | H25: 40 | I25: 850 | J25: 1115 | K25: 310 | L25: 210 | M25: 2995 | O25: 45 | P25: 260 | Q25: 105 | R25: 15 | S25: 5 | T25: 35 | U25: 40 | V25: 850 | W25: 1115 | X25: 310 | Y25: 210 | Z25: 2995
A26: North Ayrshire | B26: 0 | C26: 50 | D26: 1445 | E26: 25 | F26: 10 | G26: 5 | H26: 25 | I26: 1490 | J26: 1530 | K26: 105 | L26: 15 | M26: 4695 | O26: 0 | P26: 50 | Q26: 1445 | R26: 25 | S26: 10 | T26: 5 | U26: 25 | V26: 1490 | W26: 1530 | X26: 105 | Y26: 15 | Z26: 4695
A27: North Lanarkshire | B27: 10 | C27: 875 | D27: 375 | E27: 135 | F27: 25 | G27: 380 | H27: 140 | I27: 725 | J27: 3670 | K27: 145 | L27: 170 | M27: 6650 | O27: 10 | P27: 875 | Q27: 375 | R27: 135 | S27: 25 | T27: 380 | U27: 140 | V27: 725 | W27: 3670 | X27: 145 | Y27: 170 | Z27: 6650
A28: Orkney | B28: 0 | C28: 5 | D28: 5 | E28: 0 | F28: 0 | G28: 0 | H28: 0 | I28: 20 | J28: 40 | K28: 5 | L28: 0 | M28: 75 | O28: 0 | P28: 5 | Q28: 5 | R28: 0 | S28: 0 | T28: 0 | U28: 0 | V28: 20 | W28: 40 | X28: 5 | Y28: 0 | Z28: 75
A29: Perth & Kinross | B29: 15 | C29: 40 | D29: 370 | E29: 5 | F29: 0 | G29: 5 | H29: 20 | I29: 575 | J29: 1090 | K29: 25 | L29: 125 | M29: 2275 | O29: 15 | P29: 40 | Q29: 370 | R29: 5 | S29: 0 | T29: 5 | U29: 20 | V29: 575 | W29: 1090 | X29: 25 | Y29: 125 | Z29: 2275
A30: Renfrewshire | B30: 140 | C30: 690 | D30: 325 | E30: 30 | F30: 5 | G30: 175 | H30: 145 | I30: 1435 | J30: 2000 | K30: 725 | L30: 155 | M30: 5825 | O30: 140 | P30: 690 | Q30: 325 | R30: 30 | S30: 5 | T30: 175 | U30: 145 | V30: 1435 | W30: 2000 | X30: 725 | Y30: 155 | Z30: 5825
A31: Scottish Borders | B31: 0 | C31: 80 | D31: 185 | E31: 15 | F31: 10 | G31: 120 | H31: 10 | I31: 605 | J31: 750 | K31: 295 | L31: 15 | M31: 2080 | O31: 0 | P31: 80 | Q31: 185 | R31: 15 | S31: 10 | T31: 120 | U31: 10 | V31: 605 | W31: 750 | X31: 295 | Y31: 15 | Z31: 2080
A32: Shetland | B32: 5 | C32: 5 | D32: 0 | E32: 0 | F32: 0 | G32: 0 | H32: 0 | I32: 195 | J32: 210 | K32: 0 | L32: 10 | M32: 430 | O32: 5 | P32: 5 | Q32: 0 | R32: 0 | S32: 0 | T32: 0 | U32: 0 | V32: 195 | W32: 210 | X32: 0 | Y32: 10 | Z32: 430
A33: South Ayrshire | B33: 0 | C33: 0 | D33: 10 | E33: 5 | F33: 0 | G33: 0 | H33: 0 | I33: 470 | J33: 500 | K33: 10 | L33: 5 | M33: 1005 | O33: 0 | P33: 0 | Q33: 10 | R33: 5 | S33: 0 | T33: 0 | U33: 0 | V33: 470 | W33: 500 | X33: 10 | Y33: 5 | Z33: 1005
A34: South Lanarkshire | B34: 5 | C34: 125 | D34: 235 | E34: 20 | F34: 10 | G34: 0 | H34: 10 | I34: 750 | J34: 910 | K34: 420 | L34: 10 | M34: 2490 | O34: 5 | P34: 125 | Q34: 235 | R34: 20 | S34: 10 | T34: 0 | U34: 10 | V34: 750 | W34: 910 | X34: 420 | Y34: 10 | Z34: 2490
A35: Stirling | B35: 0 | C35: 10 | D35: 35 | E35: 5 | F35: 5 | G35: 0 | H35: 5 | I35: 90 | J35: 280 | K35: 25 | L35: 0 | M35: 450 | O35: 0 | P35: 10 | Q35: 35 | R35: 5 | S35: 5 | T35: 0 | U35: 5 | V35: 90 | W35: 280 | X35: 25 | Y35: 0 | Z35: 450
A36: West Dunbartonshire | B36: 0 | C36: 30 | D36: 25 | E36: 5 | F36: 0 | G36: 0 | H36: 5 | I36: 165 | J36: 130 | K36: 80 | L36: 10 | M36: 450 | O36: 0 | P36: 30 | Q36: 25 | R36: 5 | S36: 0 | T36: 0 | U36: 5 | V36: 165 | W36: 130 | X36: 80 | Y36: 10 | Z36: 450
A37: West Lothian | B37: 5 | C37: 55 | D37: 315 | E37: 10 | F37: 5 | G37: 0 | H37: 15 | I37: 1105 | J37: 1305 | K37: 130 | L37: 5 | M37: 2960 | O37: 5 | P37: 55 | Q37: 315 | R37: 10 | S37: 5 | T37: 0 | U37: 15 | V37: 1105 | W37: 1305 | X37: 130 | Y37: 5 | Z37: 2960
A39: Disclosure Control has been applied to this table. All cells have been rounded to the nearest five.
A40: Column totals may not sum to total of individual cells due to rounding.
A42: Table 7b: Housing Options activities by Local Authority, during 1 April 2016 to 31 March 2017 (percent)
A44: Local Authority | B44: ACTIVITY | M44: All
B45: Mediation/ outreach work | C45: Financial assistance/ advice | D45: Rent/repairs/ referrals/ negotiation with landlords | E45: Help to remain in accommodation | F45: Mortgage/ home ownership advice | G45: Tenancy/ social care support/ adaptations to property | H45: Referral to health/Social Work/ employment services | I45: Client informed of rights under homelessness legislation | J45: General Housing advice/ Tenancy rights advice | K45: Help to move property | L45: Other
A46: Scotland | B46: =B5/$M5 -> 0.01545200732 | C46: =C5/$M5 -> 0.07244632714 | D46: 0.06185616636 | E46: 0.02310580533 | F46: 0.003225185328 | G46: 0.01203427361 | H46: 0.03075960335 | I46: 0.2649465678 | J46: 0.3862520458 | K46: 0.07417926254 | L46: 0.05569461827 | M46: 1
A47: Aberdeen City | B47: =B6/$M6 -> 0.0197044335 | C47: 0.02955665025 | D47: 0.0118226601 | E47: 0.04334975369 | F47: 0.002955665025 | G47: 0.0039408867 | H47: 0.0118226601 | I47: 0.1842364532 | J47: 0.4926108374 | K47: 0.1990147783 | L47: 0 | M47: 1
A48: Aberdeenshire | B48: =B7/$M7 -> 0.006741573034 | C48: 0.09213483146 | D48: 0.1134831461 | E48: 0.005617977528 | F48: 0.01123595506 | G48: 0.001123595506 | H48: 0.005617977528 | I48: 0.3112359551 | J48: 0.4325842697 | K48: 0.004494382022 | L48: 0.01573033708 | M48: 1
A49: Angus | B49: =B8/$M8 -> 0.01073619632 | C49: 0.1671779141 | D49: 0.03680981595 | E49: 0.02760736196 | F49: 0.001533742331 | G49: 0.01993865031 | H49: 0.006134969325 | I49: 0.1917177914 | J49: 0.3266871166 | K49: 0.1993865031 | L49: 0.009202453988 | M49: 1
A50: Argyll & Bute | B50: =B9/$M9 -> 0.004842615012 | C50: 0.02905569007 | D50: 0.05569007264 | E50: 0.1598062954 | F50: 0 | G50: 0.01694915254 | H50: 0.002421307506 | I50: 0.1162227603 | J50: 0.5472154964 | K50: 0.06053268765 | L50: 0.01210653753 | M50: 1
A51: Clackmannanshire | B51: =B10/$M10 -> 0.003267973856 | C51: 0.009803921569 | D51: 0.03594771242 | E51: 0 | F51: 0 | G51: 0 | H51: 0.003267973856 | I51: 0.5163398693 | J51: 0.3986928105 | K51: 0.02941176471 | L51: 0 | M51: 1
A52: Dumfries & Galloway | B52: =B11/$M11 -> 0.001949317739 | C52: 0.03703703704 | D52: 0.05263157895 | E52: 0.01169590643 | F52: 0.001949317739 | G52: 0.05263157895 | H52: 0.0253411306 | I52: 0.3489278752 | J52: 0.3567251462 | K52: 0.0955165692 | L52: 0.01364522417 | M52: 1
A53: Dundee City | B53: =B12/$M12 -> 0.0246350365 | C53: 0.01551094891 | D53: 0.01916058394 | E53: 0.01094890511 | F53: 0 | G53: 0.0009124087591 | H53: 0.003649635036 | I53: 0.3886861314 | J53: 0.4425182482 | K53: 0.05474452555 | L53: 0.03923357664 | M53: 1
A54: East Ayrshire | B54: =B13/$M13 -> 0.01098901099 | C54: 0.2197802198 | D54: 0.1648351648 | E54: 0.01098901099 | F54: 0.03296703297 | G54: 0.06593406593 | H54: 0.04395604396 | I54: 0.1978021978 | J54: 0.2197802198 | K54: 0.03296703297 | L54: 0.01098901099 | M54: 1
A55: East Dunbartonshire | B55: =B14/$M14 -> 0 | C55: 0.163141994 | D55: 0.1299093656 | E55: 0.01510574018 | F55: 0.01812688822 | G55: 0 | H55: 0.01510574018 | I55: 0.2054380665 | J55: 0.2145015106 | K55: 0.2296072508 | L55: 0.003021148036 | M55: 1
A56: East Lothian | B56: =B15/$M15 -> 0 | C56: 0.05785123967 | D56: 0.1900826446 | E56: 0.04545454545 | F56: 0.00826446281 | G56: 0 | H56: 0 | I56: 0.1652892562 | J56: 0.2727272727 | K56: 0.2438016529 | L56: 0.01652892562 | M56: 1
A57: East Renfrewshire | B57: =B16/$M16 -> 0 | C57: 0.1219512195 | D57: 0.1585365854 | E57: 0.03658536585 | F57: 0.03658536585 | G57: 0.01219512195 | H57: 0.0243902439 | I57: 0.3170731707 | J57: 0.2682926829 | K57: 0.01219512195 | L57: 0 | M57: 1
A58: Edinburgh | B58: =B17/$M17 -> 0.003159557662 | C58: 0.05213270142 | D58: 0.009478672986 | E58: 0.002369668246 | F58: 0 | G58: 0.0007898894155 | H58: 0.01184834123 | I58: 0.2867298578 | J58: 0.6200631912 | K58: 0.005529225908 | L58: 0.007898894155 | M58: 1
A59: Eilean Siar | B59: =B18/$M18 -> 0 | C59: 0.2 | D59: 0 | E59: 0 | F59: 0 | G59: 0 | H59: 0 | I59: 0.4 | J59: 0.2 | K59: 0.2 | L59: 0 | M59: 1
A60: Falkirk | B60: =B19/$M19 -> 0.05521283159 | C60: 0.1702652684 | D60: 0.01326341764 | E60: 0.06354102406 | F60: 0.001542257866 | G60: 0.009561998766 | H60: 0.06323257249 | I60: 0.126465145 | J60: 0.153917335 | K60: 0.08760024676 | L60: 0.2560148057 | M60: 1
A61: Fife | B61: =B20/$M20 -> 0.005661712668 | C61: 0.02406227884 | D61: 0.1012031139 | E61: 0.005661712668 | F61: 0.009907997169 | G61: 0.004953998585 | H61: 0.01203113942 | I61: 0.3326256192 | J61: 0.4125973107 | K61: 0.07997169144 | L61: 0.01132342534 | M61: 1
A62: Glasgow City | B62: =B21/$M21 -> 0.002011060835 | C62: 0.008547008547 | D62: 0.02765208648 | E62: 0.01659125189 | F62: 0 | G62: 0.0005027652086 | H62: 0.1312217195 | I62: 0.3810960282 | J62: 0.4183006536 | K62: 0.01458019105 | L62: 0 | M62: 1
A63: Highland | B63: =B22/$M22 -> 0.006622516556 | C63: 0.03311258278 | D63: 0.01324503311 | E63: 0.01324503311 | F63: 0.01324503311 | G63: 0.006622516556 | H63: 0.006622516556 | I63: 0.417218543 | J63: 0.4834437086 | K63: 0.01324503311 | L63: 0 | M63: 1
A64: Inverclyde | B64: =B23/$M23 -> 0.003861003861 | C64: 0.02316602317 | D64: 0.003861003861 | E64: 0.003861003861 | F64: 0 | G64: 0 | H64: 0.003861003861 | I64: 0.471042471 | J64: 0.4478764479 | K64: 0.02702702703 | L64: 0.01544401544 | M64: 1
A65: Midlothian | B65: =B24/$M24 -> 0.03790087464 | C65: 0.02332361516 | D65: 0.02332361516 | E65: 0.002915451895 | F65: 0.00583090379 | G65: 0.01166180758 | H65: 0.008746355685 | I65: 0.2128279883 | J65: 0.3965014577 | K65: 0.07580174927 | L65: 0.2040816327 | M65: 1
A66: Moray | B66: =B25/$M25 -> 0.01502504174 | C66: 0.08681135225 | D66: 0.03505843072 | E66: 0.005008347245 | F66: 0.001669449082 | G66: 0.01168614357 | H66: 0.01335559265 | I66: 0.2838063439 | J66: 0.3722871452 | K66: 0.1035058431 | L66: 0.07011686144 | M66: 1
A67: North Ayrshire | B67: =B26/$M26 -> 0 | C67: 0.01064962726 | D67: 0.3077742279 | E67: 0.005324813632 | F67: 0.002129925453 | G67: 0.001064962726 | H67: 0.005324813632 | I67: 0.3173588924 | J67: 0.3258785942 | K67: 0.02236421725 | L67: 0.003194888179 | M67: 1
A68: North Lanarkshire | B68: =B27/$M27 -> 0.001503759398 | C68: 0.1315789474 | D68: 0.05639097744 | E68: 0.02030075188 | F68: 0.003759398496 | G68: 0.05714285714 | H68: 0.02105263158 | I68: 0.1090225564 | J68: 0.5518796992 | K68: 0.02180451128 | L68: 0.02556390977 | M68: 1
A69: Orkney | B69: =B28/$M28 -> 0 | C69: 0.06666666667 | D69: 0.06666666667 | E69: 0 | F69: 0 | G69: 0 | H69: 0 | I69: 0.2666666667 | J69: 0.5333333333 | K69: 0.06666666667 | L69: 0 | M69: 1
A70: Perth & Kinross | B70: =B29/$M29 -> 0.006593406593 | C70: 0.01758241758 | D70: 0.1626373626 | E70: 0.002197802198 | F70: 0 | G70: 0.002197802198 | H70: 0.008791208791 | I70: 0.2527472527 | J70: 0.4791208791 | K70: 0.01098901099 | L70: 0.05494505495 | M70: 1
A71: Renfrewshire | B71: =B30/$M30 -> 0.02403433476 | C71: 0.1184549356 | D71: 0.05579399142 | E71: 0.005150214592 | F71: 0.0008583690987 | G71: 0.03004291845 | H71: 0.02489270386 | I71: 0.2463519313 | J71: 0.3433476395 | K71: 0.1244635193 | L71: 0.02660944206 | M71: 1
A72: Scottish Borders | B72: =B31/$M31 -> 0 | C72: 0.03846153846 | D72: 0.08894230769 | E72: 0.007211538462 | F72: 0.004807692308 | G72: 0.05769230769 | H72: 0.004807692308 | I72: 0.2908653846 | J72: 0.3605769231 | K72: 0.1418269231 | L72: 0.007211538462 | M72: 1
A73: Shetland | B73: =B32/$M32 -> 0.01162790698 | C73: 0.01162790698 | D73: 0 | E73: 0 | F73: 0 | G73: 0 | H73: 0 | I73: 0.4534883721 | J73: 0.488372093 | K73: 0 | L73: 0.02325581395 | M73: 1
A74: South Ayrshire | B74: =B33/$M33 -> 0 | C74: 0 | D74: 0.009950248756 | E74: 0.004975124378 | F74: 0 | G74: 0 | H74: 0 | I74: 0.4676616915 | J74: 0.4975124378 | K74: 0.009950248756 | L74: 0.004975124378 | M74: 1
A75: South Lanarkshire | B75: =B34/$M34 -> 0.002008032129 | C75: 0.05020080321 | D75: 0.09437751004 | E75: 0.008032128514 | F75: 0.004016064257 | G75: 0 | H75: 0.004016064257 | I75: 0.3012048193 | J75: 0.3654618474 | K75: 0.1686746988 | L75: 0.004016064257 | M75: 1
A76: Stirling | B76: =B35/$M35 -> 0 | C76: 0.02222222222 | D76: 0.07777777778 | E76: 0.01111111111 | F76: 0.01111111111 | G76: 0 | H76: 0.01111111111 | I76: 0.2 | J76: 0.6222222222 | K76: 0.05555555556 | L76: 0 | M76: 1
A77: West Dunbartonshire | B77: =B36/$M36 -> 0 | C77: 0.06666666667 | D77: 0.05555555556 | E77: 0.01111111111 | F77: 0 | G77: 0 | H77: 0.01111111111 | I77: 0.3666666667 | J77: 0.2888888889 | K77: 0.1777777778 | L77: 0.02222222222 | M77: 1
A78: West Lothian | B78: =B37/$M37 -> 0.001689189189 | C78: 0.01858108108 | D78: 0.1064189189 | E78: 0.003378378378 | F78: 0.001689189189 | G78: 0 | H78: 0.005067567568 | I78: 0.3733108108 | J78: 0.4408783784 | K78: 0.04391891892 | L78: 0.001689189189 | M78: 1
A80: Disclosure Control has been applied to this table. All cells have been rounded to the nearest five.
A81: Column totals may not sum to total of individual cells due to rounding.
J82: =MAX(J47:J78) -> 0.6222222222
B87: Chart Data
C88: Client informed of rights under homelessness legislation | D88: General Housing advice/ Tenancy rights advice | E88: Other
B89: Clackmannanshire | C89: 0.5163398693 | D89: 0.3986928105 | E89: 0.08169934641
B90: Inverclyde | C90: 0.471042471 | D90: 0.4478764479 | E90: 0.08108108108
B91: South Ayrshire | C91: 0.4676616915 | D91: 0.4975124378 | E91: 0.02985074627
B92: Shetland | C92: 0.4534883721 | D92: 0.488372093 | E92: 0.04651162791
B93: Highland | C93: 0.417218543 | D93: 0.4834437086 | E93: 0.1059602649
B94: Eilean Siar | C94: 0.4 | D94: 0.2 | E94: 0.4
B95: Dundee City | C95: 0.3886861314 | D95: 0.4425182482 | E95: 0.1687956204
B96: Glasgow City | C96: 0.3810960282 | D96: 0.4183006536 | E96: 0.2011060835
B97: West Lothian | C97: 0.3733108108 | D97: 0.4408783784 | E97: 0.1824324324
B98: West Dunbartonshire | C98: 0.3666666667 | D98: 0.2888888889 | E98: 0.3444444444
B99: Dumfries & Galloway | C99: 0.3489278752 | D99: 0.3567251462 | E99: 0.2923976608
B100: Fife | C100: 0.3326256192 | D100: 0.4125973107 | E100: 0.2547770701
B101: North Ayrshire | C101: 0.3173588924 | D101: 0.3258785942 | E101: 0.357827476
B102: East Renfrewshire | C102: 0.3170731707 | D102: 0.2682926829 | E102: 0.4024390244
B103: Aberdeenshire | C103: 0.3112359551 | D103: 0.4325842697 | E103: 0.2561797753
B104: South Lanarkshire | C104: 0.3012048193 | D104: 0.3654618474 | E104: 0.3353413655
B105: Scottish Borders | C105: 0.2908653846 | D105: 0.3605769231 | E105: 0.3509615385
B106: Edinburgh | C106: 0.2867298578 | D106: 0.6200631912 | E106: 0.09320695103
B107: Moray | C107: 0.2838063439 | D107: 0.3722871452 | E107: 0.3422370618
B108: Orkney | C108: 0.2666666667 | D108: 0.5333333333 | E108: 0.2
B109: Scotland | C109: 0.2649465678 | D109: 0.3862520458 | E109: 0.3487532493
B110: Perth & Kinross | C110: 0.2527472527 | D110: 0.4791208791 | E110: 0.2659340659
B111: Renfrewshire | C111: 0.2463519313 | D111: 0.3433476395 | E111: 0.4103004292
B112: Midlothian | C112: 0.2128279883 | D112: 0.3965014577 | E112: 0.3935860058
B113: East Dunbartonshire | C113: 0.2054380665 | D113: 0.2145015106 | E113: 0.5740181269
B114: Stirling | C114: 0.2 | D114: 0.6222222222 | E114: 0.1888888889
B115: East Ayrshire | C115: 0.1978021978 | D115: 0.2197802198 | E115: 0.5934065934
B116: Angus | C116: 0.1917177914 | D116: 0.3266871166 | E116: 0.4785276074
B117: Aberdeen City | C117: 0.1842364532 | D117: 0.4926108374 | E117: 0.3221674877
B118: East Lothian | C118: 0.1652892562 | D118: 0.2727272727 | E118: 0.5619834711
B119: Falkirk | C119: 0.126465145 | D119: 0.153917335 | E119: 0.7202344232
B120: Argyll & Bute | C120: 0.1162227603 | D120: 0.5472154964 | E120: 0.3414043584
B121: North Lanarkshire | C121: 0.1090225564 | D121: 0.5518796992 | E121: 0.3390977444

Sheet Chart 7 - Activities by LA
A1: Chart 7:Activities by Local Authority | N1: Back to Contents
A2: Data from 1 April 2016 to 31 March 2017

Sheet Table 8 - Outcomes by Quarter
A1: Table 8a: Outcomes by Quarter (number) | F1: Back to Contents
B3: Quarter of Approach Closure | N3: All | P3: Annual change
A4: Outcomes | B4: 2014 Q2 | C4: 2014 Q3 | D4: 2014 Q4 | E4: 2015 Q1 | F4: 2015 Q2 | G4: 2015 Q3 | H4: 2015 Q4 | I4: 2016 Q1 | J4: 2016 Q2 | K4: 2016 Q3 | L4: 2016 Q4 | M4: 2017 Q1 | P4: 2015/16 | Q4: 2016/17 | R4: Change | S4: % change
A5: Made homelessness application to local authority | B5: 4941 | C5: 6648 | D5: 6026 | E5: 7169 | F5: 6512 | G5: 6658 | H5: 6094 | I5: 6397 | J5: 6297 | K5: 5217 | L5: 5280 | M5: 5640 | N5: 72879 | P5: =SUM(F5:I5) -> 25661 | Q5: =SUM(J5:M5) -> 22434 | R5: =Q5-P5 -> -3227 | S5: =R5/P5 -> -0.1257550368
A6: Remained in current accommodation | B6: 1670 | C6: 2634 | D6: 2983 | E6: 2739 | F6: 2629 | G6: 2877 | H6: 2732 | I6: 2759 | J6: 2604 | K6: 2715 | L6: 2389 | M6: 3325 | N6: 32056 | P6: =SUM(F6:I6) -> 10997 | Q6: =SUM(J6:M6) -> 11033 | R6: =Q6-P6 -> 36 | S6: =R6/P6 -> 0.003273620078
A7: Lost Contact/ Not known | B7: 1083 | C7: 2540 | D7: 2395 | E7: 1774 | F7: 1668 | G7: 1820 | H7: 2231 | I7: 1916 | J7: 2028 | K7: 1920 | L7: 1848 | M7: 3087 | N7: 24310 | P7: 7635 | Q7: 8883 | R7: 1248 | S7: 0.1634577603
A8: Other (known) | B8: 456 | C8: 717 | D8: 653 | E8: 467 | F8: 525 | G8: 572 | H8: 443 | I8: 690 | J8: 531 | K8: 734 | L8: 729 | M8: 907 | N8: 7424 | P8: 2230 | Q8: 2901 | R8: 671 | S8: 0.300896861
A9: LA/RSL Tenancy | B9: 226 | C9: 412 | D9: 505 | E9: 482 | F9: 577 | G9: 545 | H9: 568 | I9: 589 | J9: 534 | K9: 809 | L9: 507 | M9: 503 | N9: 6257 | P9: 2279 | Q9: 2353 | R9: 74 | S9: 0.03247038175
A10: PRS Tenancy | B10: 270 | C10: 466 | D10: 424 | E10: 463 | F10: 497 | G10: 468 | H10: 477 | I10: 411 | J10: 461 | K10: 501 | L10: 405 | M10: 432 | N10: 5275 | P10: 1853 | Q10: 1799 | R10: -54 | S10: -0.029141932
A11: Moved-in with friends/ relatives | B11: 187 | C11: 341 | D11: 294 | E11: 259 | F11: 252 | G11: 254 | H11: 309 | I11: 285 | J11: 270 | K11: 315 | L11: 238 | M11: 285 | N11: 3289 | P11: 1100 | Q11: 1108 | R11: 8 | S11: 0.007272727273
A12: Total (ALL) | B12: 8833 | C12: 13758 | D12: 13280 | E12: 13353 | F12: 12660 | G12: 13194 | H12: 12854 | I12: 13047 | J12: 12725 | K12: 12211 | L12: 11396 | M12: 14179 | N12: 151490 | P12: 51755 | Q12: 50511 | R12: -1244 | S12: -0.02403632499
A14: Table 8b: Outcomes by Quarter (percent)
B16: Quarter of Approach Closure | N16: All
A17: Outcomes | B17: 2014 Q2 | C17: 2014 Q3 | D17: 2014 Q4 | E17: 2015 Q1 | F17: 2015 Q2 | G17: 2015 Q3 | H17: 2015 Q4 | I17: 2016 Q1 | J17: 2016 Q2 | K17: 2016 Q3 | L17: 2016 Q4 | M17: 2017 Q1 | P17: 2015/16 | Q17: 2016/17
A18: Made homelessness application to local authority | B18: =B5/B$12 -> 0.5593795992 | C18: =C5/C$12 -> 0.4832097689 | D18: 0.4537650602 | E18: 0.5368830974 | F18: 0.5143759874 | G18: 0.5046233136 | H18: 0.4740936673 | I18: 0.4903042845 | J18: =J5/J$12 -> 0.4948526523 | K18: 0.4272377365 | L18: 0.4633204633 | M18: 0.397771352 | N18: =J5/J$12 -> 0.4948526523 | P18: =P5/$P$12 -> 0.4958168293 | Q18: =Q5/$Q$12 -> 0.4441408802
A19: Remained in current accommodation | B19: =B6/B$12 -> 0.1890637383 | C19: 0.191452246 | D19: 0.224623494 | E19: 0.2051224444 | F19: 0.2076619273 | G19: 0.2180536608 | H19: 0.2125408433 | I19: 0.2114662374 | J19: =J6/J$12 -> 0.2046365422 | K19: 0.2223405127 | L19: 0.2096349596 | M19: 0.2345017279 | N19: 0.2046365422 | P19: =P6/$P$12 -> 0.2124818858 | Q19: =Q6/$Q$12 -> 0.2184276692
A20: Lost Contact/ Not known | B20: 0.1226084003 | C20: 0.1846198575 | D20: 0.1803463855 | E20: 0.1328540403 | F20: 0.1317535545 | G20: 0.1379414886 | H20: 0.1735646491 | I20: 0.1468536828 | J20: =J7/J$12 -> 0.1593713163 | K20: 0.1572352797 | L20: 0.1621621622 | M20: 0.2177163411 | N20: 0.1593713163 | P20: 0.1475219786 | Q20: 0.1758626834
A21: Other (known) | B21: 0.05162458961 | C21: 0.05211513301 | D21: 0.04917168675 | E21: 0.03497341421 | F21: 0.04146919431 | G21: 0.04335303926 | H21: 0.03446398008 | I21: 0.05288572086 | J21: =J8/J$12 -> 0.04172888016 | K21: 0.06010973712 | L21: 0.06396981397 | M21: 0.06396783976 | N21: 0.04172888016 | P21: 0.04308762438 | Q21: 0.05743303439
A22: LA/RSL Tenancy | B22: 0.02558587116 | C22: 0.02994621311 | D22: 0.03802710843 | E22: 0.03609675728 | F22: 0.04557661927 | G22: 0.04130665454 | H22: 0.04418857943 | I22: 0.04514447766 | J22: =J9/J$12 -> 0.04196463654 | K22: 0.06625174023 | L22: 0.04448929449 | M22: 0.03547499824 | N22: 0.04196463654 | P22: 0.04403439281 | Q22: 0.04658391242
A23: PRS Tenancy | B23: 0.03056719121 | C23: 0.03387120221 | D23: 0.03192771084 | E23: 0.03467385606 | F23: 0.03925750395 | G23: 0.03547066849 | H23: 0.03710907111 | I23: 0.0315014946 | J23: =J10/J$12 -> 0.03622789784 | K23: 0.04102858079 | L23: 0.03553878554 | M23: 0.03046759292 | N23: 0.03622789784 | P23: 0.03580330403 | Q23: 0.03561600443
A24: Moved-in with friends/ relatives | B24: 0.02117061021 | C24: 0.0247855793 | D24: 0.02213855422 | E24: 0.01939639032 | F24: 0.01990521327 | G24: 0.01925117478 | H24: 0.02403920958 | I24: 0.02184410209 | J24: =J11/J$12 -> 0.02121807466 | K24: 0.02579641307 | L24: 0.02088452088 | M24: 0.02010014811 | N24: 0.02121807466 | P24: 0.02125398512 | Q24: 0.02193581596
A25: Total (ALL) | B25: 1 | C25: 1 | D25: 1 | E25: 1 | F25: 1 | G25: 1 | H25: 1 | I25: 1 | J25: =J12/J$12 -> 1 | K25: 1 | L25: 1 | M25: 1 | N25: 1 | P25: =P12/$P$12 -> 1 | Q25: 1
A35: Data for chart
B37: Quarter of Approach Closure | N37: All
B38: 2014 Q2 | C38: 2014 Q3 | D38: 2014 Q4 | E38: 2015 Q1 | F38: 2015 Q2 | G38: 2015 Q3 | H38: 2015 Q4 | I38: 2016 Q1 | J38: 2016 Q2 | K38: 2016 Q3 | L38: 2016 Q4 | M38: 2017 Q1
A39: Made homelessness application to local authority | B39: 4941 | C39: 6648 | D39: 6026 | E39: 7169 | F39: 6512 | G39: 6658 | H39: 6094 | I39: 6397 | J39: 6297 | K39: 5217 | L39: 5280 | M39: 5640 | N39: 72879
A40: Remained in current accommodation | B40: 1670 | C40: 2634 | D40: 2983 | E40: 2739 | F40: 2629 | G40: 2877 | H40: 2732 | I40: 2759 | J40: 2604 | K40: 2715 | L40: 2389 | M40: 3325 | N40: 32056
A41: Lost Contact/ Not known | B41: 1083 | C41: 2540 | D41: 2395 | E41: 1774 | F41: 1668 | G41: 1820 | H41: 2231 | I41: 1916 | J41: 2028 | K41: 1920 | L41: 1848 | M41: 3087 | N41: 24310
A42: Moved into Alternative Accommodation | B42: 1139 | C42: 1936 | D42: 1876 | E42: 1671 | F42: 1851 | G42: 1839 | H42: 1797 | I42: 1975 | J42: 1796 | K42: 2359 | L42: 1879 | M42: 2127 | N42: 22245
A43: Total (ALL) | B43: =SUM(B39:B42) -> 8833 | C43: =SUM(C39:C42) -> 13758 | D43: 13280 | E43: 13353 | F43: 12660 | G43: 13194 | H43: 12854 | I43: 13047 | J43: 12725 | K43: 12211 | L43: 11396 | M43: 14179 | N43: 151490
B45: Quarter of Approach Closure | N45: All
B46: 2014 Q2 | C46: 2014 Q3 | D46: 2014 Q4 | E46: 2015 Q1 | F46: 2015 Q2 | G46: 2015 Q3 | H46: 2015 Q4 | I46: 2016 Q1 | J46: 2016 Q2 | K46: 2016 Q3 | L46: 2016 Q4 | M46: 2017 Q1
A47: Made homelessness application to local authority | B47: =B39/B$43 -> 0.5593795992 | C47: =C39/C$43 -> 0.4832097689 | D47: 0.4537650602 | E47: 0.5368830974 | F47: 0.5143759874 | G47: 0.5046233136 | H47: =H39/H$43 -> 0.4740936673 | I47: 0.4903042845 | J47: =J39/J$43 -> 0.4948526523 | K47: 0.4272377365 | L47: 0.4633204633 | M47: 0.397771352 | N47: 0.4810812595
A48: Remained in current accommodation | B48: =B40/B$43 -> 0.1890637383 | C48: 0.191452246 | D48: 0.224623494 | E48: 0.2051224444 | F48: 0.2076619273 | G48: 0.2180536608 | H48: =H40/H$43 -> 0.2125408433 | I48: 0.2114662374 | J48: =J40/J$43 -> 0.2046365422 | K48: 0.2223405127 | L48: 0.2096349596 | M48: 0.2345017279 | N48: 0.2116047264
A49: Lost Contact/ Not known | B49: 0.1226084003 | C49: 0.1846198575 | D49: 0.1803463855 | E49: 0.1328540403 | F49: 0.1317535545 | G49: 0.1379414886 | H49: =H41/H$43 -> 0.1735646491 | I49: 0.1468536828 | J49: =J41/J$43 -> 0.1593713163 | K49: 0.1572352797 | L49: 0.1621621622 | M49: 0.2177163411 | N49: 0.1604726385
A50: Moved into Alternative Accommodation | B50: 0.1289482622 | C50: 0.1407181276 | D50: 0.1412650602 | E50: 0.1251404179 | F50: 0.1462085308 | G50: 0.1393815371 | H50: =H42/H$43 -> 0.1398008402 | I50: 0.1513757952 | J50: =J42/J$43 -> 0.1411394892 | K50: 0.1931864712 | L50: 0.1648824149 | M50: 0.150010579 | N50: 0.1468413757
A51: Total (ALL) | B51: 1 | C51: 1 | D51: 1 | E51: 1 | F51: 1 | G51: 1 | H51: =H43/H$43 -> 1 | I51: 1 | J51: =J43/J$43 -> 1 | K51: 1 | L51: 1 | M51: 1 | N51: 1
A56: Made homelessness application to local authority | B56: 0.4810812595
A57: Remained in current accommodation | B57: 0.2116047264
A58: Lost Contact/ Not known | B58: 0.1604726385
A59: Moved into Alternative Accommodation | B59: 0.1468413757
A60: Total (ALL) | B60: 1

Sheet Chart 8 - Outcomes by quarter
A1: Chart 8: Outcome of Housing Options Approaches by quarter | N1: Back to Contents
A2: Data from 1 April 2014 to 31 March 2017

Sheet Chart 9 - Outcome Durations
A1: Chart 9: Distribution of approach duration by outcome | H1: Back to Contents
A2: All approaches closed between 1 April 2014 and 31 March 2017
A36: Workings for Chart XX: Distribution of approach duration by outcome
A37: All approaches closed between 1 April 2014 and 31 March 2017
A39: Outcome | B39: Number | C39: Number of days between Approach Date and Outcome Date
C40: P5 | D40: Q1 | E40: Median | F40: Q3 | G40: P95
A41: LA/RSL Tenancy | B41: 6257 | C41: 0 | D41: 23 | E41: 64 | F41: 140 | G41: 392
A42: PRS Tenancy | B42: 5275 | C42: 0 | D42: 22 | E42: 49 | F42: 104 | G42: 325
A43: Other (known) | B43: 7424 | C43: 0 | D43: 3 | E43: 31 | F43: 99 | G43: 367
A44: Moved-in with friends/ relatives | B44: 3289 | C44: 0 | D44: 8 | E44: 32 | F44: 77 | G44: 250
A45: Lost Contact/ Not known | B45: 24310 | C45: 0 | D45: 13 | E45: 41 | F45: 98 | G45: 423
A46: Remained in current accommodation | B46: 32056 | C46: 0 | D46: 4 | E46: 29 | F46: 80 | G46: 294
A47: Made homelessness application to local authority | B47: 72879 | C47: 0 | D47: 0 | E47: 1 | F47: 20 | G47: 306
A48: All Outcomes | B48: 151490 | C48: 0 | D48: 0 | E48: 15 | F48: 64 | G48: 337
A50: Notes
A51: P5 = 5th Percentile. 5% of approaches have been open for this many days.
A52: Q1 = First Quartile. 25% of approaches have been open for this many days.
A53: Median. 50% of approaches have been open for this many days.
A54: Q3 = First Quartile. 75% of approaches have been open for this many days. Conversely, 25% of cases have been open for more than this number of days.
A55: P95 = 95th Percentile. 5% of approaches have been open for more than this number of days.
A58: Data for Box Plot
A59: Outcome | B59: P5 | C59: Q1 | D59: Median | E59: Q3 | F59: P95
A60: Made homelessness application to local authority | B60: 0 | C60: 0 | D60: 1 | E60: 20 | F60: 306
A61: Other (known) | B61: 0 | C61: 3 | D61: 31 | E61: 99 | F61: 367
A62: Remained in current accommodation | B62: 0 | C62: 4 | D62: 29 | E62: 80 | F62: 294
A63: Moved-in with friends/ relatives | B63: 0 | C63: 8 | D63: 32 | E63: 77 | F63: 250
A64: Lost Contact/ Not known | B64: 0 | C64: 13 | D64: 41 | E64: 98 | F64: 423
A65: PRS Tenancy | B65: 0 | C65: 22 | D65: 49 | E65: 104 | F65: 325
A66: LA/RSL Tenancy | B66: 0 | C66: 23 | D66: 64 | E66: 140 | F66: 392
A68: =A59 -> Outcome | B68: Q1 | C68: Median-Q1 | D68: Q3-Median | E68: Q1-P5 | F68: P95-Q3 | G68: Median
A69: =A60 -> Made homelessness application to local authority | B69: =C60 -> 0 | C69: =D60-C60 -> 1 | D69: 19 | E69: =C60-B60 -> 0 | F69: =F60-E60 -> 286 | G69: =D60 -> 1
A70: Other (known) | B70: 3 | C70: 28 | D70: 68 | E70: 3 | F70: 268 | G70: 31
A71: Remained in current accommodation | B71: 4 | C71: 25 | D71: 51 | E71: 4 | F71: 214 | G71: 29
A72: Moved-in with friends/ relatives | B72: 8 | C72: 24 | D72: 45 | E72: 8 | F72: 173 | G72: 32
A73: Lost Contact/ Not known | B73: 13 | C73: 28 | D73: 57 | E73: 13 | F73: 325 | G73: 41
A74: PRS Tenancy | B74: 22 | C74: 27 | D74: 55 | E74: 22 | F74: 221 | G74: 49
A75: LA/RSL Tenancy | B75: 23 | C75: 41 | D75: 76 | E75: 23 | F75: 252 | G75: 64
A78: Outcome | B78: Q1 | C78: Median-Q1 | D78: Q3-Median | E78: Q1-P5 | F78: P95-Q3 | G78: Median
A79: Made homelessness application to local authority | B79: 0 | C79: 1 | D79: 19 | E79: 0 | F79: 286 | G79: 1
A80: Remained in current accommodation | B80: 4 | C80: 25 | D80: 51 | E80: 4 | F80: 214 | G80: 29
A81: Other (known) | B81: 3 | C81: 28 | D81: 68 | E81: 3 | F81: 268 | G81: 31
A82: Moved-in with friends/ relatives | B82: 8 | C82: 24 | D82: 45 | E82: 8 | F82: 173 | G82: 32
A83: Lost Contact/ Not known | B83: 13 | C83: 28 | D83: 57 | E83: 13 | F83: 325 | G83: 41
A84: PRS Tenancy | B84: 22 | C84: 27 | D84: 55 | E84: 22 | F84: 221 | G84: 49
A85: LA/RSL Tenancy | B85: 23 | C85: 41 | D85: 76 | E85: 23 | F85: 252 | G85: 64

Sheet Table 9 - Outcomes by LA
A1: Table 9: Outcomes by LA: 1 April 2016 to 31 March 2017 | G1: Back to Contents
A3: Local Authority | B3: LA/RSL Tenancy | C3: PRS Tenancy | D3: Other (known) | E3: Moved-in with friends/ relatives | F3: Lost Contact/ Not known | G3: Remained in current accommodation | H3: Made homelessness application to local authority | I3: All
A4: Scotland | B4: 2355 | C4: 1800 | D4: 2900 | E4: 1110 | F4: 8885 | G4: 11035 | H4: 22435 | I4: 50510
A5: Aberdeen City | B5: 615 | C5: 220 | D5: 535 | E5: 50 | F5: 1740 | G5: 1660 | H5: 1335 | I5: 6150
A6: Aberdeenshire | B6: 50 | C6: 135 | D6: 75 | E6: 50 | F6: 600 | G6: 390 | H6: 655 | I6: 1950
A7: Angus | B7: 35 | C7: 35 | D7: 55 | E7: 20 | F7: 110 | G7: 270 | H7: 465 | I7: 995
A8: Argyll & Bute | B8: 95 | C8: 55 | D8: 60 | E8: 55 | F8: 200 | G8: 800 | H8: 390 | I8: 1660
A9: Clackmannanshire | B9: 5 | C9: 0 | D9: 0 | E9: 0 | F9: 10 | G9: 10 | H9: 345 | I9: 375
A10: Dumfries & Galloway | B10: 30 | C10: 10 | D10: 15 | E10: 15 | F10: 205 | G10: 95 | H10: 780 | I10: 1150
A11: Dundee City | B11: 60 | C11: 70 | D11: 105 | E11: 35 | F11: 615 | G11: 450 | H11: 865 | I11: 2195
A12: East Ayrshire | B12: 30 | C12: 5 | D12: 0 | E12: 0 | F12: 0 | G12: 25 | H12: 15 | I12: 80
A13: East Dunbartonshire | B13: 5 | C13: 10 | D13: 10 | E13: 0 | F13: 60 | G13: 50 | H13: 245 | I13: 385
A14: East Lothian | B14: 0 | C14: 10 | D14: 5 | E14: 10 | F14: 45 | G14: 60 | H14: 75 | I14: 210
A15: East Renfrewshire | B15: 10 | C15: 5 | D15: 10 | E15: 5 | F15: 35 | G15: 75 | H15: 45 | I15: 190
A16: Edinburgh | B16: 105 | C16: 65 | D16: 130 | E16: 120 | F16: 1005 | G16: 1290 | H16: 3230 | I16: 5950
A17: Eilean Siar | B17: 0 | C17: 0 | D17: 0 | E17: 0 | F17: 0 | G17: 0 | H17: 5 | I17: 10
A18: Falkirk | B18: 40 | C18: 10 | D18: 120 | E18: 70 | F18: 155 | G18: 405 | H18: 1280 | I18: 2080
A19: Fife | B19: 100 | C19: 145 | D19: 80 | E19: 15 | F19: 385 | G19: 265 | H19: 900 | I19: 1885
A20: Glasgow City | B20: 160 | C20: 20 | D20: 895 | E20: 155 | F20: 1740 | G20: 1400 | H20: 6020 | I20: 10390
A21: Highland | B21: 40 | C21: 55 | D21: 30 | E21: 35 | F21: 105 | G21: 155 | H21: 195 | I21: 615
A22: Inverclyde | B22: 50 | C22: 40 | D22: 50 | E22: 45 | F22: 165 | G22: 270 | H22: 230 | I22: 845
A23: Midlothian | B23: 5 | C23: 15 | D23: 30 | E23: 10 | F23: 30 | G23: 85 | H23: 25 | I23: 195
A24: Moray | B24: 45 | C24: 95 | D24: 30 | E24: 115 | F24: 105 | G24: 225 | H24: 475 | I24: 1090
A25: North Ayrshire | B25: 325 | C25: 385 | D25: 160 | E25: 55 | F25: 90 | G25: 300 | H25: 690 | I25: 2005
A26: North Lanarkshire | B26: 110 | C26: 10 | D26: 220 | E26: 35 | F26: 120 | G26: 345 | H26: 605 | I26: 1450
A27: Orkney | B27: 5 | C27: 5 | D27: 0 | E27: 0 | F27: 15 | G27: 5 | H27: 15 | I27: 45
A28: Perth & Kinross | B28: 45 | C28: 80 | D28: 75 | E28: 20 | F28: 325 | G28: 505 | H28: 675 | I28: 1725
A29: Renfrewshire | B29: 100 | C29: 25 | D29: 75 | E29: 70 | F29: 230 | G29: 765 | H29: 820 | I29: 2085
A30: Scottish Borders | B30: 60 | C30: 50 | D30: 45 | E30: 15 | F30: 215 | G30: 130 | H30: 340 | I30: 850
A31: Shetland | B31: 15 | C31: 5 | D31: 10 | E31: 5 | F31: 55 | G31: 20 | H31: 100 | I31: 200
A32: South Ayrshire | B32: 50 | C32: 15 | D32: 10 | E32: 5 | F32: 80 | G32: 350 | H32: 745 | I32: 1255
A33: South Lanarkshire | B33: 65 | C33: 105 | D33: 35 | E33: 35 | F33: 230 | G33: 145 | H33: 260 | I33: 875
A34: Stirling | B34: 15 | C34: 10 | D34: 10 | E34: 20 | F34: 70 | G34: 145 | H34: 80 | I34: 350
A35: West Dunbartonshire | B35: 50 | C35: 15 | D35: 5 | E35: 5 | F35: 20 | G35: 45 | H35: 40 | I35: 175
A36: West Lothian | B36: 40 | C36: 80 | D36: 20 | E36: 30 | F36: 115 | G36: 305 | H36: 495 | I36: 1090
A38: Disclosure Control has been applied to this table. All cells have been rounded to the nearest five.
A39: Row totals may not sum to total of individual cells due to rounding.
A41: Table 9: Outcomes by LA: 1 April 2016 to 31 March 2017
A43: Local Authority | B43: LA/RSL Tenancy | C43: PRS Tenancy | D43: Other (known) | E43: Moved-in with friends/ relatives | F43: Lost Contact/ Not known | G43: Remained in current accommodation | H43: Made homelessness application to local authority | I43: All
A44: Scotland | B44: =B4/$I4 -> 0.04662443081 | C44: =C4/$I4 -> 0.03563650762 | D44: 0.05741437339 | E44: 0.02197584637 | F44: 0.1759057612 | G44: 0.2184715898 | H44: 0.4441694714 | I44: =SUM(B44,C44,D44,E44,F44,G44,H44) -> 1.000197981
A45: Aberdeen City | B45: =B5/$I5 -> 0.1 | C45: 0.03577235772 | D45: 0.08699186992 | E45: 0.008130081301 | F45: 0.2829268293 | G45: 0.2699186992 | H45: 0.2170731707 | I45: 1
A46: Aberdeenshire | B46: =B6/$I6 -> 0.02564102564 | C46: 0.06923076923 | D46: 0.03846153846 | E46: 0.02564102564 | F46: 0.3076923077 | G46: 0.2 | H46: 0.3358974359 | I46: 1
A47: Angus | B47: =B7/$I7 -> 0.0351758794 | C47: 0.0351758794 | D47: 0.05527638191 | E47: 0.02010050251 | F47: 0.1105527638 | G47: 0.2713567839 | H47: 0.4673366834 | I47: 1
A48: Argyll & Bute | B48: =B8/$I8 -> 0.05722891566 | C48: 0.03313253012 | D48: 0.03614457831 | E48: 0.03313253012 | F48: 0.1204819277 | G48: 0.4819277108 | H48: 0.234939759 | I48: 1
A49: Clackmannanshire | B49: =B9/$I9 -> 0.01333333333 | C49: 0 | D49: 0 | E49: 0 | F49: 0.02666666667 | G49: 0.02666666667 | H49: 0.92 | I49: 1
A50: Dumfries & Galloway | B50: =B10/$I10 -> 0.02608695652 | C50: 0.008695652174 | D50: 0.01304347826 | E50: 0.01304347826 | F50: 0.1782608696 | G50: 0.08260869565 | H50: 0.6782608696 | I50: 1
A51: Dundee City | B51: =B11/$I11 -> 0.02733485194 | C51: 0.03189066059 | D51: 0.04783599089 | E51: 0.0159453303 | F51: 0.2801822323 | G51: 0.2050113895 | H51: 0.3940774487 | I51: 1
A52: East Ayrshire | B52: =B12/$I12 -> 0.375 | C52: 0.0625 | D52: 0 | E52: 0 | F52: 0 | G52: 0.3125 | H52: 0.1875 | I52: 1
A53: East Dunbartonshire | B53: =B13/$I13 -> 0.01298701299 | C53: 0.02597402597 | D53: 0.02597402597 | E53: 0 | F53: 0.1558441558 | G53: 0.1298701299 | H53: 0.6363636364 | I53: 1
A54: East Lothian | B54: =B14/$I14 -> 0 | C54: 0.04761904762 | D54: 0.02380952381 | E54: 0.04761904762 | F54: 0.2142857143 | G54: 0.2857142857 | H54: 0.3571428571 | I54: 1
A55: East Renfrewshire | B55: =B15/$I15 -> 0.05263157895 | C55: 0.02631578947 | D55: 0.05263157895 | E55: 0.02631578947 | F55: 0.1842105263 | G55: 0.3947368421 | H55: 0.2368421053 | I55: 1
A56: Edinburgh | B56: =B16/$I16 -> 0.01764705882 | C56: 0.01092436975 | D56: 0.0218487395 | E56: 0.02016806723 | F56: 0.168907563 | G56: 0.2168067227 | H56: 0.5428571429 | I56: 1
A57: Eilean Siar | B57: =B17/$I17 -> 0 | C57: 0 | D57: 0 | E57: 0 | F57: 0 | G57: 0 | H57: 0.5 | I57: 1
A58: Falkirk | B58: =B18/$I18 -> 0.01923076923 | C58: 0.004807692308 | D58: 0.05769230769 | E58: 0.03365384615 | F58: 0.07451923077 | G58: 0.1947115385 | H58: 0.6153846154 | I58: 1
A59: Fife | B59: =B19/$I19 -> 0.05305039788 | C59: 0.07692307692 | D59: 0.0424403183 | E59: 0.007957559682 | F59: 0.2042440318 | G59: 0.1405835544 | H59: 0.4774535809 | I59: 1
A60: Glasgow City | B60: =B20/$I20 -> 0.01539942252 | C60: 0.001924927815 | D60: 0.08614051973 | E60: 0.01491819057 | F60: 0.1674687199 | G60: 0.1347449471 | H60: 0.5794032724 | I60: 1
A61: Highland | B61: =B21/$I21 -> 0.06504065041 | C61: 0.08943089431 | D61: 0.0487804878 | E61: 0.05691056911 | F61: 0.1707317073 | G61: 0.2520325203 | H61: 0.3170731707 | I61: 1
A62: Inverclyde | B62: =B22/$I22 -> 0.05917159763 | C62: 0.04733727811 | D62: 0.05917159763 | E62: 0.05325443787 | F62: 0.1952662722 | G62: 0.3195266272 | H62: 0.2721893491 | I62: 1
A63: Midlothian | B63: =B23/$I23 -> 0.02564102564 | C63: 0.07692307692 | D63: 0.1538461538 | E63: 0.05128205128 | F63: 0.1538461538 | G63: 0.4358974359 | H63: 0.1282051282 | I63: 1
A64: Moray | B64: =B24/$I24 -> 0.04128440367 | C64: 0.0871559633 | D64: 0.02752293578 | E64: 0.1055045872 | F64: 0.09633027523 | G64: 0.2064220183 | H64: 0.4357798165 | I64: 1
A65: North Ayrshire | B65: =B25/$I25 -> 0.1620947631 | C65: 0.1920199501 | D65: 0.07980049875 | E65: 0.02743142145 | F65: 0.04488778055 | G65: 0.1496259352 | H65: 0.3441396509 | I65: 1
A66: North Lanarkshire | B66: =B26/$I26 -> 0.07586206897 | C66: 0.006896551724 | D66: 0.1517241379 | E66: 0.02413793103 | F66: 0.08275862069 | G66: 0.2379310345 | H66: 0.4172413793 | I66: 1
A67: Orkney | B67: =B27/$I27 -> 0.1111111111 | C67: 0.1111111111 | D67: 0 | E67: 0 | F67: 0.3333333333 | G67: 0.1111111111 | H67: 0.3333333333 | I67: 1
A68: Perth & Kinross | B68: =B28/$I28 -> 0.02608695652 | C68: 0.04637681159 | D68: 0.04347826087 | E68: 0.0115942029 | F68: 0.1884057971 | G68: 0.2927536232 | H68: 0.3913043478 | I68: 1
A69: Renfrewshire | B69: =B29/$I29 -> 0.0479616307 | C69: 0.01199040767 | D69: 0.03597122302 | E69: 0.03357314149 | F69: 0.1103117506 | G69: 0.3669064748 | H69: 0.3932853717 | I69: 1
A70: Scottish Borders | B70: =B30/$I30 -> 0.07058823529 | C70: 0.05882352941 | D70: 0.05294117647 | E70: 0.01764705882 | F70: 0.2529411765 | G70: 0.1529411765 | H70: 0.4 | I70: 1
A71: Shetland | B71: =B31/$I31 -> 0.075 | C71: 0.025 | D71: 0.05 | E71: 0.025 | F71: 0.275 | G71: 0.1 | H71: 0.5 | I71: 1
A72: South Ayrshire | B72: =B32/$I32 -> 0.03984063745 | C72: 0.01195219124 | D72: 0.00796812749 | E72: 0.003984063745 | F72: 0.06374501992 | G72: 0.2788844622 | H72: 0.593625498 | I72: 1
A73: South Lanarkshire | B73: =B33/$I33 -> 0.07428571429 | C73: 0.12 | D73: 0.04 | E73: 0.04 | F73: 0.2628571429 | G73: 0.1657142857 | H73: 0.2971428571 | I73: 1
A74: Stirling | B74: =B34/$I34 -> 0.04285714286 | C74: 0.02857142857 | D74: 0.02857142857 | E74: 0.05714285714 | F74: 0.2 | G74: 0.4142857143 | H74: 0.2285714286 | I74: 1
A75: West Dunbartonshire | B75: =B35/$I35 -> 0.2857142857 | C75: 0.08571428571 | D75: 0.02857142857 | E75: 0.02857142857 | F75: 0.1142857143 | G75: 0.2571428571 | H75: 0.2285714286 | I75: 1
A76: West Lothian | B76: =B36/$I36 -> 0.03669724771 | C76: 0.07339449541 | D76: 0.01834862385 | E76: 0.02752293578 | F76: 0.1055045872 | G76: 0.2798165138 | H76: 0.4541284404 | I76: 1
A78: Disclosure Control has been applied to this table. All cells have been rounded to the nearest five.
A79: Row totals may not sum to total of individual cells due to rounding.
A82: Chart Data - Remained in Current Accommodation
B83: Made homelessness application to local authority | C83: Remained in current accommodation | D83: Not Known/Lost Contact | E83: Found Alternative Accommodation
A84: Midlothian | B84: 0.1282051282 | C84: 0.4358974359 | D84: 0.1538461538 | E84: 0.3076923077
A85: East Ayrshire | B85: 0.1875 | C85: 0.3125 | D85: 0 | E85: 0.4375
A86: Aberdeen City | B86: 0.2170731707 | C86: 0.2699186992 | D86: 0.2829268293 | E86: 0.2308943089
A87: Stirling | B87: 0.2285714286 | C87: 0.4142857143 | D87: 0.2 | E87: 0.1571428571
A88: West Dunbartonshire | B88: 0.2285714286 | C88: 0.2571428571 | D88: 0.1142857143 | E88: 0.4285714286
A89: Argyll & Bute | B89: 0.234939759 | C89: 0.4819277108 | D89: 0.1204819277 | E89: 0.1596385542
A90: East Renfrewshire | B90: 0.2368421053 | C90: 0.3947368421 | D90: 0.1842105263 | E90: 0.1578947368
A91: Inverclyde | B91: 0.2721893491 | C91: 0.3195266272 | D91: 0.1952662722 | E91: 0.2189349112
A92: South Lanarkshire | B92: 0.2971428571 | C92: 0.1657142857 | D92: 0.2628571429 | E92: 0.2742857143
A93: Highland | B93: 0.3170731707 | C93: 0.2520325203 | D93: 0.1707317073 | E93: 0.2601626016
A94: Orkney | B94: 0.3333333333 | C94: 0.1111111111 | D94: 0.3333333333 | E94: 0.2222222222
A95: Aberdeenshire | B95: 0.3358974359 | C95: 0.2 | D95: 0.3076923077 | E95: 0.158974359
A96: North Ayrshire | B96: 0.3441396509 | C96: 0.1496259352 | D96: 0.04488778055 | E96: 0.4613466334
A97: East Lothian | B97: 0.3571428571 | C97: 0.2857142857 | D97: 0.2142857143 | E97: 0.119047619
A98: Perth & Kinross | B98: 0.3913043478 | C98: 0.2927536232 | D98: 0.1884057971 | E98: 0.1275362319
A99: Renfrewshire | B99: 0.3932853717 | C99: 0.3669064748 | D99: 0.1103117506 | E99: 0.1294964029
A100: Dundee City | B100: 0.3940774487 | C100: 0.2050113895 | D100: 0.2801822323 | E100: 0.1230068337
A101: Scottish Borders | B101: 0.4 | C101: 0.1529411765 | D101: 0.2529411765 | E101: 0.2
A102: North Lanarkshire | B102: 0.4172413793 | C102: 0.2379310345 | D102: 0.08275862069 | E102: 0.2586206897
A103: Moray | B103: 0.4357798165 | C103: 0.2064220183 | D103: 0.09633027523 | E103: 0.2614678899
A104: Scotland | B104: 0.4441694714 | C104: 0.2184715898 | D104: 0.1759057612 | E104: 0.1616511582
A105: West Lothian | B105: 0.4541284404 | C105: 0.2798165138 | D105: 0.1055045872 | E105: 0.1559633028
A106: Angus | B106: 0.4673366834 | C106: 0.2713567839 | D106: 0.1105527638 | E106: 0.1457286432
A107: Fife | B107: 0.4774535809 | C107: 0.1405835544 | D107: 0.2042440318 | E107: 0.1803713528
A108: Eilean Siar | B108: 0.5 | C108: 0 | D108: 0 | E108: 0
A109: Shetland | B109: 0.5 | C109: 0.1 | D109: 0.275 | E109: 0.175
A110: Edinburgh | B110: 0.5428571429 | C110: 0.2168067227 | D110: 0.168907563 | E110: 0.07058823529
A111: Glasgow City | B111: 0.5794032724 | C111: 0.1347449471 | D111: 0.1674687199 | E111: 0.1183830606
A112: South Ayrshire | B112: 0.593625498 | C112: 0.2788844622 | D112: 0.06374501992 | E112: 0.06374501992
A113: Falkirk | B113: 0.6153846154 | C113: 0.1947115385 | D113: 0.07451923077 | E113: 0.1153846154
A114: East Dunbartonshire | B114: 0.6363636364 | C114: 0.1298701299 | D114: 0.1558441558 | E114: 0.06493506494
A115: Dumfries & Galloway | B115: 0.6782608696 | C115: 0.08260869565 | D115: 0.1782608696 | E115: 0.06086956522
A116: Clackmannanshire | B116: 0.92 | C116: 0.02666666667 | D116: 0.02666666667 | E116: 0.01333333333

Sheet Chart 10 - Outcomes by LA
A1: Chart 10: Variation in outcomes for each Local Authority | N1: Back to Contents
A2: All apporaches closed between 1 April 2016 and 31 March 2017

Sheet Chart 11- Lost Contact NK Boxpl
A1: Chart 11: Distribution of the number of days to outcome approach as Lost Contact or Not Known by LA | I1: Back to Contents
A2: All approaches closed between 1 April 2016 and 31 March 2017 where the outcome was lost contact or not known.
A64: Working for Chart XX: Distribution of the number of days to outcome approach as Lost Contact or Not Known by LA
A66: Local Authority | B66: Number of approaches with an outcomes of not known/ lost contact | C66: Number of days between Approach Date and Outcome Date
C67: P5 | D67: Q1 | E67: Median | F67: Q3 | G67: P95
A68: Scotland | B68: 8883 | C68: 0 | D68: 20 | E68: 55 | F68: 149 | G68: 632
A69: Aberdeen City | B69: 1738 | C69: 5 | D69: 121 | E69: 383 | F69: 610 | G69: 816
A70: Aberdeenshire | B70: 599 | C70: 1 | D70: 31 | E70: 62 | F70: 98 | G70: 197
A71: Angus | B71: 109 | C71: 0 | D71: 4 | E71: 34 | F71: 85 | G71: 203
A72: Argyll & Bute | B72: 202 | C72: 3 | D72: 29 | E72: 41 | F72: 69 | G72: 204
A73: Clackmannanshire | B73: 12 | C73: 0 | D73: 0 | E73: 4 | F73: 55 | G73: 158
A74: Dumfries & Galloway | B74: 205 | C74: 0 | D74: 0 | E74: 0 | F74: 117 | G74: 317
A75: Dundee City | B75: 616 | C75: 0 | D75: 2 | E75: 14 | F75: 37 | G75: 74
A76: East Ayrshire | B76: 1 | C76: 181 | D76: 181 | E76: 181 | F76: 181 | G76: 181
A77: East Dunbartonshire | B77: 62 | C77: 0 | D77: 0 | E77: 0 | F77: 0 | G77: 4
A78: East Lothian | B78: 46 | C78: 28 | D78: 39 | E78: 52 | F78: 64 | G78: 99
A79: East Renfrewshire | B79: 33 | C79: 23 | D79: 100 | E79: 136 | F79: 223 | G79: 317
A80: Edinburgh | B80: 1005 | C80: 0 | D80: 26 | E80: 29 | F80: 54 | G80: 214
A81: Eilean Siar | B81: 0 | C81: . | D81: . | E81: . | F81: . | G81: .
A82: Falkirk | B82: 156 | C82: 22 | D82: 72 | E82: 76 | F82: 77 | G82: 138
A83: Fife | B83: 384 | C83: 0 | D83: 18 | E83: 48 | F83: 73 | G83: 176
A84: Glasgow City | B84: 1738 | C84: 0 | D84: 11 | E84: 32 | F84: 83 | G84: 294
A85: Highland | B85: 107 | C85: 0 | D85: 10 | E85: 43 | F85: 111 | G85: 251
A86: Inverclyde | B86: 164 | C86: 27 | D86: 34 | E86: 56 | F86: 113 | G86: 253
A87: Midlothian | B87: 31 | C87: 19 | D87: 70 | E87: 111 | F87: 336 | G87: 597
A88: Moray | B88: 106 | C88: 14 | D88: 38 | E88: 59 | F88: 93 | G88: 149
A89: North Ayrshire | B89: 88 | C89: 0 | D89: 0 | E89: 318 | F89: 409 | G89: 424
A90: North Lanarkshire | B90: 122 | C90: 0 | D90: 35 | E90: 140 | F90: 449 | G90: 762
A91: Orkney | B91: 15 | C91: 53 | D91: 74 | E91: 121 | F91: 181 | G91: 713
A92: Perth & Kinross | B92: 324 | C92: 1 | D92: 23 | E92: 71 | F92: 183 | G92: 484
A93: Renfrewshire | B93: 232 | C93: 1 | D93: 21 | E93: 24 | F93: 48 | G93: 245
A94: Scottish Borders | B94: 215 | C94: 6 | D94: 20 | E94: 44 | F94: 104 | G94: 531
A95: Shetland | B95: 53 | C95: 0 | D95: 126 | E95: 335 | F95: 597 | G95: 709
A96: South Ayrshire | B96: 81 | C96: 0 | D96: 92 | E96: 180 | F96: 211 | G96: 354
A97: South Lanarkshire | B97: 230 | C97: 30 | D97: 59 | E97: 98 | F97: 152 | G97: 268
A98: Stirling | B98: 71 | C98: 7 | D98: 35 | E98: 73 | F98: 216 | G98: 462
A99: West Dunbartonshire | B99: 21 | C99: 55 | D99: 69 | E99: 79 | F99: 138 | G99: 173
A100: West Lothian | B100: 117 | C100: 0 | D100: 33 | E100: 68 | F100: 148 | G100: 360
A102: Notes
A103: P5 = 5th Percentile. 5% of approaches have been open for this many days.
A104: Q1 = First Quartile. 25% of approaches have been open for this many days.
A105: Median. 50% of approaches have been open for this many days.
A106: Q3 = First Quartile. 75% of approaches have been open for this many days. Conversely, 25% of cases have been open for more than this number of days.
A107: P95 = 95th Percentile. 5% of approaches have been open for more than this number of days.
A110: Data for Box Plot
B112: Number of days between Approach Date and 30 September 2015
A113: Local Authority | B113: P5 | C113: Q1 | D113: Median | E113: Q3 | F113: P95
A114: Dumfries & Galloway | B114: 0 | C114: 0 | D114: 0 | E114: 117 | F114: 317
A115: East Dunbartonshire | B115: 0 | C115: 0 | D115: 0 | E115: 0 | F115: 4
A116: Eilean Siar | B116: 0 | C116: 0 | D116: 0 | E116: 0 | F116: 0
A117: Clackmannanshire | B117: 0 | C117: 0 | D117: 4 | E117: 55 | F117: 158
A118: Dundee City | B118: 0 | C118: 2 | D118: 14 | E118: 37 | F118: 74
A119: Renfrewshire | B119: 1 | C119: 21 | D119: 24 | E119: 48 | F119: 245
A120: Edinburgh | B120: 0 | C120: 26 | D120: 29 | E120: 54 | F120: 214
A121: Glasgow City | B121: 0 | C121: 11 | D121: 32 | E121: 83 | F121: 294
A122: Angus | B122: 0 | C122: 4 | D122: 34 | E122: 85 | F122: 203
A123: Argyll & Bute | B123: 3 | C123: 29 | D123: 41 | E123: 69 | F123: 204
A124: Highland | B124: 0 | C124: 10 | D124: 43 | E124: 111 | F124: 251
A125: Scottish Borders | B125: 6 | C125: 20 | D125: 44 | E125: 104 | F125: 531
A126: Fife | B126: 0 | C126: 18 | D126: 48 | E126: 73 | F126: 176
A127: East Lothian | B127: 28 | C127: 39 | D127: 52 | E127: 64 | F127: 99
A128: Scotland | B128: 0 | C128: 20 | D128: 55 | E128: 149 | F128: 632
A129: Inverclyde | B129: 27 | C129: 34 | D129: 56 | E129: 113 | F129: 253
A130: Moray | B130: 14 | C130: 38 | D130: 59 | E130: 93 | F130: 149
A131: Aberdeenshire | B131: 1 | C131: 31 | D131: 62 | E131: 98 | F131: 197
A132: West Lothian | B132: 0 | C132: 33 | D132: 68 | E132: 148 | F132: 360
A133: Perth & Kinross | B133: 1 | C133: 23 | D133: 71 | E133: 183 | F133: 484
A134: Stirling | B134: 7 | C134: 35 | D134: 73 | E134: 216 | F134: 462
A135: Falkirk | B135: 22 | C135: 72 | D135: 76 | E135: 77 | F135: 138
A136: West Dunbartonshire | B136: 55 | C136: 69 | D136: 79 | E136: 138 | F136: 173
A137: South Lanarkshire | B137: 30 | C137: 59 | D137: 98 | E137: 152 | F137: 268
A138: Midlothian | B138: 19 | C138: 70 | D138: 111 | E138: 336 | F138: 597
A139: Orkney | B139: 53 | C139: 74 | D139: 121 | E139: 181 | F139: 713
A140: East Renfrewshire | B140: 23 | C140: 100 | D140: 136 | E140: 223 | F140: 317
A141: North Lanarkshire | B141: 0 | C141: 35 | D141: 140 | E141: 449 | F141: 762
A142: South Ayrshire | B142: 0 | C142: 92 | D142: 180 | E142: 211 | F142: 354
A143: East Ayrshire | B143: 181 | C143: 181 | D143: 181 | E143: 181 | F143: 181
A144: North Ayrshire | B144: 0 | C144: 0 | D144: 318 | E144: 409 | F144: 424
A145: Shetland | B145: 0 | C145: 126 | D145: 335 | E145: 597 | F145: 709
A146: Aberdeen City | B146: 5 | C146: 121 | D146: 383 | E146: 610 | F146: 816
A148: =A113 -> Local Authority | B148: Q1 | C148: Median-Q1 | D148: Q3-Median | E148: Q1-P5 | F148: P95-Q3 | G148: Median
A149: Dumfries & Galloway | B149: =C114 -> 0 | C149: =D114-C114 -> 0 | D149: =E114-D114 -> 117 | E149: =C114-B114 -> 0 | F149: =F114-E114 -> 200 | G149: =D114 -> 0
A150: East Dunbartonshire | B150: =C115 -> 0 | C150: =D115-C115 -> 0 | D150: 0 | E150: =C115-B115 -> 0 | F150: =F115-E115 -> 4 | G150: =D115 -> 0
A151: Eilean Siar | B151: 0 | C151: 0 | D151: 0 | E151: 0 | F151: 0 | G151: 0
A152: Clackmannanshire | B152: 0 | C152: 4 | D152: 51 | E152: 0 | F152: 103 | G152: 4
A153: Dundee City | B153: 2 | C153: 12 | D153: 23 | E153: 2 | F153: 37 | G153: 14
A154: Renfrewshire | B154: 21 | C154: 3 | D154: 24 | E154: 20 | F154: 197 | G154: 24
A155: Edinburgh | B155: 26 | C155: 3 | D155: 25 | E155: 26 | F155: 160 | G155: 29
A156: Glasgow City | B156: 11 | C156: 21 | D156: 51 | E156: 11 | F156: 211 | G156: 32
A157: Angus | B157: 4 | C157: 30 | D157: 51 | E157: 4 | F157: 118 | G157: 34
A158: Argyll & Bute | B158: 29 | C158: 12 | D158: 28 | E158: 26 | F158: 135 | G158: 41
A159: Highland | B159: 10 | C159: 33 | D159: 68 | E159: 10 | F159: 140 | G159: 43
A160: Scottish Borders | B160: 20 | C160: 24 | D160: 60 | E160: 14 | F160: 427 | G160: 44
A161: Fife | B161: 18 | C161: 30 | D161: 25 | E161: 18 | F161: 103 | G161: 48
A162: East Lothian | B162: 39 | C162: 13 | D162: 12 | E162: 11 | F162: 35 | G162: 52
A163: Scotland | B163: 20 | C163: 35 | D163: 94 | E163: 20 | F163: 483 | G163: 55
A164: Inverclyde | B164: 34 | C164: 22 | D164: 57 | E164: 7 | F164: 140 | G164: 56
A165: Moray | B165: 38 | C165: 21 | D165: 34 | E165: 24 | F165: 56 | G165: 59
A166: Aberdeenshire | B166: 31 | C166: =D131-C131 -> 31 | D166: 36 | E166: 30 | F166: 99 | G166: 62
A167: West Lothian | B167: 33 | C167: 35 | D167: 80 | E167: 33 | F167: 212 | G167: 68
A168: Perth & Kinross | B168: 23 | C168: 48 | D168: 112 | E168: 22 | F168: 301 | G168: 71
A169: Stirling | B169: 35 | C169: 38 | D169: 143 | E169: 28 | F169: 246 | G169: 73
A170: Falkirk | B170: 72 | C170: 4 | D170: 1 | E170: 50 | F170: 61 | G170: 76
A171: West Dunbartonshire | B171: 69 | C171: 10 | D171: 59 | E171: 14 | F171: 35 | G171: 79
A172: South Lanarkshire | B172: 59 | C172: 39 | D172: 54 | E172: 29 | F172: 116 | G172: 98
A173: Midlothian | B173: 70 | C173: 41 | D173: 225 | E173: 51 | F173: 261 | G173: 111
A174: Orkney | B174: 74 | C174: 47 | D174: 60 | E174: 21 | F174: 532 | G174: 121
A175: East Renfrewshire | B175: 100 | C175: 36 | D175: 87 | E175: 77 | F175: 94 | G175: 136
A176: North Lanarkshire | B176: 35 | C176: 105 | D176: 309 | E176: 35 | F176: 313 | G176: 140
A177: South Ayrshire | B177: 92 | C177: 88 | D177: 31 | E177: 92 | F177: 143 | G177: 180
A178: East Ayrshire | B178: 181 | C178: 0 | D178: 0 | E178: 0 | F178: 0 | G178: 181
A179: North Ayrshire | B179: 0 | C179: 318 | D179: 91 | E179: 0 | F179: 15 | G179: 318
A180: Shetland | B180: 126 | C180: 209 | D180: 262 | E180: 126 | F180: 112 | G180: 335
A181: Aberdeen City | B181: 121 | C181: 262 | D181: 227 | E181: 116 | F181: 206 | G181: 383

Sheet Chart 12 - Homelessness Boxplot
A1: Chart 12: Distribution of the number of days to outcome an approach as a homelessness application | I1: Back to Contents
A2: All approaches closed between 1 April 2016 and 31 March 2017 where the outcome was a homelessness application.
A64: Working for Chart XX: Distribution of the number of days to make a homelessness application
A66: Local Authority | B66: Number of approaches with an outcomes of making a homelessness application | C66: Number of days between Approach Date and date of Homelessness Application
C67: P5 | D67: Q1 | E67: Median | F67: Q3 | G67: P95
A68: Scotland | B68: 22434 | C68: 0 | D68: 0 | E68: 1 | F68: 16 | G68: 139
A69: Aberdeen City | B69: 1335 | C69: 0 | D69: 0 | E69: 7 | F69: 76 | G69: 408
A70: Aberdeenshire | B70: 654 | C70: 0 | D70: 0 | E70: 2 | F70: 17 | G70: 129
A71: Angus | B71: 467 | C71: 0 | D71: 5 | E71: 9 | F71: 21 | G71: 117
A72: Argyll & Bute | B72: 390 | C72: 0 | D72: 1 | E72: 3 | F72: 18 | G72: 177
A73: Clackmannanshire | B73: 343 | C73: 0 | D73: 0 | E73: 0 | F73: 0 | G73: 0
A74: Dumfries & Galloway | B74: 781 | C74: 0 | D74: 0 | E74: 0 | F74: 0 | G74: 12
A75: Dundee City | B75: 863 | C75: 0 | D75: 2 | E75: 5 | F75: 14 | G75: 123
A76: East Ayrshire | B76: 15 | C76: 0 | D76: 20 | E76: 25 | F76: 89 | G76: 176
A77: East Dunbartonshire | B77: 244 | C77: 0 | D77: 0 | E77: 0 | F77: 0 | G77: 90
A78: East Lothian | B78: 76 | C78: 6 | D78: 18 | E78: 39 | F78: 80 | G78: 214
A79: East Renfrewshire | B79: 47 | C79: 6 | D79: 12 | E79: 50 | F79: 146 | G79: 478
A80: Edinburgh | B80: 3231 | C80: 0 | D80: 0 | E80: 0 | F80: 11 | G80: 99
A81: Eilean Siar | B81: 7 | C81: 7 | D81: 8 | E81: 29 | F81: 43 | G81: 433
A82: Falkirk | B82: 1278 | C82: 0 | D82: 0 | E82: 0 | F82: 0 | G82: 65
A83: Fife | B83: 900 | C83: 0 | D83: 0 | E83: 3 | F83: 15 | G83: 149
A84: Glasgow City | B84: 6022 | C84: 0 | D84: 0 | E84: 1 | F84: 14 | G84: 72
A85: Highland | B85: 193 | C85: 0 | D85: 10 | E85: 28 | F85: 71 | G85: 323
A86: Inverclyde | B86: 228 | C86: 0 | D86: 0 | E86: 5 | F86: 31 | G86: 172
A87: Midlothian | B87: 23 | C87: 1 | D87: 13 | E87: 32 | F87: 115 | G87: 186
A88: Moray | B88: 473 | C88: 0 | D88: 1 | E88: 8 | F88: 32 | G88: 128
A89: North Ayrshire | B89: 691 | C89: 0 | D89: 0 | E89: 0 | F89: 3 | G89: 293
A90: North Lanarkshire | B90: 604 | C90: 0 | D90: 0 | E90: 0 | F90: 1 | G90: 203
A91: Orkney | B91: 14 | C91: 1 | D91: 8 | E91: 48 | F91: 103 | G91: 165
A92: Perth & Kinross | B92: 675 | C92: 0 | D92: 0 | E92: 5 | F92: 27 | G92: 197
A93: Renfrewshire | B93: 819 | C93: 0 | D93: 0 | E93: 0 | F93: 2 | G93: 88
A94: Scottish Borders | B94: 340 | C94: 4 | D94: 10 | E94: 17 | F94: 35 | G94: 169
A95: Shetland | B95: 99 | C95: 0 | D95: 0 | E95: 0 | F95: 1 | G95: 155
A96: South Ayrshire | B96: 746 | C96: 0 | D96: 0 | E96: 0 | F96: 0 | G96: 28
A97: South Lanarkshire | B97: 260 | C97: 5 | D97: 17 | E97: 28 | F97: 78 | G97: 316
A98: Stirling | B98: 81 | C98: 1 | D98: 6 | E98: 35 | F98: 113 | G98: 289
A99: West Dunbartonshire | B99: 39 | C99: 1 | D99: 13 | E99: 47 | F99: 91 | G99: 351
A100: West Lothian | B100: 496 | C100: 2 | D100: 12 | E100: 25 | F100: 70 | G100: 264
A102: Notes
A103: P5 = 5th Percentile. 5% of approaches have been open for this many days.
A104: Q1 = First Quartile. 25% of approaches have been open for this many days.
A105: Median. 50% of approaches have been open for this many days.
A106: Q3 = First Quartile. 75% of approaches have been open for this many days. Conversely, 25% of cases have been open for more than this number of days.
A107: P95 = 95th Percentile. 5% of approaches have been open for more than this number of days.
A110: Data for Box Plot
B112: Number of days between Approach Date and 31 March 2016
A113: Local Authority | B113: P5 | C113: Q1 | D113: Median | E113: Q3 | F113: P95
A114: Clackmannanshire | B114: 0 | C114: 0 | D114: 0 | E114: 0 | F114: 0
A115: Dumfries & Galloway | B115: 0 | C115: 0 | D115: 0 | E115: 0 | F115: 12
A116: East Dunbartonshire | B116: 0 | C116: 0 | D116: 0 | E116: 0 | F116: 90
A117: Edinburgh | B117: 0 | C117: 0 | D117: 0 | E117: 11 | F117: 99
A118: Falkirk | B118: 0 | C118: 0 | D118: 0 | E118: 0 | F118: 65
A119: North Ayrshire | B119: 0 | C119: 0 | D119: 0 | E119: 3 | F119: 293
A120: North Lanarkshire | B120: 0 | C120: 0 | D120: 0 | E120: 1 | F120: 203
A121: Renfrewshire | B121: 0 | C121: 0 | D121: 0 | E121: 2 | F121: 88
A122: Shetland | B122: 0 | C122: 0 | D122: 0 | E122: 1 | F122: 155
A123: South Ayrshire | B123: 0 | C123: 0 | D123: 0 | E123: 0 | F123: 28
A124: Scotland | B124: 0 | C124: 0 | D124: 1 | E124: 16 | F124: 139
A125: Glasgow City | B125: 0 | C125: 0 | D125: 1 | E125: 14 | F125: 72
A126: Aberdeenshire | B126: 0 | C126: 0 | D126: 2 | E126: 17 | F126: 129
A127: Argyll & Bute | B127: 0 | C127: 1 | D127: 3 | E127: 18 | F127: 177
A128: Fife | B128: 0 | C128: 0 | D128: 3 | E128: 15 | F128: 149
A129: Dundee City | B129: 0 | C129: 2 | D129: 5 | E129: 14 | F129: 123
A130: Inverclyde | B130: 0 | C130: 0 | D130: 5 | E130: 31 | F130: 172
A131: Perth & Kinross | B131: 0 | C131: 0 | D131: 5 | E131: 27 | F131: 197
A132: Aberdeen City | B132: 0 | C132: 0 | D132: 7 | E132: 76 | F132: 408
A133: Moray | B133: 0 | C133: 1 | D133: 8 | E133: 32 | F133: 128
A134: Angus | B134: 0 | C134: 5 | D134: 9 | E134: 21 | F134: 117
A135: Scottish Borders | B135: 4 | C135: 10 | D135: 17 | E135: 35 | F135: 169
A136: East Ayrshire | B136: 0 | C136: 20 | D136: 25 | E136: 89 | F136: 176
A137: West Lothian | B137: 2 | C137: 12 | D137: 25 | E137: 70 | F137: 264
A138: Highland | B138: 0 | C138: 10 | D138: 28 | E138: 71 | F138: 323
A139: South Lanarkshire | B139: 5 | C139: 17 | D139: 28 | E139: 78 | F139: 316
A140: Eilean Siar | B140: 7 | C140: 8 | D140: 29 | E140: 43 | F140: 433
A141: Midlothian | B141: 1 | C141: 13 | D141: 32 | E141: 115 | F141: 186
A142: Stirling | B142: 1 | C142: 6 | D142: 35 | E142: 113 | F142: 289
A143: East Lothian | B143: 6 | C143: 18 | D143: 39 | E143: 80 | F143: 214
A144: West Dunbartonshire | B144: 1 | C144: 13 | D144: 47 | E144: 91 | F144: 351
A145: Orkney | B145: 1 | C145: 8 | D145: 48 | E145: 103 | F145: 165
A146: East Renfrewshire | B146: 6 | C146: 12 | D146: 50 | E146: 146 | F146: 478
A148: =A113 -> Local Authority | B148: Q1 | C148: Median-Q1 | D148: Q3-Median | E148: Q1-P5 | F148: P95-Q3 | G148: Median
A149: Clackmannanshire | B149: =C114 -> 0 | C149: =D114-C114 -> 0 | D149: =E114-D114 -> 0 | E149: =C114-B114 -> 0 | F149: =F114-E114 -> 0 | G149: =D114 -> 0
A150: Dumfries & Galloway | B150: =C115 -> 0 | C150: =D115-C115 -> 0 | D150: 0 | E150: =C115-B115 -> 0 | F150: =F115-E115 -> 12 | G150: =D115 -> 0
A151: East Dunbartonshire | B151: 0 | C151: 0 | D151: 0 | E151: 0 | F151: 90 | G151: 0
A152: Edinburgh | B152: 0 | C152: 0 | D152: 11 | E152: 0 | F152: 88 | G152: 0
A153: Falkirk | B153: 0 | C153: 0 | D153: 0 | E153: 0 | F153: 65 | G153: 0
A154: North Ayrshire | B154: 0 | C154: 0 | D154: 3 | E154: 0 | F154: 290 | G154: 0
A155: North Lanarkshire | B155: 0 | C155: 0 | D155: 1 | E155: 0 | F155: 202 | G155: 0
A156: Renfrewshire | B156: 0 | C156: 0 | D156: 2 | E156: 0 | F156: 86 | G156: 0
A157: Shetland | B157: 0 | C157: 0 | D157: 1 | E157: 0 | F157: 154 | G157: 0
A158: South Ayrshire | B158: 0 | C158: 0 | D158: 0 | E158: 0 | F158: 28 | G158: 0
A159: Scotland | B159: 0 | C159: 1 | D159: 15 | E159: 0 | F159: 123 | G159: 1
A160: Glasgow City | B160: 0 | C160: 1 | D160: 13 | E160: 0 | F160: 58 | G160: 1
A161: Aberdeenshire | B161: 0 | C161: 2 | D161: 15 | E161: 0 | F161: 112 | G161: 2
A162: Argyll & Bute | B162: 1 | C162: 2 | D162: 15 | E162: 1 | F162: 159 | G162: 3
A163: Fife | B163: 0 | C163: 3 | D163: 12 | E163: 0 | F163: 134 | G163: 3
A164: Dundee City | B164: 2 | C164: 3 | D164: 9 | E164: 2 | F164: 109 | G164: 5
A165: Inverclyde | B165: 0 | C165: 5 | D165: 26 | E165: 0 | F165: 141 | G165: 5
A166: Perth & Kinross | B166: 0 | C166: =D131-C131 -> 5 | D166: 22 | E166: 0 | F166: 170 | G166: 5
A167: Aberdeen City | B167: 0 | C167: 7 | D167: 69 | E167: 0 | F167: 332 | G167: 7
A168: Moray | B168: 1 | C168: 7 | D168: 24 | E168: 1 | F168: 96 | G168: 8
A169: Angus | B169: 5 | C169: 4 | D169: 12 | E169: 5 | F169: 96 | G169: 9
A170: Scottish Borders | B170: 10 | C170: 7 | D170: 18 | E170: 6 | F170: 134 | G170: 17
A171: East Ayrshire | B171: 20 | C171: 5 | D171: 64 | E171: 20 | F171: 87 | G171: 25
A172: West Lothian | B172: 12 | C172: 13 | D172: 45 | E172: 10 | F172: 194 | G172: 25
A173: Highland | B173: 10 | C173: 18 | D173: 43 | E173: 10 | F173: 252 | G173: 28
A174: South Lanarkshire | B174: 17 | C174: 11 | D174: 50 | E174: 12 | F174: 238 | G174: 28
A175: Eilean Siar | B175: 8 | C175: 21 | D175: 14 | E175: 1 | F175: 390 | G175: 29
A176: Midlothian | B176: 13 | C176: 19 | D176: 83 | E176: 12 | F176: 71 | G176: 32
A177: Stirling | B177: 6 | C177: 29 | D177: 78 | E177: 5 | F177: 176 | G177: 35
A178: East Lothian | B178: 18 | C178: 21 | D178: 41 | E178: 12 | F178: 134 | G178: 39
A179: West Dunbartonshire | B179: 13 | C179: 34 | D179: 44 | E179: 12 | F179: 260 | G179: 47
A180: Orkney | B180: 8 | C180: 40 | D180: 55 | E180: 7 | F180: 62 | G180: 48
A181: East Renfrewshire | B181: 12 | C181: 38 | D181: 96 | E181: =C146-B146 -> 6 | F181: 332 | G181: =D146 -> 50

Sheet Table 10 - Repeat Approaches
A1: Table 10: Households making Repeat Approaches | E1: Back to Contents
A2: All households making approaches between 1 April 2016 to 31 March 2017
A4: Local Authority | B4: Households Making | E4: All Households | F4: Proportion of Households making Repeat Approaches
B5: One approach only | C5: Two approaches | D5: Three or more approaches
A6: Scotland | B6: 40945 | C6: 3600 | D6: 520 | E6: 45060 | F6: =SUM(C6:D6)/E6 -> 0.09143364403
A7: Aberdeen City | B7: 4205 | C7: 240 | D7: 20 | E7: 4465 | F7: =SUM(C7:D7)/E7 -> 0.05823068309
A8: Aberdeenshire | B8: 1485 | C8: 125 | D8: 15 | E8: 1625 | F8: 0.08615384615
A9: Angus | B9: 825 | C9: 35 | D9: 5 | E9: 860 | F9: 0.04651162791
A10: Argyll & Bute | B10: 1170 | C10: 150 | D10: 40 | E10: 1360 | F10: 0.1397058824
A11: Clackmannanshire | B11: 435 | C11: 20 | D11: 5 | E11: 455 | F11: 0.05494505495
A12: Dumfries & Galloway | B12: 805 | C12: 70 | D12: 10 | E12: 890 | F12: 0.08988764045
A13: Dundee City | B13: 1740 | C13: 140 | D13: 25 | E13: 1910 | F13: 0.08638743455
A14: East Ayrshire | B14: 85 | C14: 5 | D14: 0 | E14: 90 | F14: 0.05555555556
A15: East Dunbartonshire | B15: 360 | C15: 20 | D15: 5 | E15: 385 | F15: 0.06493506494
A16: East Lothian | B16: 185 | C16: 5 | D16: 0 | E16: 190 | F16: 0.02631578947
A17: East Renfrewshire | B17: 120 | C17: 10 | D17: 0 | E17: 130 | F17: 0.07692307692
A18: Edinburgh | B18: 5240 | C18: 470 | D18: 40 | E18: 5755 | F18: 0.08861859253
A19: Eilean Siar | B19: 5 | C19: 0 | D19: 0 | E19: 5 | F19: 0
A20: Falkirk | B20: 1395 | C20: 235 | D20: 35 | E20: 1665 | F20: 0.1621621622
A21: Fife | B21: 2190 | C21: 180 | D21: 20 | E21: 2390 | F21: 0.08368200837
A22: Glasgow City | B22: 6995 | C22: 995 | D22: 195 | E22: 8190 | F22: 0.1452991453
A23: Highland | B23: 370 | C23: 5 | D23: 0 | E23: 375 | F23: 0.01333333333
A24: Inverclyde | B24: 645 | C24: 55 | D24: 20 | E24: 725 | F24: 0.1034482759
A25: Midlothian | B25: 320 | C25: 30 | D25: 5 | E25: 360 | F25: 0.09722222222
A26: Moray | B26: 935 | C26: 60 | D26: 5 | E26: 1000 | F26: 0.065
A27: North Ayrshire | B27: 1365 | C27: 80 | D27: 5 | E27: 1450 | F27: 0.05862068966
A28: North Lanarkshire | B28: 2985 | C28: 110 | D28: 5 | E28: 3105 | F28: 0.03703703704
A29: Orkney | B29: 25 | C29: 0 | D29: 0 | E29: 30 | F29: 0
A30: Perth & Kinross | B30: 1460 | C30: 145 | D30: 15 | E30: 1615 | F30: 0.09907120743
A31: Renfrewshire | B31: 1595 | C31: 210 | D31: 20 | E31: 1830 | F31: 0.1256830601
A32: Scottish Borders | B32: 750 | C32: 35 | D32: 10 | E32: 790 | F32: 0.05696202532
A33: Shetland | B33: 180 | C33: 10 | D33: 0 | E33: 190 | F33: 0.05263157895
A34: South Ayrshire | B34: 850 | C34: 70 | D34: 5 | E34: 925 | F34: 0.08108108108
A35: South Lanarkshire | B35: 775 | C35: 20 | D35: 0 | E35: 800 | F35: 0.025
A36: Stirling | B36: 260 | C36: 25 | D36: 0 | E36: 290 | F36: 0.08620689655
A37: West Dunbartonshire | B37: 185 | C37: 0 | D37: 0 | E37: 190 | F37: 0
A38: West Lothian | B38: 990 | C38: 40 | D38: 0 | E38: 1030 | F38: 0.03883495146
A40: Disclosure Control has been applied to this table. All cells have been rounded to the nearest five.
A41: Row totals may not sum to total of individual cells due to rounding.
A49: Chart Data - Repeat approaches
B50: Proportion of Households making Repeat Approaches
A51: Eilean Siar | B51: 0
A52: Orkney | B52: 0
A53: West Dunbartonshire | B53: 0
A54: Highland | B54: 0.01333333333
A55: South Lanarkshire | B55: 0.025
A56: East Lothian | B56: 0.02631578947
A57: North Lanarkshire | B57: 0.03703703704
A58: West Lothian | B58: 0.03883495146
A59: Angus | B59: 0.04651162791
A60: Shetland | B60: 0.05263157895
A61: Clackmannanshire | B61: 0.05494505495
A62: East Ayrshire | B62: 0.05555555556
A63: Scottish Borders | B63: 0.05696202532
A64: Aberdeen City | B64: 0.05823068309
A65: North Ayrshire | B65: 0.05862068966
A66: East Dunbartonshire | B66: 0.06493506494
A67: Moray | B67: 0.065
A68: East Renfrewshire | B68: 0.07692307692
A69: South Ayrshire | B69: 0.08108108108
A70: Fife | B70: 0.08368200837
A71: Aberdeenshire | B71: 0.08615384615
A72: Stirling | B72: 0.08620689655
A73: Dundee City | B73: 0.08638743455
A74: Edinburgh | B74: 0.08861859253
A75: Dumfries & Galloway | B75: 0.08988764045
A76: Scotland | B76: 0.09143364403
A77: Midlothian | B77: 0.09722222222
A78: Perth & Kinross | B78: 0.09907120743
A79: Inverclyde | B79: 0.1034482759
A80: Renfrewshire | B80: 0.1256830601
A81: Argyll & Bute | B81: 0.1397058824
A82: Glasgow City | B82: 0.1452991453
A83: Falkirk | B83: 0.1621621622

Sheet Chart 13- Repeat Approaches
A1: Chart 13: Proportion of Unique Households in each LA area making Repeat Approaches | M1: Back to Contents
A2: All Households making approaches between 1 April 2016 and 31 March 2017

Sheet SAS code 1 - to be deleted
A1: Table 1: Total Housing Options approaches by LA and quarter
B2: Quarter of Approach
B3: 2014 Q2 | C3: 2014 Q3 | D3: 2014 Q4 | E3: 2015 Q1 | F3: 2015 Q2 | G3: 2015 Q3 | H3: 2015 Q4 | I3: 2016 Q1 | J3: 2016 Q2 | K3: 2016 Q3 | L3: 2016 Q4 | M3: 2017 Q1
B4: N | C4: N | D4: N | E4: N | F4: N | G4: N | H4: N | I4: N | J4: N | K4: N | L4: N | M4: N
A5: Aberdeen City | B5: 1166 | C5: 1594 | D5: 1617 | E5: 1908 | F5: 1707 | G5: 1579 | H5: 1332 | I5: 1514 | J5: 1396 | K5: 1344 | L5: 962 | M5: 1049
A6: Aberdeenshire | B6: 573 | C6: 478 | D6: 422 | E6: 614 | F6: 558 | G6: 532 | H6: 437 | I6: 574 | J6: 479 | K6: 461 | L6: 391 | M6: 452
A7: Angus | B7: 273 | C7: 274 | D7: 238 | E7: 295 | F7: 261 | G7: 249 | H7: 178 | I7: 209 | J7: 280 | K7: 285 | L7: 157 | M7: 180
A8: Argyll & Bute | B8: 129 | C8: 99 | D8: 261 | E8: 638 | F8: 579 | G8: 455 | H8: 401 | I8: 465 | J8: 436 | K8: 489 | L8: 371 | M8: 464
A9: Clackmannanshire | B9: 31 | C9: 44 | D9: 29 | E9: 27 | F9: 13 | G9: 50 | H9: 28 | I9: 25 | J9: 122 | K9: 101 | L9: 89 | M9: 177
A10: Dumfries & Galloway | B10: 236 | C10: 250 | D10: 193 | E10: 212 | F10: 231 | G10: 201 | H10: 192 | I10: 235 | J10: 220 | K10: 254 | L10: 203 | M10: 298
A11: Dundee City | B11: 767 | C11: 787 | D11: 439 | E11: 478 | F11: 547 | G11: 552 | H11: 490 | I11: 617 | J11: 529 | K11: 501 | L11: 465 | M11: 633
A12: East Ayrshire | B12: 63 | C12: 47 | D12: 21 | E12: 26 | F12: 7 | G12: 5 | H12: 1 | I12: 31 | J12: 15 | K12: 32 | L12: 22 | M12: 22
A13: East Dunbartonshire | B13: 33 | C13: 32 | D13: 33 | E13: 36 | F13: 34 | G13: 39 | H13: 25 | I13: 68 | J13: 57 | K13: 126 | L13: 88 | M13: 143
A14: East Lothian | B14: 124 | C14: 109 | D14: 64 | E14: 134 | F14: 89 | G14: 110 | H14: 91 | I14: 72 | J14: 53 | K14: 42 | L14: 52 | M14: 53
A15: East Renfrewshire | B15: 38 | C15: 52 | D15: 47 | E15: 23 | F15: 44 | G15: 48 | H15: 44 | I15: 50 | J15: 54 | K15: 47 | L15: 19 | M15: 18
A16: Edinburgh | B16: 1940 | C16: 2106 | D16: 1960 | E16: 2168 | F16: 2044 | G16: 1928 | H16: 1783 | I16: 1843 | J16: 1756 | K16: 1598 | L16: 1466 | M16: 1489
A17: Eilean Siar | B17: 6 | C17: 3 | D17: 2 | E17: 5 | F17: 2 | G17: 1 | H17: 3 | I17: 6 | J17: 2 | K17: 2 | L17: 2 | M17: 2
A18: Falkirk | B18: 567 | C18: 580 | D18: 433 | E18: 476 | F18: 441 | G18: 471 | H18: 397 | I18: 521 | J18: 485 | K18: 513 | L18: 448 | M18: 539
A19: Fife | B19: 804 | C19: 832 | D19: 649 | E19: 904 | F19: 842 | G19: 715 | H19: 558 | I19: 696 | J19: 697 | K19: 688 | L19: 568 | M19: 680
A20: Glasgow City | B20: 3686 | C20: 3212 | D20: 2845 | E20: 3326 | F20: 2113 | G20: 2719 | H20: 2385 | I20: 2891 | J20: 2527 | K20: 2519 | L20: 2085 | M20: 2544
A21: Highland | B21: 492 | C21: 489 | D21: 346 | E21: 398 | F21: 464 | G21: 430 | H21: 320 | I21: 310 | J21: 151 | K21: 115 | L21: 59 | M21: 57
A22: Inverclyde | B22: 226 | C22: 307 | D22: 216 | E22: 250 | F22: 240 | G22: 215 | H22: 204 | I22: 263 | J22: 234 | K22: 212 | L22: 224 | M22: 275
A23: Midlothian | B23: 162 | C23: 129 | D23: 90 | E23: 125 | F23: 124 | G23: 89 | H23: 87 | I23: 113 | J23: 101 | K23: 109 | L23: 91 | M23: 81
A24: Moray | B24: 323 | C24: 305 | D24: 270 | E24: 339 | F24: 316 | G24: 231 | H24: 227 | I24: 325 | J24: 257 | K24: 267 | L24: 242 | M24: 312
A25: North Ayrshire | B25: 469 | C25: 482 | D25: 409 | E25: 565 | F25: 469 | G25: 480 | H25: 378 | I25: 465 | J25: 432 | K25: 375 | L25: 318 | M25: 416
A26: North Lanarkshire | B26: 920 | C26: 873 | D26: 742 | E26: 995 | F26: 898 | G26: 923 | H26: 725 | I26: 873 | J26: 834 | K26: 827 | L26: 906 | M26: 631
A27: Orkney | B27: 9 | C27: 17 | D27: 13 | E27: 14 | F27: 11 | G27: 18 | H27: 9 | I27: 22 | J27: 12 | K27: 12 | L27: 3 | M27: 2
A28: Perth & Kinross | B28: 558 | C28: 510 | D28: 417 | E28: 479 | F28: 424 | G28: 474 | H28: 356 | I28: 403 | J28: 409 | K28: 460 | L28: 377 | M28: 550
A29: Renfrewshire | B29: 461 | C29: 520 | D29: 459 | E29: 550 | F29: 533 | G29: 520 | H29: 469 | I29: 584 | J29: 529 | K29: 542 | L29: 484 | M29: 535
A30: Scottish Borders | B30: 277 | C30: 254 | D30: 202 | E30: 271 | F30: 259 | G30: 241 | H30: 162 | I30: 205 | J30: 209 | K30: 218 | L30: 166 | M30: 253
A31: Shetland | B31: 99 | C31: 67 | D31: 74 | E31: 63 | F31: 42 | G31: 40 | H31: 43 | I31: 40 | J31: 51 | K31: 43 | L31: 56 | M31: 50
A32: South Ayrshire | B32: 242 | C32: 229 | D32: 247 | E32: 352 | F32: 367 | G32: 395 | H32: 357 | I32: 448 | J32: 310 | K32: 261 | L32: 224 | M32: 206
A33: South Lanarkshire | B33: 346 | C33: 364 | D33: 253 | E33: 333 | F33: 262 | G33: 317 | H33: 236 | I33: 264 | J33: 226 | K33: 194 | L33: 170 | M33: 232
A34: Stirling | B34: 202 | C34: 234 | D34: 157 | E34: 52 | F34: 100 | G34: 103 | H34: 78 | I34: 131 | J34: 103 | K34: 91 | L34: 52 | M34: 64
A35: West Dunbartonshire | B35: 422 | C35: 465 | D35: 386 | E35: 384 | F35: 286 | G35: 45 | H35: 20 | I35: 34 | J35: 41 | K35: 58 | L35: 42 | M35: 56
A36: West Lothian | B36: 372 | C36: 429 | D36: 316 | E36: 428 | F36: 329 | G36: 341 | H36: 274 | I36: 369 | J36: 335 | K36: 301 | L36: 253 | M36: 178
A37: Scotland | B37: 16016 | C37: 16173 | D37: 13850 | E37: 16868 | F37: 14636 | G37: 14516 | H37: 12290 | I37: 14666 | J37: 13342 | K37: 13087 | L37: 11055 | M37: 12641
A38: Household is assigned to local authority of most recent approach
A39: Table 1M: Total Housing Options approaches by LA and quarter
B40: approach_year
B41: 2014 | N41: 2015 | Z41: 2016 | AL41: 2017
B42: approach_month | N42: approach_month | Z42: approach_month | AL42: approach_month
B43: 1 | C43: 2 | D43: 3 | E43: 4 | F43: 5 | G43: 6 | H43: 7 | I43: 8 | J43: 9 | K43: 10 | L43: 11 | M43: 12 | N43: 1 | O43: 2 | P43: 3 | Q43: 4 | R43: 5 | S43: 6 | T43: 7 | U43: 8 | V43: 9 | W43: 10 | X43: 11 | Y43: 12 | Z43: 1 | AA43: 2 | AB43: 3 | AC43: 4 | AD43: 5 | AE43: 6 | AF43: 7 | AG43: 8 | AH43: 9 | AI43: 10 | AJ43: 11 | AK43: 12 | AL43: 1 | AM43: 2 | AN43: 3 | AO43: 4 | AP43: 5 | AQ43: 6 | AR43: 7 | AS43: 8 | AT43: 9 | AU43: 10 | AV43: 11 | AW43: 12
A44: Scotland | B44: 0 | C44: 0 | D44: 0 | E44: 5411 | F44: 5128 | G44: 5477 | H44: 5467 | I44: 5283 | J44: 5423 | K44: 5527 | L44: 4671 | M44: 3652 | N44: 5548 | O44: 5494 | P44: 5826 | Q44: 4885 | R44: 4786 | S44: 4965 | T44: 4706 | U44: 4975 | V44: 4835 | W44: 4687 | X44: 4405 | Y44: 3198 | Z44: 4733 | AA44: 4908 | AB44: 5025 | AC44: 4472 | AD44: 4337 | AE44: 4533 | AF44: 4008 | AG44: 4622 | AH44: 4457 | AI44: 4179 | AJ44: 4034 | AK44: 2842 | AL44: 4336 | AM44: 4063 | AN44: 4242 | AO44: 0 | AP44: 0 | AQ44: 0 | AR44: 0 | AS44: 0 | AT44: 0 | AU44: 0 | AV44: 0 | AW44: 0
A45: Household is assigned to local authority of most recent approach
A46: Table 3a: Reasons for Housing Options approaches by quarter
B47: Quarter of Approach
B48: 2014 Q2 | C48: 2014 Q3 | D48: 2014 Q4 | E48: 2015 Q1 | F48: 2015 Q2 | G48: 2015 Q3 | H48: 2015 Q4 | I48: 2016 Q1 | J48: 2016 Q2 | K48: 2016 Q3 | L48: 2016 Q4 | M48: 2017 Q1
B49: N | C49: N | D49: N | E49: N | F49: N | G49: N | H49: N | I49: N | J49: N | K49: N | L49: N | M49: N
A50: Termination of tenancy / mortgage due to rent arrears / default on payments | B50: 893 | C50: 871 | D50: 719 | E50: 904 | F50: 652 | G50: 576 | H50: 562 | I50: 628 | J50: 551 | K50: 454 | L50: 420 | M50: 537
A51: Other action by landlord resulting in the termination of the tenancy | B51: 1162 | C51: 1014 | D51: 823 | E51: 1202 | F51: 1039 | G51: 1040 | H51: 817 | I51: 1116 | J51: 1116 | K51: 967 | L51: 743 | M51: 1000
A52: Applicant terminated secure accommodation | B52: 169 | C52: 176 | D52: 159 | E52: 177 | F52: 148 | G52: 155 | H52: 130 | I52: 144 | J52: 112 | K52: 147 | L52: 113 | M52: 138
A53: Loss of service / tied accommodation | B53: 83 | C53: 82 | D53: 64 | E53: 71 | F53: 60 | G53: 64 | H53: 63 | I53: 58 | J53: 66 | K53: 47 | L53: 34 | M53: 49
A54: Discharge from prison / hospital / care / other institution | B54: 1150 | C54: 952 | D54: 719 | E54: 882 | F54: 672 | G54: 670 | H54: 522 | I54: 585 | J54: 598 | K54: 525 | L54: 539 | M54: 534
A55: Emergency (fire, flood, storm, closing order from Environmental Health etc.) | B55: 29 | C55: 50 | D55: 38 | E55: 45 | F55: 41 | G55: 33 | H55: 36 | I55: 45 | J55: 51 | K55: 27 | L55: 42 | M55: 31
A56: Forced division and sale of matrimonial home | B56: 71 | C56: 81 | D56: 62 | E56: 63 | F56: 68 | G56: 71 | H56: 45 | I56: 63 | J56: 56 | K56: 50 | L56: 36 | M56: 46
A57: Other reason for loss of accommodation | B57: 446 | C57: 395 | D57: 367 | E57: 464 | F57: 310 | G57: 345 | H57: 326 | I57: 398 | J57: 430 | K57: 377 | L57: 355 | M57: 393
A58: Dispute within household: violent or abusive | B58: 934 | C58: 1041 | D58: 819 | E58: 937 | F58: 835 | G58: 878 | H58: 779 | I58: 834 | J58: 810 | K58: 783 | L58: 688 | M58: 780
A59: Dispute within household / relationship breakdown: non-violent | B59: 2267 | C59: 2279 | D59: 1845 | E59: 2130 | F59: 1844 | G59: 1893 | H59: 1576 | I59: 1868 | J59: 1658 | K59: 1759 | L59: 1510 | M59: 1878
A60: Fleeing non-domestic violence | B60: 273 | C60: 260 | D60: 214 | E60: 206 | F60: 211 | G60: 214 | H60: 175 | I60: 173 | J60: 199 | K60: 130 | L60: 134 | M60: 153
A61: Harassment | B61: 256 | C61: 283 | D61: 204 | E61: 214 | F61: 227 | G61: 207 | H61: 153 | I61: 162 | J61: 179 | K61: 187 | L61: 142 | M61: 177
A62: Overcrowding | B62: 315 | C62: 312 | D62: 270 | E62: 343 | F62: 254 | G62: 237 | H62: 220 | I62: 249 | J62: 189 | K62: 196 | L62: 153 | M62: 194
A63: Asked to leave | B63: 2358 | C63: 2463 | D63: 2053 | E63: 2462 | F63: 2125 | G63: 2100 | H63: 1780 | I63: 2111 | J63: 1967 | K63: 1765 | L63: 1448 | M63: 1787
A64: Other reason for leaving accommodation / household | B64: 631 | C64: 673 | D64: 509 | E64: 558 | F64: 473 | G64: 542 | H64: 508 | I64: 500 | J64: 473 | K64: 556 | L64: 412 | M64: 482
A65: General housing options advice | B65: 1687 | C65: 1743 | D65: 1573 | E65: 2091 | F65: 1971 | G65: 2063 | H65: 1769 | I65: 2297 | J65: 1965 | K65: 1969 | L65: 1649 | M65: 1968
A66: Benefit issues & Welfare Reform | B66: 342 | C66: 216 | D66: 279 | E66: 331 | F66: 247 | G66: 157 | H66: 147 | I66: 183 | J66: 117 | K66: 211 | L66: 188 | M66: 129
A67: Property condition | B67: 139 | C67: 143 | D67: 146 | E67: 218 | F67: 136 | G67: 127 | H67: 138 | I67: 165 | J67: 102 | K67: 97 | L67: 94 | M67: 112
A68: Accommodation unsuitable | B68: 412 | C68: 558 | D68: 503 | E68: 585 | F68: 613 | G68: 617 | H68: 430 | I68: 530 | J68: 479 | K68: 611 | L68: 493 | M68: 484
A69: Household experiencing anti-social behaviour / neighbour problems | B69: 103 | C69: 108 | D69: 85 | E69: 74 | F69: 104 | G69: 103 | H69: 67 | I69: 93 | J69: 115 | K69: 105 | L69: 92 | M69: 90
A70: Other | B70: 548 | C70: 655 | D70: 653 | E70: 726 | F70: 734 | G70: 696 | H70: 580 | I70: 660 | J70: 515 | K70: 437 | L70: 272 | M70: 202
A71: Household member needing care | B71: 71 | C71: 147 | D71: 166 | E71: 209 | F71: 164 | G71: 181 | H71: 140 | I71: 182 | J71: 174 | K71: 165 | L71: 109 | M71: 54
A72: Personal issues – affordability / financial difficulties | B72: 364 | C72: 376 | D72: 333 | E72: 468 | F72: 388 | G72: 383 | H72: 296 | I72: 364 | J72: 353 | K72: 428 | L72: 463 | M72: 416
A73: Risk of losing accommodation | B73: 1265 | C73: 1240 | D73: 1205 | E73: 1458 | F73: 1272 | G73: 1119 | H73: 997 | I73: 1215 | J73: 1034 | K73: 1065 | L73: 895 | M73: 977
A74: Landlord issue | B74: 48 | C74: 55 | D74: 42 | E74: 50 | F74: 48 | G74: 45 | H74: 34 | I74: 43 | J74: 33 | K74: 29 | L74: 31 | M74: 30
A75: Scotland | B75: 16016 | C75: 16173 | D75: 13850 | E75: 16868 | F75: 14636 | G75: 14516 | H75: 12290 | I75: 14666 | J75: 13342 | K75: 13087 | L75: 11055 | M75: 12641
A76: Household is assigned to local authority of most recent approach
A77: Table 3b: Reasons for Housing Options approaches by quarter
B78: Quarter of Approach
B79: 2014 Q2 | C79: 2014 Q3 | D79: 2014 Q4 | E79: 2015 Q1 | F79: 2015 Q2 | G79: 2015 Q3 | H79: 2015 Q4 | I79: 2016 Q1 | J79: 2016 Q2 | K79: 2016 Q3 | L79: 2016 Q4 | M79: 2017 Q1
B80: N | C80: N | D80: N | E80: N | F80: N | G80: N | H80: N | I80: N | J80: N | K80: N | L80: N | M80: N
A81: Homelessness Type | B81: 11037 | C81: 10932 | D81: 8865 | E81: 10658 | F81: 8959 | G81: 9025 | H81: 7692 | I81: 8934 | J81: 8455 | K81: 7970 | L81: 6769 | M81: 8179
A82: Prevention Type | B82: 4979 | C82: 5241 | D82: 4985 | E82: 6210 | F82: 5677 | G82: 5491 | H82: 4598 | I82: 5732 | J82: 4887 | K82: 5117 | L82: 4286 | M82: 4462
A83: Scotland | B83: 16016 | C83: 16173 | D83: 13850 | E83: 16868 | F83: 14636 | G83: 14516 | H83: 12290 | I83: 14666 | J83: 13342 | K83: 13087 | L83: 11055 | M83: 12641
A84: Household is assigned to local authority of most recent approach
A85: Table 4: Maximum Type of Housing Options activities by quarter
C86: Quarter of Approach
C87: 2014 Q2 | D87: 2014 Q3 | E87: 2014 Q4 | F87: 2015 Q1 | G87: 2015 Q2 | H87: 2015 Q3 | I87: 2015 Q4 | J87: 2016 Q1 | K87: 2016 Q2 | L87: 2016 Q3 | M87: 2016 Q4 | N87: 2017 Q1
A88: Type I – Active Information, Sign-posting and Explanation | B88: N | C88: 8101 | D88: 8830 | E88: 7827 | F88: 9408 | G88: 8265 | H88: 7868 | I88: 6590 | J88: 8001 | K88: 7280 | L88: 6926 | M88: 5967 | N88: 6937
A89: Type II – Casework | B89: N | C89: 7833 | D89: 7281 | E89: 5973 | F89: 7420 | G89: 6339 | H89: 6609 | I89: 5673 | J89: 6623 | K89: 5996 | L89: 6093 | M89: 5013 | N89: 5639
A90: Type III – Advocacy, Representation and Mediation at Tribunal or Court Action Level | B90: N | C90: 82 | D90: 62 | E90: 50 | F90: 40 | G90: 32 | H90: 39 | I90: 27 | J90: 42 | K90: 66 | L90: 68 | M90: 75 | N90: 65
A91: Total | B91: N | C91: 16016 | D91: 16173 | E91: 13850 | F91: 16868 | G91: 14636 | H91: 14516 | I91: 12290 | J91: 14666 | K91: 13342 | L91: 13087 | M91: 11055 | N91: 12641
A92: Household is assigned to local authority of most recent approach
A93: Table 5: Housing Options activities by quarter
C94: Quarter of Approach | O94: All
C95: 2014 Q2 | D95: 2014 Q3 | E95: 2014 Q4 | F95: 2015 Q1 | G95: 2015 Q2 | H95: 2015 Q3 | I95: 2015 Q4 | J95: 2016 Q1 | K95: 2016 Q2 | L95: 2016 Q3 | M95: 2016 Q4 | N95: 2017 Q1
A96: Mediation/outreach work | B96: N | C96: 555 | D96: 665 | E96: 520 | F96: 644 | G96: 397 | H96: 393 | I96: 339 | J96: 438 | K96: 410 | L96: 467 | M96: 333 | N96: 397 | O96: 5558
A97: Financial assistance/advice | B97: N | C97: 2436 | D97: 2828 | E97: 2379 | F97: 2702 | G97: 2439 | H97: 2469 | I97: 2056 | J97: 2146 | K97: 1992 | L97: 2169 | M97: 1754 | N97: 1612 | O97: 26982
A98: Rent/repairs/referrals/negotiation with landlords | B98: N | C98: 2312 | D98: 2256 | E98: 1963 | F98: 2624 | G98: 2246 | H98: 2311 | I98: 1760 | J98: 1842 | K98: 1664 | L98: 1753 | M98: 1430 | N98: 1579 | O98: 23740
A99: Help to remain in accommodation | B99: N | C99: 832 | D99: 902 | E99: 708 | F99: 801 | G99: 693 | H99: 774 | I99: 565 | J99: 732 | K99: 610 | L99: 731 | M99: 544 | N99: 517 | O99: 8409
A100: Mortgage/home ownership advice | B100: N | C100: 160 | D100: 204 | E100: 115 | F100: 172 | G100: 164 | H100: 153 | I100: 99 | J100: 131 | K100: 95 | L100: 91 | M100: 62 | N100: 86 | O100: 1532
A101: Tenancy/social care support/adaptations to property | B101: N | C101: 322 | D101: 342 | E101: 291 | F101: 410 | G101: 372 | H101: 339 | I101: 343 | J101: 419 | K101: 375 | L101: 332 | M101: 243 | N101: 301 | O101: 4089
A102: Referral to health/Social Work/employment services | B102: N | C102: 960 | D102: 1025 | E102: 931 | F102: 913 | G102: 795 | H102: 958 | I102: 717 | J102: 836 | K102: 802 | L102: 879 | M102: 726 | N102: 790 | O102: 10332
A103: Client informed of rights under homelessness legislation | B103: N | C103: 9130 | D103: 8514 | E103: 6680 | F103: 8654 | G103: 7803 | H103: 7827 | I103: 6810 | J103: 8056 | K103: 7391 | L103: 7015 | M103: 5978 | N103: 7134 | O103: 90992
A104: General Housing advice/Tenancy rights advice | B104: N | C104: 12135 | D104: 12274 | E104: 10494 | F104: 13179 | G104: 12449 | H104: 12663 | I104: 10354 | J104: 12507 | K104: 10944 | L104: 10497 | M104: 8638 | N104: 10041 | O104: 136175
A105: Help to move property | B105: N | C105: 1869 | D105: 1998 | E105: 1598 | F105: 1968 | G105: 1874 | H105: 2007 | I105: 1600 | J105: 1995 | K105: 2011 | L105: 2119 | M105: 1649 | N105: 1926 | O105: 22614
A106: Other | B106: N | C106: 1436 | D106: 2228 | E106: 1606 | F106: 1582 | G106: 1589 | H106: 1612 | I106: 1358 | J106: 1614 | K106: 1453 | L106: 1616 | M106: 1398 | N106: 1316 | O106: 18808
A107: Total (ALL) | B107: N | C107: 32147 | D107: 33236 | E107: 27285 | F107: 33649 | G107: 30821 | H107: 31506 | I107: 26001 | J107: 30716 | K107: 27747 | L107: 27669 | M107: 22755 | N107: 25699 | O107: 349231
A108: Household is assigned to local authority of most recent approach
A109: Table 6: Housing Options activities by Local Authority, during 1 April 2014 to 31 March 2017
C110: ACTIVITY | N110: All
C111: Mediation/outreach work | D111: Financial assistance/advice | E111: Rent/repairs/referrals/negotiation with landlords | F111: Help to remain in accommodation | G111: Mortgage/home ownership advice | H111: Tenancy/social care support/adaptations to property | I111: Referral to health/Social Work/employment services | J111: Client informed of rights under homelessness legislation | K111: General Housing advice/Tenancy rights advice | L111: Help to move property | M111: Other
A112: Aberdeen City | B112: N | C112: 194 | D112: 502 | E112: 210 | F112: 446 | G112: 132 | H112: 34 | I112: 106 | J112: 3394 | K112: 11271 | L112: 2208 | M112: 0 | N112: 18497
A113: Aberdeenshire | B113: N | C113: 110 | D113: 1419 | E113: 1335 | F113: 146 | G113: 209 | H113: 13 | I113: 132 | J113: 4580 | K113: 6115 | L113: 262 | M113: 267 | N113: 14588
A114: Angus | B114: N | C114: 70 | D114: 1692 | E114: 401 | F114: 503 | G114: 73 | H114: 223 | I114: 80 | J114: 2018 | K114: 3414 | L114: 2047 | M114: 83 | N114: 10604
A115: Argyll & Bute | B115: N | C115: 44 | D115: 230 | E115: 467 | F115: 765 | G115: 2 | H115: 229 | I115: 32 | J115: 429 | K115: 3065 | L115: 255 | M115: 98 | N115: 5616
A116: Clackmannanshire | B116: N | C116: 7 | D116: 126 | E116: 225 | F116: 6 | G116: 1 | H116: 2 | I116: 12 | J116: 949 | K116: 700 | L116: 83 | M116: 6 | N116: 2117
A117: Dumfries & Galloway | B117: N | C117: 21 | D117: 324 | E117: 622 | F117: 129 | G117: 11 | H117: 312 | I117: 210 | J117: 2273 | K117: 2727 | L117: 701 | M117: 167 | N117: 7497
A118: Dundee City | B118: N | C118: 719 | D118: 308 | E118: 389 | F118: 248 | G118: 2 | H118: 13 | I118: 56 | J118: 7391 | K118: 5619 | L118: 836 | M118: 330 | N118: 15911
A119: East Ayrshire | B119: N | C119: 16 | D119: 478 | E119: 203 | F119: 41 | G119: 17 | H119: 83 | I119: 35 | J119: 202 | K119: 367 | L119: 48 | M119: 38 | N119: 1528
A120: East Dunbartonshire | B120: N | C120: 1 | D120: 419 | E120: 332 | F120: 37 | G120: 41 | H120: 4 | I120: 36 | J120: 534 | K120: 617 | L120: 487 | M120: 7 | N120: 2515
A121: East Lothian | B121: N | C121: 36 | D121: 364 | E121: 1090 | F121: 234 | G121: 34 | H121: 5 | I121: 7 | J121: 1013 | K121: 1526 | L121: 1453 | M121: 98 | N121: 5860
A122: East Renfrewshire | B122: N | C122: 12 | D122: 212 | E122: 251 | F122: 54 | G122: 41 | H122: 34 | I122: 35 | J122: 416 | K122: 330 | L122: 56 | M122: 3 | N122: 1444
A123: Edinburgh | B123: N | C123: 136 | D123: 1798 | E123: 262 | F123: 87 | G123: 17 | H123: 26 | I123: 250 | J123: 4920 | K123: 14241 | L123: 159 | M123: 311 | N123: 22207
A124: Eilean Siar | B124: N | C124: 2 | D124: 23 | E124: 19 | F124: 3 | G124: 1 | H124: 3 | I124: 4 | J124: 32 | K124: 18 | L124: 4 | M124: 2 | N124: 111
A125: Falkirk | B125: N | C125: 2939 | D125: 8664 | E125: 982 | F125: 3428 | G125: 227 | H125: 617 | I125: 3102 | J125: 5914 | K125: 7692 | L125: 4528 | M125: 12992 | N125: 51085
A126: Fife | B126: N | C126: 146 | D126: 806 | E126: 2839 | F126: 173 | G126: 282 | H126: 120 | I126: 326 | J126: 7618 | K126: 9465 | L126: 2054 | M126: 294 | N126: 24123
A127: Glasgow City | B127: N | C127: 54 | D127: 681 | E127: 1059 | F127: 894 | G127: 15 | H127: 34 | I127: 4374 | J127: 12563 | K127: 14183 | L127: 461 | M127: 0 | N127: 34318
A128: Highland | B128: N | C128: 65 | D128: 935 | E128: 199 | F128: 108 | G128: 57 | H128: 79 | I128: 67 | J128: 3045 | K128: 3412 | L128: 232 | M128: 90 | N128: 8289
A129: Inverclyde | B129: N | C129: 31 | D129: 196 | E129: 695 | F129: 87 | G129: 5 | H129: 10 | I129: 70 | J129: 1549 | K129: 1911 | L129: 167 | M129: 518 | N129: 5239
A130: Midlothian | B130: N | C130: 257 | D130: 201 | E130: 160 | F130: 43 | G130: 28 | H130: 104 | I130: 92 | J130: 1154 | K130: 2127 | L130: 605 | M130: 1026 | N130: 5797
A131: Moray | B131: N | C131: 140 | D131: 693 | E131: 309 | F131: 61 | G131: 14 | H131: 106 | I131: 117 | J131: 2767 | K131: 3486 | L131: 444 | M131: 739 | N131: 8876
A132: North Ayrshire | B132: N | C132: 3 | D132: 338 | E132: 5363 | F132: 171 | G132: 76 | H132: 10 | I132: 68 | J132: 6387 | K132: 6966 | L132: 581 | M132: 128 | N132: 20091
A133: North Lanarkshire | B133: N | C133: 53 | D133: 1947 | E133: 760 | F133: 282 | G133: 49 | H133: 1313 | I133: 414 | J133: 3031 | K133: 13457 | L133: 549 | M133: 417 | N133: 22272
A134: Orkney | B134: N | C134: 2 | D134: 24 | E134: 37 | F134: 5 | G134: 6 | H134: 0 | I134: 1 | J134: 100 | K134: 175 | L134: 21 | M134: 5 | N134: 376
A135: Perth & Kinross | B135: N | C135: 74 | D135: 367 | E135: 1360 | F135: 41 | G135: 18 | H135: 26 | I135: 101 | J135: 2095 | K135: 2845 | L135: 95 | M135: 511 | N135: 7533
A136: Renfrewshire | B136: N | C136: 350 | D136: 1799 | E136: 841 | F136: 123 | G136: 20 | H136: 291 | I136: 365 | J136: 4560 | K136: 5303 | L136: 1341 | M136: 374 | N136: 15367
A137: Scottish Borders | B137: N | C137: 19 | D137: 399 | E137: 854 | F137: 56 | G137: 35 | H137: 373 | I137: 41 | J137: 1837 | K137: 2262 | L137: 1123 | M137: 112 | N137: 7111
A138: Shetland | B138: N | C138: 13 | D138: 14 | E138: 4 | F138: 3 | G138: 0 | H138: 0 | I138: 5 | J138: 605 | K138: 643 | L138: 5 | M138: 28 | N138: 1320
A139: South Ayrshire | B139: N | C139: 5 | D139: 15 | E139: 76 | F139: 14 | G139: 3 | H139: 3 | I139: 17 | J139: 1405 | K139: 2070 | L139: 18 | M139: 20 | N139: 3646
A140: South Lanarkshire | B140: N | C140: 4 | D140: 574 | E140: 816 | F140: 94 | G140: 52 | H140: 1 | I140: 19 | J140: 2245 | K140: 3550 | L140: 1090 | M140: 79 | N140: 8524
A141: Stirling | B141: N | C141: 1 | D141: 27 | E141: 102 | F141: 23 | G141: 3 | H141: 0 | I141: 7 | J141: 278 | K141: 1161 | L141: 60 | M141: 2 | N141: 1664
A142: West Dunbartonshire | B142: N | C142: 13 | D142: 135 | E142: 47 | F142: 18 | G142: 6 | H142: 2 | I142: 12 | J142: 1825 | K142: 760 | L142: 161 | M142: 23 | N142: 3002
A143: West Lothian | B143: N | C143: 21 | D143: 1272 | E143: 1431 | F143: 86 | G143: 55 | H143: 19 | I143: 139 | J143: 3863 | K143: 4697 | L143: 480 | M143: 40 | N143: 12103
A144: Scotland | B144: N | C144: 5558 | D144: 26982 | E144: 23740 | F144: 8409 | G144: 1532 | H144: 4089 | I144: 10332 | J144: 90992 | K144: 136175 | L144: 22614 | M144: 18808 | N144: 349231
A145: Household is assigned to local authority of most recent approach
A146: Table 7: Outcomes by Quarter
C147: Quarter of Outcome | O147: All
C148: 2014 Q2 | D148: 2014 Q3 | E148: 2014 Q4 | F148: 2015 Q1 | G148: 2015 Q2 | H148: 2015 Q3 | I148: 2015 Q4 | J148: 2016 Q1 | K148: 2016 Q2 | L148: 2016 Q3 | M148: 2016 Q4 | N148: 2017 Q1
A149: LA/RSL Tenancy | B149: N | C149: 226 | D149: 412 | E149: 505 | F149: 482 | G149: 577 | H149: 545 | I149: 568 | J149: 589 | K149: 534 | L149: 809 | M149: 507 | N149: 503 | O149: 6257
A150: PRS Tenancy | B150: N | C150: 270 | D150: 466 | E150: 424 | F150: 463 | G150: 497 | H150: 468 | I150: 477 | J150: 411 | K150: 461 | L150: 501 | M150: 405 | N150: 432 | O150: 5275
A151: Other (known) | B151: N | C151: 456 | D151: 717 | E151: 653 | F151: 467 | G151: 525 | H151: 572 | I151: 443 | J151: 690 | K151: 531 | L151: 734 | M151: 729 | N151: 907 | O151: 7424
A152: Moved-in with friends/ relatives | B152: N | C152: 187 | D152: 341 | E152: 294 | F152: 259 | G152: 252 | H152: 254 | I152: 309 | J152: 285 | K152: 270 | L152: 315 | M152: 238 | N152: 285 | O152: 3289
A153: Lost Contact/ Not known | B153: N | C153: 1083 | D153: 2540 | E153: 2395 | F153: 1774 | G153: 1668 | H153: 1820 | I153: 2231 | J153: 1916 | K153: 2028 | L153: 1920 | M153: 1848 | N153: 3087 | O153: 24310
A154: Remained in current accommodation | B154: N | C154: 1670 | D154: 2634 | E154: 2983 | F154: 2739 | G154: 2629 | H154: 2877 | I154: 2732 | J154: 2759 | K154: 2604 | L154: 2715 | M154: 2389 | N154: 3325 | O154: 32056
A155: Made homelessness application to local authority | B155: N | C155: 4941 | D155: 6648 | E155: 6026 | F155: 7169 | G155: 6512 | H155: 6658 | I155: 6094 | J155: 6397 | K155: 6297 | L155: 5217 | M155: 5280 | N155: 5640 | O155: 72879
A156: Total (ALL) | B156: N | C156: 8833 | D156: 13758 | E156: 13280 | F156: 13353 | G156: 12660 | H156: 13194 | I156: 12854 | J156: 13047 | K156: 12725 | L156: 12211 | M156: 11396 | N156: 14179 | O156: 151490
A157: Household is assigned to local authority of most recent approach
A158: Table 8: Outcomes by LA: 1 April 2014 to 31 March 2017
C159: LA/RSL Tenancy | D159: PRS Tenancy | E159: Other (known) | F159: Moved-in with friends/ relatives | G159: Lost Contact/ Not known | H159: Remained in current accommodation | I159: Made homelessness application to local authority | J159: All
A160: Aberdeen City | B160: N | C160: 1153 | D160: 349 | E160: 1059 | F160: 150 | G160: 3848 | H160: 2615 | I160: 4032 | J160: 13206
A161: Aberdeenshire | B161: N | C161: 106 | D161: 253 | E161: 222 | F161: 200 | G161: 1411 | H161: 1385 | I161: 2192 | J161: 5769
A162: Angus | B162: N | C162: 84 | D162: 74 | E162: 123 | F162: 84 | G162: 224 | H162: 898 | I162: 1307 | J162: 2794
A163: Argyll & Bute | B163: N | C163: 275 | D163: 267 | E163: 247 | F163: 136 | G163: 427 | H163: 2027 | I163: 972 | J163: 4351
A164: Clackmannanshire | B164: N | C164: 22 | D164: 35 | E164: 6 | F164: 5 | G164: 51 | H164: 65 | I164: 424 | J164: 608
A165: Dumfries & Galloway | B165: N | C165: 96 | D165: 96 | E165: 40 | F165: 38 | G165: 479 | H165: 287 | I165: 1625 | J165: 2661
A166: Dundee City | B166: N | C166: 132 | D166: 167 | E166: 402 | F166: 69 | G166: 1735 | H166: 1109 | I166: 3038 | J166: 6652
A167: East Ayrshire | B167: N | C167: 86 | D167: 37 | E167: 6 | F167: 19 | G167: 11 | H167: 52 | I167: 51 | J167: 262
A168: East Dunbartonshire | B168: N | C168: 11 | D168: 35 | E168: 24 | F168: 6 | G168: 81 | H168: 194 | I168: 306 | J168: 657
A169: East Lothian | B169: N | C169: 9 | D169: 100 | E169: 21 | F169: 53 | G169: 124 | H169: 280 | I169: 369 | J169: 956
A170: East Renfrewshire | B170: N | C170: 13 | D170: 11 | E170: 16 | F170: 13 | G170: 58 | H170: 162 | I170: 157 | J170: 430
A171: Edinburgh | B171: N | C171: 706 | D171: 261 | E171: 321 | F171: 352 | G171: 2977 | H171: 4990 | I171: 9241 | J171: 18848
A172: Eilean Siar | B172: N | C172: 5 | D172: 2 | E172: 1 | F172: 0 | G172: 3 | H172: 7 | I172: 14 | J172: 32
A173: Falkirk | B173: N | C173: 271 | D173: 22 | E173: 260 | F173: 109 | G173: 919 | H173: 525 | I173: 3729 | J173: 5835
A174: Fife | B174: N | C174: 505 | D174: 560 | E174: 249 | F174: 67 | G174: 1226 | H174: 1187 | I174: 3259 | J174: 7053
A175: Glasgow City | B175: N | C175: 306 | D175: 68 | E175: 2109 | F175: 640 | G175: 5089 | H175: 5024 | I175: 18925 | J175: 32161
A176: Highland | B176: N | C176: 236 | D176: 281 | E176: 155 | F176: 173 | G176: 419 | H176: 686 | I176: 1609 | J176: 3559
A177: Inverclyde | B177: N | C177: 133 | D177: 128 | E177: 137 | F177: 113 | G177: 473 | H177: 725 | I177: 755 | J177: 2464
A178: Midlothian | B178: N | C178: 14 | D178: 37 | E178: 105 | F178: 50 | G178: 136 | H178: 228 | I178: 200 | J178: 770
A179: Moray | B179: N | C179: 140 | D179: 228 | E179: 87 | F179: 266 | G179: 356 | H179: 594 | I179: 1557 | J179: 3228
A180: North Ayrshire | B180: N | C180: 576 | D180: 841 | E180: 304 | F180: 106 | G180: 154 | H180: 546 | I180: 2172 | J180: 4699
A181: North Lanarkshire | B181: N | C181: 240 | D181: 22 | E181: 497 | F181: 91 | G181: 257 | H181: 2068 | I181: 4539 | J181: 7714
A182: Orkney | B182: N | C182: 12 | D182: 19 | E182: 7 | F182: 2 | G182: 48 | H182: 15 | I182: 34 | J182: 137
A183: Perth & Kinross | B183: N | C183: 122 | D183: 267 | E183: 268 | F183: 68 | G183: 943 | H183: 1115 | I183: 2035 | J183: 4818
A184: Renfrewshire | B184: N | C184: 205 | D184: 70 | E184: 251 | F184: 170 | G184: 557 | H184: 2113 | I184: 2450 | J184: 5816
A185: Scottish Borders | B185: N | C185: 237 | D185: 241 | E185: 116 | F185: 39 | G185: 575 | H185: 348 | I185: 1016 | J185: 2572
A186: Shetland | B186: N | C186: 40 | D186: 10 | E186: 15 | F186: 13 | G186: 90 | H186: 54 | I186: 294 | J186: 516
A187: South Ayrshire | B187: N | C187: 132 | D187: 35 | E187: 32 | F187: 17 | G187: 295 | H187: 797 | I187: 2105 | J187: 3413
A188: South Lanarkshire | B188: N | C188: 166 | D188: 394 | E188: 202 | F188: 72 | G188: 481 | H188: 484 | I188: 772 | J188: 2571
A189: Stirling | B189: N | C189: 27 | D189: 52 | E189: 34 | F189: 63 | G189: 249 | H189: 369 | I189: 403 | J189: 1197
A190: West Dunbartonshire | B190: N | C190: 104 | D190: 33 | E190: 42 | F190: 12 | G190: 183 | H190: 305 | I190: 1484 | J190: 2163
A191: West Lothian | B191: N | C191: 93 | D191: 280 | E191: 66 | F191: 93 | G191: 431 | H191: 802 | I191: 1813 | J191: 3578
A192: Total (ALL) | B192: N | C192: 6257 | D192: 5275 | E192: 7424 | F192: 3289 | G192: 24310 | H192: 32056 | I192: 72879 | J192: 151490
A193: Household is assigned to local authority of most recent approach
A194: Table 9: Outcomes: Number of days from approach to case closure - for the most recent quarter - BOXPLOT
B195: outcome_time
B196: P5 | C196: Q1 | D196: Median | E196: Q3 | F196: P95 | G196: N
A197: LA/RSL Tenancy | B197: 0 | C197: 23 | D197: 64 | E197: 140 | F197: 392 | G197: 6257
A198: PRS Tenancy | B198: 0 | C198: 22 | D198: 49 | E198: 104 | F198: 325 | G198: 5275
A199: Other (known) | B199: 0 | C199: 3 | D199: 31 | E199: 99 | F199: 367 | G199: 7424
A200: Moved-in with friends/ relatives | B200: 0 | C200: 8 | D200: 32 | E200: 77 | F200: 250 | G200: 3289
... 421 more rows

Sheet SAS code 2 - to be deleted
A1: Number of Approaches per household
A2: Approaches made 1 April 2016 to 31 March 2017
B3: counter | E3: Total (ALL)
B4: One approach only | C4: 2 approaches only | D4: 3 or more approaches
B5: N | C5: N | D5: N | E5: N
A6: LACODE
A7: Aberdeen City | B7: 4206 | C7: 241 | D7: 18 | E7: 4465
A8: Aberdeenshire | B8: 1483 | C8: 126 | D8: 14 | E8: 1623
A9: Angus | B9: 825 | C9: 33 | D9: 3 | E9: 861
A10: Argyll & Bute | B10: 1171 | C10: 151 | D10: 39 | E10: 1361
A11: Clackmannanshire | B11: 433 | C11: 19 | D11: 5 | E11: 457
A12: Dumfries & Galloway | B12: 804 | C12: 72 | D12: 12 | E12: 888
A13: Dundee City | B13: 1742 | C13: 140 | D13: 26 | E13: 1908
A14: East Ayrshire | B14: 86 | C14: 3 | D14: . | E14: 89
A15: East Dunbartonshire | B15: 358 | C15: 21 | D15: 4 | E15: 383
A16: East Lothian | B16: 185 | C16: 5 | D16: 1 | E16: 191
A17: East Renfrewshire | B17: 121 | C17: 9 | D17: . | E17: 130
A18: Edinburgh | B18: 5241 | C18: 471 | D18: 41 | E18: 5753
A19: Eilean Siar | B19: 7 | C19: . | D19: . | E19: 7
A20: Falkirk | B20: 1393 | C20: 237 | D20: 35 | E20: 1665
A21: Fife | B21: 2191 | C21: 179 | D21: 21 | E21: 2391
A22: Glasgow City | B22: 6996 | C22: 995 | D22: 197 | E22: 8188
A23: Highland | B23: 368 | C23: 6 | D23: 1 | E23: 375
A24: Inverclyde | B24: 644 | C24: 57 | D24: 22 | E24: 723
A25: Midlothian | B25: 322 | C25: 32 | D25: 4 | E25: 358
A26: Moray | B26: 937 | C26: 58 | D26: 6 | E26: 1001
A27: North Ayrshire | B27: 1366 | C27: 78 | D27: 6 | E27: 1450
A28: North Lanarkshire | B28: 2986 | C28: 111 | D28: 7 | E28: 3104
A29: Orkney | B29: 26 | C29: 1 | D29: 1 | E29: 28
A30: Perth & Kinross | B30: 1458 | C30: 145 | D30: 14 | E30: 1617
A31: Renfrewshire | B31: 1597 | C31: 211 | D31: 21 | E31: 1829
A32: Scottish Borders | B32: 750 | C32: 33 | D32: 8 | E32: 791
A33: Shetland | B33: 182 | C33: 9 | D33: . | E33: 191
A34: South Ayrshire | B34: 852 | C34: 69 | D34: 4 | E34: 925
A35: South Lanarkshire | B35: 777 | C35: 20 | D35: 2 | E35: 799
A36: Stirling | B36: 261 | C36: 27 | D36: 2 | E36: 290
A37: West Dunbartonshire | B37: 186 | C37: 2 | D37: 2 | E37: 190
A38: West Lothian | B38: 989 | C38: 39 | D38: 2 | E38: 1030
A39: Total (ALL) | B39: 40943 | C39: 3600 | D39: 518 | E39: 45061
A40: Household is assigned to local authority of most recent approach
A41: Number of Approaches per household
A42: Approaches made 1 April 2016 to 31 March 2017
B43: counter | E43: Total (ALL)
B44: One approach only | C44: 2 approaches only | D44: 3 or more approaches
B45: RowPctN | C45: RowPctN | D45: RowPctN | E45: RowPctN
A46: LACODE
A47: Aberdeen City | B47: 94.2 | C47: 5.4 | D47: 0.4 | E47: 100
A48: Aberdeenshire | B48: 91.37 | C48: 7.76 | D48: 0.86 | E48: 100
A49: Angus | B49: 95.82 | C49: 3.83 | D49: 0.35 | E49: 100
A50: Argyll & Bute | B50: 86.04 | C50: 11.09 | D50: 2.87 | E50: 100
A51: Clackmannanshire | B51: 94.75 | C51: 4.16 | D51: 1.09 | E51: 100
A52: Dumfries & Galloway | B52: 90.54 | C52: 8.11 | D52: 1.35 | E52: 100
A53: Dundee City | B53: 91.3 | C53: 7.34 | D53: 1.36 | E53: 100
A54: East Ayrshire | B54: 96.63 | C54: 3.37 | D54: . | E54: 100
A55: East Dunbartonshire | B55: 93.47 | C55: 5.48 | D55: 1.04 | E55: 100
A56: East Lothian | B56: 96.86 | C56: 2.62 | D56: 0.52 | E56: 100
A57: East Renfrewshire | B57: 93.08 | C57: 6.92 | D57: . | E57: 100
A58: Edinburgh | B58: 91.1 | C58: 8.19 | D58: 0.71 | E58: 100
A59: Eilean Siar | B59: 100 | C59: . | D59: . | E59: 100
A60: Falkirk | B60: 83.66 | C60: 14.23 | D60: 2.1 | E60: 100
A61: Fife | B61: 91.64 | C61: 7.49 | D61: 0.88 | E61: 100
A62: Glasgow City | B62: 85.44 | C62: 12.15 | D62: 2.41 | E62: 100
A63: Highland | B63: 98.13 | C63: 1.6 | D63: 0.27 | E63: 100
A64: Inverclyde | B64: 89.07 | C64: 7.88 | D64: 3.04 | E64: 100
A65: Midlothian | B65: 89.94 | C65: 8.94 | D65: 1.12 | E65: 100
A66: Moray | B66: 93.61 | C66: 5.79 | D66: 0.6 | E66: 100
A67: North Ayrshire | B67: 94.21 | C67: 5.38 | D67: 0.41 | E67: 100
A68: North Lanarkshire | B68: 96.2 | C68: 3.58 | D68: 0.23 | E68: 100
A69: Orkney | B69: 92.86 | C69: 3.57 | D69: 3.57 | E69: 100
A70: Perth & Kinross | B70: 90.17 | C70: 8.97 | D70: 0.87 | E70: 100
A71: Renfrewshire | B71: 87.32 | C71: 11.54 | D71: 1.15 | E71: 100
A72: Scottish Borders | B72: 94.82 | C72: 4.17 | D72: 1.01 | E72: 100
A73: Shetland | B73: 95.29 | C73: 4.71 | D73: . | E73: 100
A74: South Ayrshire | B74: 92.11 | C74: 7.46 | D74: 0.43 | E74: 100
A75: South Lanarkshire | B75: 97.25 | C75: 2.5 | D75: 0.25 | E75: 100
A76: Stirling | B76: 90 | C76: 9.31 | D76: 0.69 | E76: 100
A77: West Dunbartonshire | B77: 97.89 | C77: 1.05 | D77: 1.05 | E77: 100
A78: West Lothian | B78: 96.02 | C78: 3.79 | D78: 0.19 | E78: 100
A79: Total (ALL) | B79: 90.86 | C79: 7.99 | D79: 1.15 | E79: 100
A80: Household is assigned to local authority of most recent approach
